Workbook

Sheet 1 Admin block
A1: PAYMENT REFERS TO | B1: ITEM NO | C1: DESCRIPTION | F1: UNIT | G1: QUANTITY | H1: RATE | I1: AMOUNT
A2: 1: ADMINISTRATION BLOCK
A3: SCHEDULE 1.1: | C3: =[3]Defaults!B8 -> PRELIMINARY AND GENERAL
A4: SANS | C4: GENERAL
A5: 1200 A
B6: 1.1.1 | C6: Scheduled fixed-charge and value-related items:
C7: .01 | D7: Fixed preliminary and general charges | F7: sum | G7: 1 | I7: =G7*H7 -> 0
B8: 1.1.2 | C8: Scheduled time-related items: | F8: Month | G8: 8 | I8: =G8*H8 -> 0
C9: TEMPORARY WORKS
B10: 1.1.3 | C10: Location and protection of existing services:
A11: 8.4 c | C11: .01 | D11: Excavate by hand to expose existing services | F11: m3 | G11: 150 | I11: =G11*H11 -> 0
B12: 1.1.4 | C12: Additional tests
C13: .01 | D13: Additional tests required by the Engineer | F13: Prov Sum | G13: 1 | I13: 20,000.00
C14: .02 | D14: Attendance and profit | F14: % | G14: =I13 -> 20,000.00 | I14: =G14*H14 -> 0
B15: 1.1.5 | C15: Update existing key plans of | F15: sum | G15: 1 | I15: =G15*H15 -> 0
B16: 1.1.6 | C16: OCCUPATIONAL HEALTH AND SAFETY
C17: .01 | D17: Compliance with OHS Act and
D18: Construction Regulations 2003 | F18: sum | G18: 1 | I18: =G18*H18 -> 0
A19: SH01 | B19: 1.1.7 | C19: HIV/AIDS AWARENESS
C20: It is required of the Contractor to thoroughly study the Additional Specification SH: HIV / AIDS Requirements (PW 1544) of the Department that must be read together with and is deemed to be incorporated under this Section of the Bills of Quantities.
C21: Provision for pricing of HIV/AIDS awareness is made under the items hereafter and it is explicitly pointed out that all requirements of the aforementioned specification are deemed to be priced hereunder, as the said items represent the only method of measurement and no additional items or extras to the contract in this regard shall be entertained.
C22: The Contractor must take note that compliance with the HIV/AIDS Specification is compulsory. In the event of partial or total non-compliance, the Representative/Agent, notwithstanding the provisions of Clause 52 of the General Conditions of Contract for Works of Civil Engineering Construction or any other clause to the contrary, reserves the right to delay issuing any progress payment certificate until the Contractor provides satisfactory proof of compliance.
C23: The Contractor shall not be entitled to any compensation of whatsoever nature, including interest, due to such delay of payment.
A24: SH 07 | C24: .01 | D24: Awareness Campaign | F24: sum | G24: 1 | I24: =G24*H24 -> 0
D25: Selection, appointment, briefing and making available of an Awareness Campaign including provision of all relevant services.
A26: SH 04.01 | C26: .02 | D26: Awareness Workshops | F26: sum | G26: 1 | I26: =G26*H26 -> 0
D27: Selection and appointment of a competent Service Provider approved by the Representative/Agent, provision of a Service Provider Workshop Plan and a suitable venue, conducting of awareness workshops by means of traditional and/or modern multi-media techniques, including follow-up courses, making available all tuition material and performing assessment procedures.
A28: SH 04.03 | C28: .03 | D28: Posters, Booklets, Videos, etc. | F28: sum | G28: 1 | I28: 0
D29: Provision, displaying, maintaining and replacing when necessary of four plastic laminated posters, booklets and educational videos, etc. for the duration of the construction period.
A30: SH 05 | C30: .04 | D30: Access to Condoms | F30: sum | G30: 1 | I30: 0
D31: Provision and maintenance of condom dispensers fixed in position, including male and female condoms, replenishing male and female condoms on a daily basis as required for the duration of the construction period.
A32: SH 08 | C32: .05 | D32: Monitoring | F32: sum | G32: 1 | I32: 0
D33: Monitoring HIV/AIDS awareness of workers, providing the Representative/Agent with access to information including making available all reports, thoroughly completed and reflecting the correct information, for the duration of the construction period and close out.
A34: TOTAL PRELIMINARY AND GENERAL | B34: ="TOTAL "&$A$3&" CARRIED TO SUMMARY: GENERAL MAINTENANCE WORK" -> TOTAL SCHEDULE 1.1: CARRIED TO SUMMARY: GENERAL MAINTENANCE WORK | I34: =SUM(I7:I32) -> 20,000.00
A35: SCHEDULE 1.2 | C35: =[3]Defaults!B9 -> STRUCTURAL AND BUILDING
C36: BA : ROOFS
C37: CLADDING AND SHEETING
A38: BA.01 | B38: 1.2.1 | C38: Supply and install cladding and sheeting:
C39: .01 | D39: 0,6 mm Corrugated Chromakek Roof Sheeting (Colour to match existing buildings) @17'' on insulation on 76x50mm SA Pine purlins (Chromadek or similar approved)
D40: .01 | E40: Roof covering with pitches exceeding 15°, fixed to timber or steel purlins. | F40: m2 | G40: 465 | I40: =G40*H40 -> 0
C41: .02 | D41: Roof insulation
A42: BA.07 | D42: .01 | E42: Roof insulation with Class 1 fire rating. Eviro-foil 201FR, Sisolation HF2 or similar approved | F42: m2 | G42: 450 | I42: =G42*H42 -> 0
A43: BA.06 | B43: 1.2.2 | C43: Supply and install sundry items, etc.:
C44: .01 | D44: 0,6 mm Chromadek metal ridge cap or with ridge closer to manufacturer spec.
D45: .01 | E45: Ridge flashing | F45: m | G45: 40 | I45: =G45*H45 -> 0
D46: .02 | E46: Side wall flashing | F46: m | G46: 25 | I46: =G46*H46 -> 0
D47: .03 | E47: Gable flashing | F47: m | G47: 25 | I47: =G47*H47 -> 0
A48: BA.08 | B48: 1.2.3 | C48: Supply and install rainwater goods:
C49: .01 | D49: 0,6 mm Thick seamless aluminium gutter and downpipe(complete):
D50: .01 | E50: 100 x 150 mm (6") self-supporting box gutter | F50: m | G50: 65 | I50: =G50*H50 -> 0
D51: .02 | E51: 100 mm Down pipe (including sundries) | F51: m | G51: 30 | I51: =G51*H51 -> 0
C52: BB: CARPENTRY
C53: Supply and install listed items in accordance with relevant standard. Rates include full installation and sundry items.
A54: BB.02 | B54: 1.2.4 | C54: Ceilings:
C55: .01 | D55: Gypsum board with metal H-profile jointing strips:
D56: .01 | E56: 6.4 mm ceilings | F56: m2 | G56: 375 | I56: =G56*H56 -> 0
C57: .02 | D57: Gypsum cornices:
D58: .01 | E58: 76 mm gypsum coved cornices | F58: m | G58: 350 | I58: =G58*H58 -> 0
A60: SANS | C60: EARTHWORKS (SMALL WORKS)
A61: 1200 DA
A62: 8.3 | B62: 1.2.5 | C62: SCHEDULED ITEMS
A63: 8.3.1 | C63: .01 | D63: Remove topsoil to nominal depth of 150mm , stockpile and maintain | F63: m2 | G63: 652.5 | I63: =G63*H63 -> 0
A64: 8.3.2 | C64: .02 | D64: Excavate for restricted foundation, footings and trenches in all materials and use for backfill or embankment or dispose. | F64: m3 | G64: 565.5 | I64: =G64*H64 -> 0
A65: 8.3.4 | C65: .03 | D65: Importing, placing and compacting approved G4 material in layers of 150mm from commercial sources or from borrow pits to 95% MOD AASTHO. | F65: m3 | G65: 507.5 | I65: =G65*H65 -> 0
C66: .04 | D66: Excavate for restricted trenches in compacted G4 material for raft foundation rib beams. Use for backfill or embankment or dispose. | F66: m3 | G66: 50.75 | I66: =G66*H66 -> 0
C67: .05 | D67: Extra over item 8.3.2 above for:
C68: .06 | D68: .01 | E68: Intermediate excavation | F68: m³ | G68: 145 | I68: =G68*H68 -> 0
C69: .07 | D69: Soil and Termite poisoning underneath building work as per SANS 10400 (Include certificates) | F69: m2 | G69: 652.5 | I69: =G69*H69 -> 0
A71: SANS | C71: CONCRETE (STRUCTURAL)
A72: 1200 G | C72: FORMWORK
A73: 8.2 | B73: 1.2.6 | C73: Formwork to side of concrete surfaces
A74: 8,2,1 | C74: .01 | D74: Rough vertical formwork to side of concrete foundations | F74: m2 | G74: 34 | I74: =G74*H74 -> 0
C75: .02 | D75: Smooth formwork to side of concrete channels | F75: m2 | G75: 10 | I75: =G75*H75 -> 0
A77: 8.4 | C77: SCHEDULED CONCRETE ITEMS
A78: 8.4.3 | B78: 1.2.7 | C78: Strength concrete:
C79: .01 | D79: Class 20Mpa/19mm concrete in aprons / Stormwater Channel D55mm including rough formwork as in 8.2.1 | F79: m3 | G79: 5 | I79: =G79*H79 -> 0
C80: .02 | D80: Class 25Mpa/19mm concrete in floors and rib beams | F80: m3 | G80: 75 | I80: =G80*H80 -> 0
C81: .03 | D81: Class 25Mpa/19mm concrete in strip footings, including minor rough formwork for beam sides. | F81: m3 | G81: 10 | I81: =G81*H81 -> 0
A82: SANS | C82: SCHEDULED REINFORCEMENT ITEMS
A83: 1200 H | B83: 1.2.8 | C83: High-tensile steel welded mesh and steel bars:
C84: .01 | D84: Ref No 617 mesh in concrete floor | F84: m2 | G84: 350 | I84: =G84*H84 -> 0
C85: .02 | D85: Ref No 311 mesh in concrete floor | F85: m2 | G85: 350 | I85: =G85*H85 -> 0
C86: .03 | D86: Ref No 200 mesh in concrete floor | F86: m2 | G86: 80 | I86: 0
C87: .04 | D87: Y12 high tensile steel bars | F87: kg | G87: 650 | I87: =G87*H87 -> 0
C88: .05 | D88: R8 high tensile steel bars | F88: kg | G88: 900 | I88: =G88*H88 -> 0
C89: BUILDING WORK
C90: Supply and install listed items in accordance with relevant standard. Rates include full installation and sundry items.
A91: BD.01 | B91: 1.2.9 | C91: Doors and windows:
C92: .01 | D92: Steel door frames:
D93: .01 | E93: 1,6 mm thick pressed steel door frame for door size 813 mm x 2 032 mm high suitable for 230 mm wall | F93: number | G93: 1 | I93: =G93*H93 -> 0
D94: .02 | E94: 1,6 mm thick pressed steel door frame for door size 813 mm x 2 032 mm high suitable for 110 mm wall | F94: number | G94: 17 | I94: =G94*H94 -> 0
D95: .03 | E95: 1,6 mm thick pressed steel door frame for double door size 1636 mm x 2 032 mm high suitable for 230 mm wall. D11 | F95: number | G95: 2 | I95: 0
C96: Strongroom doors etc. suitable for 230mm walls fixed to brickwork or concrete
D97: .01 | E97: Single ended strongroom ventilator | F97: number | G97: 2
D98: .02 | E98: Record room door with 6mm thick door plate, door inclusive of front frame 1935 x 872mm and back frame 1905 x 825mm - D03 | F98: number | G98: 1
C99: .02 | D99: Galvanized Security Screen and Gates :
D100: .01 | E100: Double gate and security screen 3639mm x 2308mm high overall, the frame of 45 x 45 x 3mm hollow section bolted to wall with including minimum Ten 70mm M80 expansion bolts and the gates 813mm x 2032mm high of 40 x 60 x 2mm hollow section frame with 40 x 6mm flat section horizontal rails filled in with 20mm diameter vertical rails at 110mm centres fitted with one and half pairs of suitable pin hinges welded to hollow section frame, complete with and including 150mm barrelbolt and padlock.Refer to DWG 2426-G03. Remeasure on site | F100: number | G100: 1 | I100: 0
D101: .02 | E101: Double gate and security screen 2235mm x 2308mm high overall, the frame of 45 x 45 x 3mm hollow section bolted to wall with including minimum Ten 70mm M80 expansion bolts and the gates 813mm x 2032mm high of 40 x 60 x 2mm hollow section frame with 40 x 6mm flat section horizontal rails filled in with 20mm diameter vertical rails at 110mm centres fitted with one and half pairs of suitable pin hinges welded to hollow section frame, complete with and including 150mm barrelbolt and padlock.Refer to DWG 2426-G03. Remeasure on site. | F101: number | G101: 1 | I101: =G101*H101 -> 0
D102: .03 | E102: Coated Expanding Security Gate; standard size door gates (813 mm wide x 2032mm) with tamper proof lock. Maxidor/Xpanda or similar approved | F102: number | G102: 2 | I102: =G102*H102 -> 0
C103: .03 | D103: Steel window frames | I103: 0
D104: .01 | E104: D2F - opening outwards,window size 1022mm wide x 1245mm, Galvanised, Including standard brass fittings and 4mm clear float glass | F104: number | G104: 21 | I104: 0
D105: .02 | E105: C2F - opening outwards,window size 1022mm wide x 945mm, Galvanised, Including standard brass fittings and 4mm clear float glassobscured glass | F105: number | G105: 4 | I105: 0
D106: .03 | E106: E1 - opening outwards,window size 533mm wide x 654mm, Galvanised, Including standard brass fittings and 4mm clear float glassobscured glass | F106: number | G106: 4 | I106: 0
D107: .04 | E107: E2 - opening outwards,window size 1022mm wide x 654mm, Galvanised, Including standard brass fittings and 4mm clear float glassobscured glass | F107: number | G107: 4 | I107: 0
A108: BD.03 | B108: 1.2.10 | C108: Joinery:
C109: .01 | D109: Items measured by number:
D110: .01 | E110: Type A - Standard Steel doors 1524 x 2134mm Opening Outwards (D01) | F110: number | G110: 2 | I110: 0
D111: .02 | E111: Type B - 2032 x 813 x 44mm Solid core hardwood panel door with commercial veneer finish (D06,10,20) | F111: number | G111: 5 | I111: 0
D112: .03 | E112: Type C - 2032 x 813 x 44mm Semi-solid core hardwood panel door with commercial veneer finish (D09,12,13,19) | F112: number | G112: 8 | I112: 0
D113: .04 | E113: Type D - Record Room door with door plate 6mm thick; Door inclusive of front frame 1935 x 872 and Back frame 1905 x 825 (D03) | F113: number | G113: 1 | I113: 0
D114: .05 | E114: Type E - 2032 x 813 x 44mm Hollow core hardwood panel door with commercial veneer finish (D14,17) | F114: number | G114: 4 | I114: 0
A115: BD.04 | B115: 1.2.11 | C115: Ironmongery, steelwork, glass, wall finishings, etc:
C116: .01 | D116: Items measured by number:
D117: .01 | E117: Solid Art 390/13 4 Lever Mortice Lockset and satin chrome plated handles (External Doors) with 1 pair of brass cabin hooks | F117: number | G117: 2 | I117: 0
D118: .02 | E118: Solid Art 390/13 4 Lever Mortice Lockset and satin chrome plated handles (Internal Doors) | F118: number | G118: 17 | I118: 0
D119: .03 | E119: 38mm Diameter Door stop plugged and screwed to floor with 50mm long brass screw | F119: number | G119: 17 | I119: 0
D120: .04 | E120: Stainless steel mirror, 300mm x 400mm Manufactured from 18/10 1mm flat stainless steel with high polish finish and with 4 drillings for no.8 mirror screw; Franke item no CRH 401 or similar | F120: number | G120: 7 | I120: =G120*H120 -> 0
D121: .05 | E121: Soap dispenser, surface mounted, manufactured from 18/10 1.2mm stainless steel, satin finish with cylinder lock, Franke item no STRX 618 or similar | F121: number | G121: 6 | I121: =G121*H121 -> 0
D122: .06 | E122: Toilet Roll holder, Surface mounted, manufactured from 18/10 stainless steel, satin finish with cylinder lock, Franke item STRX 671 or similar | F122: number | G122: 5 | I122: 0
D123: .07 | E123: Paper towel dispenser, Surface mounted, manufactured from 18/10 1.2mm Stainless steel, satin finish with cylinder lock; Franke item no STRX 600 or similar | F123: number | G123: 6 | I123: 0
D124: .08 | E124: 150mm Natural Anodized Aluminium male sign type B2313 or similar approved | F124: number | G124: 1 | I124: 0
D125: .09 | E125: 150mm Natural Anodized Aluminium female sign type B2314 or similar approved | F125: number | G125: 1 | I125: 0
D126: .10 | E126: 200mm x 200mm Terracota Airbrick or similar approved | F126: number | G126: 20 | I126: =G126*H126 -> 0
C127: .02 | D127: Items measured by linear meter:
D128: .01 | E128: 2x110mm wide pre cast lintel | F128: m | G128: 75 | I128: 0
D129: .02 | E129: External window cills - Roller course face brick set at an angle of 15 degrees; 375 micron embossed DPC below cill | F129: m | G129: 33 | I129: 0
D130: .03 | E130: Internal window cills - Everite Nutec fibre cement (Product no 031-509) complete with fixing lugs and selg tapping screws | F130: m | G130: 33 | I130: 0
D131: .04 | E131: External cement plaster in beam filling | F131: m | G131: 75 | I131: 0
A132: BD03 | D132: .05 | E132: Brickwork Reinforcement - 75mm (galvanized) | F132: m | G132: 650 | I132: =G132*H132 -> 0
D133: .06 | E133: Brickwork Reinforcement - 150mm (galvanized) | F133: m | G133: 1100 | I133: =G133*H133 -> 0
D134: .07 | E134: 110 x 70mm Precast concrete lintels, not exceeding 3 meters length, to be placed on top of record room for the entire length of the room | F134: m | G134: 34 | I134: =G134*H134 -> 0
D135: .08 | E135: 110 x 70mm Lintels in lengths not exceeding 3m | F135: m | G135: 45
C136: .03 | D136: Items measured by area: | I136: 0
D137: .01 | E137: 6mm thick white glazed wall tiles to existing painted or plastered walls as approved by the Engineer | F137: m2 | G137: 2 | I137: 0
D138: .04 | E138: 230 mm thick Stock brick walls - NFP type brick | F138: m2 | G138: =80+G140 -> 405 | I138: 0
D139: .06 | E139: 110 mm thick Slock brick walls - NFP type brick | F139: m2 | G139: =560-G140 -> 235 | I139: 0
D140: .07 | E140: Extra over 230mm thick walls for face brick walls; Corobrik FBA walls ("Roan Satin") in stretcher bond with ruled joints and perpends | F140: m2 | G140: 325 | I140: 0
D141: .08 | E141: Internal cement plaster to walls | F141: m2 | G141: 900 | I141: 0
C142: BE: FLOORS
A143: BE.01 | B143: 1.2.12 | C143: Floor screeds:
C144: .01 | D144: 30 mm thick screed | F144: m2 | G144: 325 | I144: 0
C145: .02 | D145: 30 mm thick screed on top of lintels in record room | F145: m2 | G145: 8
A146: BE.02 | B146: 1.2.13 | C146: Joinery:
C147: .01 | D147: Items measured by linear meter:
D148: .01 | E148: 19 mm x 76 mm hardwood skirting with quadrant bead | F148: m | G148: 0 | I148: 0
A149: BE.03 | B149: 1.2.14 | C149: Floor tiling and finishes, etc:
C150: .01 | D150: Items measured by area:
D151: .01 | E151: 250 micron damp proofing under solid floors | F151: m2 | G151: 325 | I151: 0
D152: .02 | E152: 300 x 300mm non slip ceramic tiles fixed with adhesive to screeds and flush pointed with tinted waterproof jointing compound (screeds elsewhere measured). Provide the nett prime cost of R150/m2 for the supply of tiles. | F152: m2 | G152: 325 | I152: 0
D153: .03 | E153: 150 mm high ceramic tile skirting fixed with adhesive to screeds/plaster to mach floor tiles. | F153: m | G153: 330 | I153: =G153*H153 -> 0
C154: BH: FITTINGS
A155: BH.02 | B155: 1.2.15 | C155: Steelwork and joinery:
C156: Items listed include installation cost and sundry items required for the installation (bolts, silicone, etc)
C157: .01 | D157: Items measured by number:
D158: .01 | E158: Cupboard and ironmongery 0.8mm thick steel baked enamel with 32mm Formica tops
E159: .01 Base single bowl sink and unit size 1500 mm x 533 mm x 865 mm high with three doors, and one shelf inclusive of all fittings and handles | F159: number | G159: 1 | I159: =G159*H159 -> 0
D160: .02 | E160: 3m x 0,6m x 0,902m high Laminated pressed wood kitchen cupboard. Comprising of shelves, bottoms, sides, devisions, backs, doors etc. | F160: number | G160: 1 | I160: =G160*H160 -> 0
D161: .03 | E161: 1m x 0,332m x 0,540m high Laminated pressed wood kitchen wall cupboard. Comprising of shelves, bottoms, sides, devisions, backs, doors etc. | F161: number | G161: 2 | I161: =G161*H161 -> 0
D162: 0.4 | E162: 2,0 m x 0,865m high Laminated folding stacking doors. Installation to include lock, guide rails and sundries complete. | F162: number | G162: 1 | I162: =G162*H162 -> 0
A163: BH.01 | C163: .02 | D163: Items measured by linear meter:
D164: .01 | E164: 32 mm chipboard with "Formica" laminated finish on one side and profiled edges where so described:
E165: .01 Work top 600 mm wide with profiled front edge and fitted on top of kitchen cupboard floor unit. Installation to include fastners, supports, brackets etc | F165: m | G165: 10 | I165: =G165*H165 -> 0
E166: .02 Work top 750 mm wide with profiled front edge and fitted on top desk level column supports . Installation to include fastners, supports, brackets etc | F166: m | G166: 20 | I166: =G166*H166 -> 0
D167: .02 | E167: 32 mm hardwood meranti shelves and profiled edges where so described:
E168: .01 Work top 500mm wide with profiled front edge and fitted on top of cupboard including supports, brackets fastners etc. | F168: m | G168: 15 | I168: =G168*H168 -> 0
D169: .03 | E169: 25 mm hardwood meranti shelves and profiled edges where so described:
E170: .01 Fixed shelving 350mm wide with profiled front edge. Installation to include brackets, supports (spaced at 600mm intervals), fastners etc. | F170: m | G170: 50 | I170: =G170*H170 -> 0
C171: BJ: PAINT WORK
C172: NEW UNPAINTED SURFACES
A173: BJ.02 | B173: 1.2.16 | C173: Paint to various surfaces:
C174: .01 | D174: Plaster surfaces:
D175: .01 | E175: Prepare and apply one coat professional plaster primer and two coats acrylic PVA paint suitable for washing with a mild detergent and with a mat finish. Provide 1 coat alcaline resistant 100% pure acrylic fillercoat. Spread rate 6m square per liter.
E176: .01 Walls | F176: m2 | G176: 900 | I176: =G176*H176 -> 0
C177: .02 | D177: Fibre cement surfaces:
D178: .01 | E178: Exterior quality pure acrylic emulsion paint with Teflon:
E179: .01 Ceilings and cornices | F179: m2 | G179: 375 | I179: =G179*H179 -> 0
C180: .03 | D180: Steel surfaces:
D181: .01 | E181: Prepare surfaces, apply spot primer, one undercoat and two coats non-drip polyurethane, semi gloss, enamel paint:
E182: .01 Window burglar proofing or mentis expanded metal grid to steel frame in burglar proofing | F182: m2 | G182: 32 | I182: =G182*H182 -> 0
E183: .02 Door frames (including Primer) | F183: m2 | G183: 15 | I183: =G183*H183 -> 0
E184: .03 Security gates (including Primer) | F184: m2 | G184: 13 | I184: =G184*H184 -> 0
A185: BJ.02 | C185: .04 | D185: .01 | E185: .04 Rails, Posts, Pipes, steel structures etc. exceeding 50 mm dia not exceeding 110 mm diameter | F185: m | G185: 30 | I185: =G185*H185 -> 0
D186: .02 | E186: Roof Sheeting (If Required) | F186: m2 | G186: 50 | I186: =G186*H186 -> 0
C187: .05 | D187: Wood surfaces:
D188: .01 | E188: Protective and decorative solvent based polyurethane alkyd semi-gloss non-drip enamel paint: (Inside)
E189: .01 Doors | F189: m2 | G189: 60 | I189: =G189*H189 -> 0
E190: .02 Skirtings and quadrant beads not exceeding 150 mm girth | F190: m | G190: 0 | I190: =G190*H190 -> 0
D191: .02 | E191: Water resistant polyurethane clear matt varnish: (Outside)
E192: .01 Doors | F192: m2 | G192: 40 | I192: =G192*H192 -> 0
E193: .02 Skirtings and quadrant beads not exceeding 150 mm girth | F193: m | G193: 0 | I193: =G193*H193 -> 0
C194: BB: CARPENTRY FOR ROOFS
A195: BB.01 | B195: 1.2.17 | C195: Supply and install new items measured by length:
C196: .01 | D196: 225 x 10 mm Thick Nutec pressed fibre cement fascia or similar approved (including painting, etc) | F196: m | G196: 23 | I196: =G196*H196 -> 0
C197: .02 | D197: 275 x 80 mm Thick Nutec fibre cement barge board, or similar approved (including painting, etc). | F197: m | G197: 35 | I197: =G197*H197 -> 0
C198: .03 | D198: 75 x 50 mm SAP purlins | F198: m | G198: 400 | I198: =G198*H198 -> 0
C199: .04 | D199: Design, supply and install Wrought sloping SAP trusses for administration building complete (including installation engineers certificate) according to drawing 2426 - G02 | F199: Sum | G199: 1 | I199: =G199*H199 -> 0
A200: BB.08 | B200: 1.2.18 | C200: Painting of existing members in overhangs:
C201: .01 | D201: Members with creosote (2 coats) | F201: m | G201: 50 | I201: =G201*H201 -> 0
A202: TOTAL STRUCTURAL AND BUILDING | I202: =SUM(I40:I201) -> 0
A203: SCHEDULE 1.3: | C203: PLUMBING, DRAINAGE, SEWER AND WATER
... 111 more rows

Sheet 2 Classroom A
A1: PAYMENT REFERS TO | B1: ITEM NO | C1: DESCRIPTION | F1: UNIT | G1: QUANTITY | H1: RATE | I1: AMOUNT
A2: 2: STANDARD SINGLE CLASS ROOM A
A3: SCHEDULE NO 2.1 : | C3: PRELIMINARY AND GENERAL
A4: SANS | B4: 2 | C4: GENERAL
A5: 1200A | B5: 2.1.1 | C5: Scheduled fixed - charge and value - related items:
C6: .01 | D6: Fixed prelimiary and general chages | F6: sum | G6: 1 | I6: =G6*H6 -> 0
B7: 2.1.2 | C7: Scheduled time-related items: | F7: Month | G7: 3 | I7: =G7*H7 -> 0
C8: TEMPORARY WORKS
B9: 2.1.3 | C9: Location and protection of existing services:
A10: 8.4 c | C10: .01 | D10: Excavate by hand to expose existing services | F10: m3 | G10: 100 | I10: =G10*H10 -> 0
B11: 2.1.4 | C11: Additional tests
C12: .01 | D12: Additional tests required by Engineer | F12: Prov sum | G12: 1 | I12: 5,000.00
C13: .02 | D13: Attendance and profit | F13: % | G13: =I12 -> 5,000.00 | I13: =G13*H13 -> 0
B14: 2.1.5 | C14: Update existing key plants | F14: sum | G14: 1 | I14: =G14*H14 -> 0
B15: 2.1.6 | C15: OCCUPATIONAL HEALTH AND SAFETY
C16: .01 | D16: Compliance with OHS Act and
D17: Construction Regulations 2003 | F17: sum | G17: 1 | I17: =G17*H17 -> 0
A18: SH01 | B18: 2.1.7 | C18: HIV/AIDS AWARENESS
C19: It is required of the Contractor to thoroughly study the Additional Specification SH: HIV / AIDS Requirements (PW 1544) of the Department that must be read together with and is deemed to be incorporated under this Section of the Bills of Quantities.
C20: Provision for pricing of HIV/AIDS awareness is made under the items hereafter and it is explicitly pointed out that all requirements of the aforementioned specification are deemed to be priced hereunder, as the said items represent the only method of measurement and no additional items or extras to the contract in this regard shall be entertained
C21: The Contractor must take note that compliance with the HIV/AIDS Specification is compulsory. In the event of partial or total non-compliance, the Representative/Agent, notwithstanding the provisions of Clause 52 of the General Conditions of Contract for Works of Civil Engineering Construction or any other clause to the contrary, reserves the right to delay issuing any progress payment certificate until the Contractor provides satisfactory proof of compliance.
C22: The Contractor shall not be entitled to any compensation of whatsoever nature, including interest, due to such delay of payment
A23: SH 07 | C23: .01 | D23: Awareness Compain | F23: sum | G23: 1 | I23: =G23*H23 -> 0
D24: Selection, appointment, briefing and making available of an Awareness Compain including provision of all relevant services.
A25: SH 04.01 | C25: .02 | D25: Awareness Workshops | F25: sum | G25: 1 | I25: =G25*H25 -> 0
D26: Selection and appointment of a competent Service Provider approved by the Representative/Agent, provision of a Service Provider Workshop Plan and a suitable venue, conducting of awareness workshops by means of traditional and/or modern multi-media techniques, including follow-up courses, making available all tuition material and performing assessment procedures.
C27: .03 | D27: Posters, Booklets, Videos, etc. | F27: sum | G27: 1 | I27: =G27*H27 -> 0
D28: Provision, displaying, maintaining and replacing when necessary of four plastic laminated posters, booklets and educational videos, etc. for the duration of the construction period.
A29: SH 05 | C29: .04 | D29: Access to Condoms | F29: sum | G29: 1 | I29: =G29*H29 -> 0
D30: Provision and maintenance of condom dispensers fixed in position, including male and female condoms, replenishing male and female condoms on a daily basis as required for the duration of the construction period.
A31: SH 08 | C31: .05 | D31: Monitoring | F31: sum | G31: 1 | I31: =G31*H31 -> 0
D32: Monitoring HIV/AIDS awareness of workers, providing the Representative/Agent with access to information including making available all reports, thoroughly completed and reflecting the correct information, for the duration of the construction period and close out.
A33: TOTAL PRELIMINARY AND GENERAL | B33: ="TOTAL "&$A$3&" CARRIED TO SUMMARY: GENERAL MAINTENANCE WORK" -> TOTAL SCHEDULE NO 2.1 : CARRIED TO SUMMARY: GENERAL MAINTENANCE WORK | I33: =SUM(I5:I32) -> 5,000.00
A34: SCHEDULE NO 2.2 : | C34: STRUCTURAL AND BUILDING
C35: BA : ROOFS
C36: CLADDING AND SHEETING
A37: BA.01 | B37: 2.2.1 | C37: Supply and install cladding and sheeting:
C38: .01 | D38: 0,6 mm Corrugated Chromakek Roof Sheeting (Colour to match existing buildings) @17'' on insulation on 76x50mm SA Pine purlins (Chromadek or similar approved)
D39: .01 | E39: Roof covering with pitches exceeding 15°, fixed to timber or steel purlins. | F39: m2 | G39: 80 | I39: =G39*H39 -> 0
C40: .02 | D40: Roof insulation
D41: .01 | E41: Roof insulation with Class 1 fire rating. Eviro-foil 201FR or similar approved | F41: m2 | G41: 80 | I41: =G41*H41 -> 0
A42: BA.06 | B42: 2.2.2 | C42: Supply and install sundry items, etc.:
C43: .01 | D43: 0,6 mm Chromadek metal ridge cap or with ridge closer to manufacturer spec.
D44: .01 | E44: Ridge flashing | F44: m | G44: 8 | I44: =G44*H44 -> 0
D45: .02 | E45: Gable flashing | F45: m | G45: 25 | I45: 0
A46: BA.08 | B46: 2.2.3 | C46: Supply and install rainwater goods:
C47: .01 | D47: 0,6 mm Thick seamless aluminium gutter and downpipe(complete):
D48: .01 | E48: 100 x 150 mm (6") self-supporting box gutter | F48: m | G48: 16 | I48: 0
D49: .02 | E49: 100 mm Down pipe (including sundries) | F49: m | G49: 12 | I49: 0
C50: BB: CARPENTRY
A51: BB.02 | B51: 2.2.4 | C51: Ceilings:
C52: .01 | D52: Gypsum board with metal H-profile jointing strips:
D53: .01 | E53: 6.4 mm ceilings | F53: m2 | G53: 50 | I53: 0
C54: .03 | D54: Gypsum cornices:
D55: .01 | E55: 76 mm gypsum coved cornices | F55: m | G55: 45 | I55: 0
A57: SANS | C57: EARTHWORKS (SMALL WORKS)
A58: 1200 DA
A59: 8.3 | B59: 2.2.5 | C59: SCHEDULED ITEMS
A60: 8.3.1 | C60: .01 | D60: Remove topsoil to nominal depth of 150mm , stockpile and maintain | F60: m2 | G60: 145 | I60: =G60*H60 -> 0
A61: 8.3.2 | C61: .02 | D61: Excavate for restricted foundation, footings and trenches in all materials and use for backfill or embankment or dispose. | F61: m3 | G61: 87 | I61: 0
A62: 8.3.4 | C62: .03 | D62: Importing, placing and compacting approved G4 material in layers of 150mm from commercial sources or from borrow pits to 95% MOD AASTHO. | F62: m3 | G62: 72.5 | I62: 0
C63: .04 | D63: Excavate for restricted trenches in compacted G4 material for raft foundation rib beams. Use for backfill or embankment or dispose. | F63: m3 | G63: 14.5 | I63: 0
C64: .05 | D64: Extra over item 8.3.2 above for:
C65: .06 | D65: .01 | E65: Intermediate excavation | F65: m³ | G65: 36.25 | I65: 0
C66: .07 | D66: Soil and Termite poisoning underneath building work as per SANS 10400 (Include certificates) | F66: m2 | G66: 145 | I66: 0
A68: SANS | C68: CONCRETE (STRUCTURAL)
A69: 1200 G
A70: 8.4 | C70: SCHEDULED CONCRETE ITEMS
A71: 8.4.3 | B71: 2.2.6 | C71: Strength concrete:
C72: .01 | D72: Class 20Mpa/19mm concrete in aprons / Stormwater Channel D55mm including rough formwork as in 8.2.1 | F72: m3 | G72: 3 | I72: 0
C73: .02 | D73: Class 25Mpa/19mm concrete in floors and rib beams | F73: m3 | G73: 75 | I73: 0
C74: .03 | D74: Class 25Mpa/19mm concrete in strip footings, including minor rough formwork for beam sides. | F74: m3 | G74: 10 | I74: 0
A76: SANS | C76: SCHEDULED REINFORCEMENT ITEMS
A77: 1200 H | B77: 2.2.7 | C77: High-tensile steel welded mesh and steel bars:
C78: .01 | D78: Ref No 617 mesh in concrete floor | F78: m2 | G78: 80 | I78: =G78*H78 -> 0
C79: .02 | D79: Ref No 311 mesh in concrete floor | F79: m2 | G79: 80 | I79: =G79*H79 -> 0
C80: .03 | D80: Ref No 200 mesh in concrete floor | F80: m2 | G80: 20 | I80: 0
C81: .04 | D81: Y12 high tensile steel bars | F81: kg | G81: 200 | I81: =G81*H81 -> 0
C82: .05 | D82: R8 high tensile steel bars | F82: kg | G82: 300 | I82: =G82*H82 -> 0
B83: 2.2.8 | C83: SCHEDULED FORMWORK ITEMS
A84: 8,2,1 | C84: .01 | D84: Rough vertical formwork to side of concrete foundations | F84: m2 | G84: 10 | I84: =G84*H84 -> 0
C85: .02 | D85: Smooth formwork to side of concrete channels | F85: m2 | G85: 5 | I85: =G85*H85 -> 0
C86: .03 | D86: Wooden Floating finishing | F86: m2 | G86: 75 | I86: 0
B87: 2.2.9 | C87: SCHEDULED STEEL COLUMN ITEMS
C88: .01 | D88: Supply and installation of 100 ø x 4 mm (3 m high)RHS column. The column to be tied into a laminated beam and concrete floor | F88: No | G88: 3 | I88: =G88*H88 -> 0
C90: BUILDING WORK
C91: Supply and install listed items in accordance with relevant standard. Rates include full installation and sundry items.
A92: BD.01 | B92: 2.2.10 | C92: Doors and windows :
C93: .01 | D93: Steel door frames:
D94: .01 | E94: 1,2 mm thick pressed steel door frame for door size 813 mm x 2 032 mm high suitable for 230 mm wall | F94: number | G94: 1 | I94: 0
C95: .02 | D95: Security Screen and Gates:
C96: .03 | D96: Steel window frames
E97: WO5 - Steel small payne window, opening outwards, Type 14-BH + 9-F/LT, window size 889mm wide x 1311mm, Galvanised, Including standard brass fittings and 4mm clear float glass | F97: number | G97: 5 | I97: 0
E98: WO6 - Steel small payne window, opening outwards, Type 4-BH, window size 889mm wide x 457mm, Galvanised, Including standard brass fittings and 4mm obscured glass | F98: number | G98: 8 | I98: 0
A99: BD.03 | B99: 2.2.11 | C99: Joinery:
C100: .01 | D100: Items measured by number:
A101: BD.03 | D101: .01 | E101: Type B - 2032 x 813 x 44mm Solid core hardwood panel door with commercial veneer finish | F101: number | G101: 1 | I101: =G101*H101 -> 0
A102: BD.04 | B102: 2.2.12 | C102: Ironmongery, steelwork, glass, wall finishings, etc:
C103: .01 | D103: Items measured by number:
D104: .01 | E104: Solid Art 390/13 4 Lever Mortice Lockset and satin chrome plated handles (External Doors) with 1 pair of brass cabin hooks | F104: number | G104: 1 | I104: 0
D105: .02 | E105: 38mm Diameter Door stop plugged and screwed to floor with 50mm long brass screw | F105: number | G105: 1 | I105: 0
D106: .03 | E106: 200mm x 200mm Terracota Airbrick or similar approved | F106: number | G106: 4 | I106: =G106*H106 -> 0
C107: .02 | D107: Items measured by linear meter:
D108: .01 | E108: 2x110mm wide pre cast lintel | F108: m | G108: 15 | I108: 0
D109: .02 | E109: External window cills - Roller course face brick set at an angle of 15 degrees; 375 micron embossed DPC below cill | F109: m | G109: 9 | I109: 0
D110: .03 | E110: Internal window cills - Everite Nutec fibre cement (Product no 031-509) complete with fixing lugs and selg tapping screws | F110: m | G110: 9 | I110: =G110*H110 -> 0
D111: .04 | E111: External cement plaster in beam filling | F111: m | G111: 35 | I111: =G111*H111 -> 0
A112: BD03 | D112: .05 | E112: Brickwork Reinforcement - 75mm (galvanized) | F112: m | G112: 0 | I112: =G112*H112 -> 0
D113: .06 | E113: Brickwork Reinforcement - 150mm (galvanized) | F113: m | G113: 350 | I113: =G113*H113 -> 0
C114: .03 | D114: Items measured by area:
D115: .01 | E115: 230 mm thick Stock brick walls - NFP type brick | F115: m2 | G115: =55+10 -> 65 | I115: 0
D116: .02 | E116: Extra over 230mm thick walls for face brick walls; Corobrik FBA walls ("Roan Satin") in stretcher bond with ruled joints and perpends | F116: m2 | G116: 55 | I116: 0
D117: .03 | E117: 230mm thick face brick walls; Corobrik FBA walls ("Roan Satin") in stretcher bond with ruled joints and perpends | F117: m2 | G117: 25 | I117: =G117*H117 -> 0
D118: .04 | E118: Internal cement plaster to walls | F118: m2 | G118: 55 | I118: =G118*H118 -> 0
D119: .05 | E119: Supply and Installation of 250x50 laminated beam. Beam to be measured on site. Beam to be manufactured in accordance SANS 10400 and 1460 | F119: m | G119: 8 | I119: =G119*H119 -> 0
C120: BE: FLOORS
A121: BE.01 | B121: 2.2.13 | C121: Floor screeds:
C122: .01 | D122: 30 mm thick screed with smooth finish | F122: m2 | G122: 75 | I122: 0
A123: BE.02 | B123: 2.2.14 | C123: Joinery:
C124: .01 | D124: Items measured by linear meter:
D125: .01 | E125: 19 mm x 76 mm hardwood skirting with quadrant bead | F125: m | G125: 35 | I125: 0
A126: BE.03 | B126: 2.2.15 | C126: Floor tiling and finishes, etc:
C127: .01 | D127: Items measured by area:
D128: .01 | E128: 250 micron damp proofing under solid floors | F128: m2 | G128: 75 | I128: 0
D129: .02 | E129: Vinyl Floor Tiling or similar approved | F129: m2 | G129: 60 | I129: 0
E130: FloorworX Superflex fully flexible vinyl floor sheeting 1,2m wide x 2mm thick in similar colour finish, manufactured in accordance with SANS 786:2000, laid in FloorworX No. 60 Plus acrylic adhesive spread with a notched trowel on suitably prepared subfloor (elsewhere specified) with a hygrometer reading showing a moisture content of less than 70%, with joints welded with a fully flexible coloured 'Marley Welding Rod' to provide a smooth, hygienic sealed finish and rolled with 68kg three section metal roller on completion. Upon completion, floor to be sealed with three coats of FloorX Silk Matt.
B131: 2.2.16 | C131: BH: FITTINGS
D132: .01 | E132: Chalk Board (4,7 m x 1,2 m) with ledge, or similar approved | F132: number | G132: 1 | I132: =G132*H132 -> 0
D133: .02 | E133: Pin Board (4,7 m x 0,9 m) with cork inner, velt cover and timber border, or similar approved | F133: number | G133: 1 | I133: =G133*H133 -> 0
C134: BJ: PAINT WORK
C135: NEW UNPAINTED SURFACES
A136: BJ.02 | B136: 2.2.17 | C136: Paint to various surfaces:
C137: .01 | D137: Plaster surfaces:
D138: .01 | E138: Prepare and apply one coat professional plaster primer and two coats acrylic PVA paint suitable for washing with a mild detergent and with a mat finish. Provide 1 coat alcaline resistant 100% pure acrylic fillercoat. Spread rate 6m square per liter.
E139: .01 Walls | F139: m2 | G139: 60 | I139: =G139*H139 -> 0
C140: .02 | D140: Fibre cement surfaces:
D141: .01 | E141: Exterior quality pure acrylic emulsion paint with Teflon:
E142: .01 Ceilings and cornices | F142: m2 | G142: 85 | I142: =G142*H142 -> 0
C143: .03 | D143: Steel surfaces:
D144: .01 | E144: Prepare surfaces, apply spot primer, one undercoat and two coats non-drip polyurethane, semi gloss, enamel paint:
E145: .02 Window burglar proofing or mentis expanded metal grid to steel frame in burglar proofing | F145: m2 | G145: 20 | I145: =G145*H145 -> 0
E146: .03 Door frames | F146: m2 | G146: 1 | I146: 0
C147: .03 | D147: .01 | E147: .06 Rails, Posts, Pipes, steel structures etc. not exceeding 50 mm diameter | F147: m | G147: 5 | I147: 0
E148: .08 Steel structures (Roof - If required) | F148: m2 | G148: 95 | I148: 0
C149: .06 | D149: Wood surfaces: | I149: 0
D150: .01 | E150: Protective and decorative solvent based polyurethane alkyd semi-gloss non-drip enamel paint: (Inside)
E151: .01 Doors | F151: m2 | G151: 2 | I151: 0
E152: .02 Skirtings and quadrant beads not exceeding 150 mm girth | F152: m | G152: 30 | I152: 0
D153: .02 | E153: Water resistant polyurethane clear matt varnish: (Outside)
E154: .01 Doors | F154: m2 | G154: 2 | I154: 0
E155: .02 Skirtings and quadrant beads not exceeding 150 mm girth | F155: m | G155: 10 | I155: 0
C156: BB: CARPENTRY FOR ROOFS | I156: 0
A157: BB.01 | B157: 2.2.18 | C157: Supply and install new items measured by length:
C158: .01 | D158: 225 x 10 mm Thick pressed fibre cement fascia, including painting, etc. | F158: m | G158: 20
C159: .02 | D159: 225 x 10 mm Thick fibre cemet barge board, including painting, etc. | F159: m | G159: 25 | I159: 0
C160: .03 | D160: 75 x 50 mm SAP purlins | F160: m | G160: 100 | I160: 0
C161: .04 | D161: Design, supply and install Wrought sloping SAP trusses for single classroom complete according to drawing 2426 - G05 | F161: Sum | G161: 1 | I161: 0
A162: BB.08 | B162: 2.2.19 | C162: Painting of existing members in overhangs:
C163: .01 | D163: Members with creosote (2 Coats) | F163: m | G163: 10 | I163: 0
A164: TOTAL STRUCTURAL AND BUILDING | I164: =SUM(I39:I163) -> 0
A165: SCHEDULE NO 2.3 : | C165: CONVENTIONAL FIRE FIGHTING EQUIPMENT
C166: GENERAL
A167: PJC 02 | B167: 2.3.1 | C167: Labeling of all conventional fire fighting equipment with identifying tags and recording of details in accordance with SANS 10400:
A168: PJC 06 | C168: .02 | D168: Fire extinguishers | F168: number | G168: 3 | I168: =G168*H168 -> 0
A169: PJC 10 | B169: 2.3.2 | C169: Signage for fire fighting equipment
C170: .01 | D170: Photo luminescent escape and fire fighting equipment signs installed complete with, aluminium frame, mountings, brackets, etc.
D171: .01 | E171: 190mm x 190mm | F171: number | G171: 2 | I171: =G171*H171 -> 0
D172: .02 | E172: 190mm x 384mm | F172: number | G172: 2 | I172: 0
D173: .03 | E173: 190mm x 578mm | F173: number | G173: 1 | I173: 0
C174: .02 | D174: Silk-screened escape and fire fighting equipment signs installed complete with aluminium frame, mountings, brackets, etc.
D175: .01 | E175: 190mm x 190mm | F175: number | G175: 2 | I175: =G175*H175 -> 0
D176: .02 | E176: 190mm x 384mm | F176: number | G176: 2 | I176: 0
D177: .03 | E177: 190mm x 578mm | F177: number | G177: 1 | I177: 0
C178: .03 | D178: Silk-screened fire fighting equipment signs installed behind backboards
D179: .01 | E179: 400mm x 666mm | F179: number | G179: 2 | I179: =G179*H179 -> 0
C180: DETAIL WORK
A181: PJC.06 | B181: 2.3.3 | C181: Supply and installation of fire extinguisher equipment:
C182: .01 | D182: 9 kg Dry chemical powder (STP) fire extinguisher | F182: number | G182: 1 | I182: =G182*H182 -> 0
C183: .02 | D183: 5kg Carbon dioxide fire extinguisher complete with 520 x 22mm thick timber backboard plugged to wall and varnished (SafeQuip, Chubb or similar approved) | F183: number | G183: 2 | I183: 0
C184: .03 | D184: Lockable, metal cabinet for fire extinguisher | F184: number | G184: 1 | I184: 0
A185: TOTAL PLUMBING, DRAINAGE, SEWER AND WATER | I185: =SUM(I167:I184) -> 0
A186: SCHEDULE NO 2.4 : | C186: AUXILIARY WORKS (moving of existing building)
B188: 2.4.1 | C188: Dismantle, Move and Re-asemble existing 6m x 6m mobile classroom (on site) | F188: Sum | G188: 1 | I188: =G188*H188 -> 0
A189: TOTAL AUXILIARY WORKS | B189: TOTAL PLUMBING AND DRAINAGE | I189: =I188 -> 0
A191: SUMMARY OF SCHEDULE OF QUANTITIES: MHLWAZINI HIGH SCHOOL - STANDARD SINGLE CLASSROOM A | I191: AMOUNT
A192: SCHEDULE NO 2.1 : | C192: PRELIMINARY AND GENERAL | I192: =I33 -> 5,000.00
A193: SCHEDULE NO 2.2 : | C193: STRUCTURAL AND BUILDING | I193: =I164 -> 0
A194: SCHEDULE NO 2.3 : | C194: =C165 -> CONVENTIONAL FIRE FIGHTING EQUIPMENT | I194: =I185 -> 0
A195: SCHEDULE NO 2.4 : | C195: AUXILIARY WORKS | I195: =I189 -> 0
A196: SUB TOTAL B: STANDARD SINGLE CLASSROOM A (carry to summary page) | I196: =SUM(I192:I195) -> 5,000.00

Sheet 3 Classroom B
A1: PAYMENT REFERS TO | B1: ITEM NO | C1: DESCRIPTION | F1: UNIT | G1: QUANTITY | H1: RATE | I1: AMOUNT
A2: 3: STANDARD SINGLE CLASS ROOM B
A3: SCHEDULE NO 3.1 : | C3: PRELIMINARY AND GENERAL
A4: SANS | B4: 3.1 | C4: GENERAL
A5: 1200A | B5: 3.1.1 | C5: Scheduled fixed - charge and value - related items:
C6: .01 | D6: Fixed prelimiary and general chages | F6: sum | G6: 1 | I6: =G6*H6 -> 0
B7: 3.1.2 | C7: Scheduled time-related items: | F7: Month | G7: 3 | I7: =G7*H7 -> 0
C8: TEMPORARY WORKS
B9: 3.1.3 | C9: Location and protection of existing services:
A10: 8.4 c | C10: .01 | D10: Excavate by hand to expose existing services | F10: m3 | G10: 100 | I10: =G10*H10 -> 0
B11: 3.1.4 | C11: Additional tests
C12: .01 | D12: Additional tests required by Engineer | F12: Prov sum | G12: 1 | I12: 5,000.00
C13: .02 | D13: Attendance and profit | F13: % | G13: =I12 -> 5,000.00 | I13: =G13*H13 -> 0
B14: 3.1.5 | C14: Update existing key plants | F14: sum | G14: 1 | I14: =G14*H14 -> 0
B15: 3.1.6 | C15: OCCUPATIONAL HEALTH AND SAFETY
C16: .01 | D16: Compliance with OHS Act and
D17: Construction Regulations 2003 | F17: sum | G17: 1 | I17: =G17*H17 -> 0
A18: SH01 | B18: 3.1.7 | C18: HIV/AIDS AWARENESS
C19: It is required of the Contractor to thoroughly study the Additional Specification SH: HIV / AIDS Requirements (PW 1544) of the Department that must be read together with and is deemed to be incorporated under this Section of the Bills of Quantities.
C20: Provision for pricing of HIV/AIDS awareness is made under the items hereafter and it is explicitly pointed out that all requirements of the aforementioned specification are deemed to be priced hereunder, as the said items represent the only method of measurement and no additional items or extras to the contract in this regard shall be entertained
C21: The Contractor must take note that compliance with the HIV/AIDS Specification is compulsory. In the event of partial or total non-compliance, the Representative/Agent, notwithstanding the provisions of Clause 52 of the General Conditions of Contract for Works of Civil Engineering Construction or any other clause to the contrary, reserves the right to delay issuing any progress payment certificate until the Contractor provides satisfactory proof of compliance.
C22: The Contractor shall not be entitled to any compensation of whatsoever nature, including interest, due to such delay of payment
A23: SH 07 | C23: .01 | D23: Awareness Compain | F23: sum | G23: 1 | I23: =G23*H23 -> 0
D24: Selection, appointment, briefing and making available of an Awareness Compain including provision of all relevant services.
A25: SH 04.01 | C25: .02 | D25: Awareness Workshops | F25: sum | G25: 1 | I25: =G25*H25 -> 0
D26: Selection and appointment of a competent Service Provider approved by the Representative/Agent, provision of a Service Provider Workshop Plan and a suitable venue, conducting of awareness workshops by means of traditional and/or modern multi-media techniques, including follow-up courses, making available all tuition material and performing assessment procedures.
C27: .03 | D27: Posters, Booklets, Videos, etc. | F27: sum | G27: 1 | I27: =G27*H27 -> 0
D28: Provision, displaying, maintaining and replacing when necessary of four plastic laminated posters, booklets and educational videos, etc. for the duration of the construction period.
A29: SH 05 | C29: .04 | D29: Access to Condoms | F29: sum | G29: 1 | I29: =G29*H29 -> 0
D30: Provision and maintenance of condom dispensers fixed in position, including male and female condoms, replenishing male and female condoms on a daily basis as required for the duration of the construction period.
A31: SH 08 | C31: .05 | D31: Monitoring | F31: sum | G31: 1 | I31: =G31*H31 -> 0
D32: Monitoring HIV/AIDS awareness of workers, providing the Representative/Agent with access to information including making available all reports, thoroughly completed and reflecting the correct information, for the duration of the construction period and close out.
A33: TOTAL PRELIMINARY AND GENERAL | B33: ="TOTAL "&$A$3&" CARRIED TO SUMMARY: GENERAL MAINTENANCE WORK" -> TOTAL SCHEDULE NO 3.1 : CARRIED TO SUMMARY: GENERAL MAINTENANCE WORK | I33: =SUM(I5:I32) -> 5,000.00
A34: SCHEDULE NO 3.2 : | C34: STRUCTURAL AND BUILDING
C35: BA : ROOFS
C36: CLADDING AND SHEETING
A37: BA.01 | B37: 3.2.1 | C37: Supply and install cladding and sheeting:
C38: .01 | D38: 0,6 mm Corrugated Chromakek Roof Sheeting (Colour to match existing buildings) @17'' on insulation on 76x50mm SA Pine purlins (Chromadek or similar approved)
D39: .01 | E39: Roof covering with pitches exceeding 15°, fixed to timber or steel purlins. | F39: m2 | G39: 80 | I39: =G39*H39 -> 0
C40: .02 | D40: Roof insulation
D41: .01 | E41: Roof insulation with Class 1 fire rating. Eviro-foil 201FR or similar approved | F41: m2 | G41: 80 | I41: =G41*H41 -> 0
A42: BA.06 | B42: 3.2.2 | C42: Supply and install sundry items, etc.:
C43: .01 | D43: 0,6 mm Chromadek metal ridge cap or with ridge closer to manufacturer spec.
D44: .01 | E44: Ridge flashing | F44: m | G44: 8 | I44: =G44*H44 -> 0
D45: .02 | E45: Gable flashing | F45: m | G45: 25 | I45: 0
A46: BA.08 | B46: 3.2.3 | C46: Supply and install rainwater goods:
C47: .01 | D47: 0,6 mm Thick seamless aluminium gutter and downpipe(complete):
D48: .01 | E48: 100 x 150 mm (6") self-supporting box gutter | F48: m | G48: 16 | I48: 0
D49: .02 | E49: 100 mm Down pipe (including sundries) | F49: m | G49: 12 | I49: 0
C50: BB: CARPENTRY
A51: BB.02 | B51: 3.2.4 | C51: Ceilings:
C52: .01 | D52: Gypsum board with metal H-profile jointing strips:
D53: .01 | E53: 6.4 mm ceilings | F53: m2 | G53: 50 | I53: 0
C54: .03 | D54: Gypsum cornices:
D55: .01 | E55: 76 mm gypsum coved cornices | F55: m | G55: 45 | I55: 0
A56: SANS | C56: EARTHWORKS (SMALL WORKS)
A57: 1200 DA
A58: 8.3 | B58: 3.2.5 | C58: SCHEDULED ITEMS
A59: 8.3.1 | C59: .01 | D59: Remove topsoil to nominal depth of 150mm , stockpile and maintain | F59: m2 | G59: 145 | I59: =G59*H59 -> 0
A60: 8.3.2 | C60: .02 | D60: Excavate for restricted foundation, footings and trenches in all materials and use for backfill or embankment or dispose. | F60: m3 | G60: 87 | I60: 0
A61: 8.3.4 | C61: .03 | D61: Importing, placing and compacting approved G4 material in layers of 150mm from commercial sources or from borrow pits to 95% MOD AASTHO. | F61: m3 | G61: 72.5 | I61: 0
C62: .04 | D62: Excavate for restricted trenches in compacted G4 material for raft foundation rib beams. Use for backfill or embankment or dispose. | F62: m3 | G62: 14.5 | I62: 0
C63: .05 | D63: Extra over item 8.3.2 above for:
C64: .06 | D64: .01 | E64: Intermediate excavation | F64: m³ | G64: 36.25 | I64: 0
C65: .07 | D65: Soil and Termite poisoning underneath building work as per SANS 10400 (Include certificates) | F65: m2 | G65: 145 | I65: 0
A67: SANS | C67: CONCRETE (STRUCTURAL)
A68: 1200 G
A69: 8.4 | C69: SCHEDULED CONCRETE ITEMS
A70: 8.4.3 | B70: 3.2.6 | C70: Strength concrete:
C71: .01 | D71: Class 20Mpa/19mm concrete in aprons / Stormwater Channel D55mm including rough formwork as in 8.2.1 | F71: m3 | G71: 3 | I71: 0
C72: .02 | D72: Class 25Mpa/19mm concrete in floors and rib beams | F72: m3 | G72: 75 | I72: 0
C73: .03 | D73: Class 25Mpa/19mm concrete in strip footings, including minor rough formwork for beam sides. | F73: m3 | G73: 10 | I73: 0
A74: SANS | C74: SCHEDULED REINFORCEMENT ITEMS
A75: 1200 H | B75: 3.2.7 | C75: High-tensile steel welded mesh and steel bars:
C76: .01 | D76: Ref No 617 mesh in concrete floor | F76: m2 | G76: 80 | I76: =G76*H76 -> 0
C77: .02 | D77: Ref No 311 mesh in concrete floor | F77: m2 | G77: 80 | I77: =G77*H77 -> 0
C78: .03 | D78: Ref No 200 mesh in concrete floor | F78: m2 | G78: 20 | I78: 0
C79: .04 | D79: Y12 high tensile steel bars | F79: kg | G79: 200 | I79: =G79*H79 -> 0
C80: .05 | D80: R8 high tensile steel bars | F80: kg | G80: 300 | I80: =G80*H80 -> 0
B81: 3.2.8 | C81: SCHEDULED FORMWORK ITEMS
A82: 8,2,1 | C82: .01 | D82: Rough vertical formwork to side of concrete foundations | F82: m2 | G82: 10 | I82: =G82*H82 -> 0
C83: .02 | D83: Smooth formwork to side of concrete channels | F83: m2 | G83: 5 | I83: =G83*H83 -> 0
C84: .03 | D84: Wooden Floating finishing | F84: m2 | G84: 75 | I84: 0
B85: 3.2.9 | C85: SCHEDULED STEEL COLUMN ITEMS
C86: .01 | D86: Supply and nstallation of 100 ø x 4 mm (3 m high)RHS column. The column to be tied into a laminated beam and concrete floor | F86: No | G86: 3 | I86: =G86*H86 -> 0
C88: BUILDING WORK
C89: Supply and install listed items in accordance with relevant standard. Rates include full installation and sundry items.
A90: BD.01 | B90: 3.2.10 | C90: Doors and windows :
C91: .01 | D91: Steel door frames:
D92: .01 | E92: 1,2 mm thick pressed steel door frame for door size 813 mm x 2 032 mm high suitable for 230 mm wall | F92: number | G92: 1 | I92: 0
C93: .02 | D93: Security Screen and Gates:
C94: .03 | D94: Steel window frames
E95: WO5 - Steel small payne window, opening outwards, Type 14-BH + 9-F/LT, window size 889mm wide x 1311mm, Galvanised, Including standard brass fittings and 4mm clear float glass | F95: number | G95: 5 | I95: 0
E96: WO6 - Steel small payne window, opening outwards, Type 4-BH, window size 889mm wide x 457mm, Galvanised, Including standard brass fittings and 4mm obscured glass | F96: number | G96: 8 | I96: 0
A97: BD.03 | B97: 3.2.11 | C97: Joinery:
C98: .01 | D98: Items measured by number:
A99: BD.03 | D99: .01 | E99: Type B - 2032 x 813 x 44mm Solid core hardwood panel door with commercial veneer finish | F99: number | G99: 1 | I99: =G99*H99 -> 0
A100: BD.04 | B100: 3.2.12 | C100: Ironmongery, steelwork, glass, wall finishings, etc:
C101: .01 | D101: Items measured by number:
D102: .01 | E102: Solid Art 390/13 4 Lever Mortice Lockset and satin chrome plated handles (External Doors) with 1 pair of brass cabin hooks | F102: number | G102: 1 | I102: 0
D103: .02 | E103: 38mm Diameter Door stop plugged and screwed to floor with 50mm long brass screw | F103: number | G103: 1 | I103: 0
D104: .03 | E104: 200mm x 200mm Terracota Airbrick or similar approved | F104: number | G104: 4 | I104: =G104*H104 -> 0
C105: .02 | D105: Items measured by linear meter:
D106: .01 | E106: 2x110mm wide pre cast lintel | F106: m | G106: 15 | I106: 0
D107: .02 | E107: External window cills - Roller course face brick set at an angle of 15 degrees; 375 micron embossed DPC below cill | F107: m | G107: 9 | I107: 0
D108: .03 | E108: Internal window cills - Everite Nutec fibre cement (Product no 031-509) complete with fixing lugs and selg tapping screws | F108: m | G108: 9 | I108: =G108*H108 -> 0
D109: .04 | E109: External cement plaster in beam filling | F109: m | G109: 35 | I109: =G109*H109 -> 0
A110: BD03 | D110: .05 | E110: Brickwork Reinforcement - 75mm (galvanized) | F110: m | G110: 0 | I110: =G110*H110 -> 0
D111: .06 | E111: Brickwork Reinforcement - 150mm (galvanized) | F111: m | G111: 350 | I111: =G111*H111 -> 0
C112: .03 | D112: Items measured by area: | I112: 0
D113: .01 | E113: 230 mm thick Stock brick walls - NFP type brick | F113: m2 | G113: =55+10 -> 65 | I113: 0
D114: .02 | E114: Extra over 230mm thick walls for face brick walls; Corobrik FBA walls ("Roan Satin") in stretcher bond with ruled joints and perpends | F114: m2 | G114: 55 | I114: 0
D115: .03 | E115: 230mm thick face brick walls; Corobrik FBA walls ("Roan Satin") in stretcher bond with ruled joints and perpends | F115: m2 | G115: 25 | I115: =G115*H115 -> 0
D116: .04 | E116: Internal cement plaster to walls | F116: m2 | G116: 55 | I116: =G116*H116 -> 0
D117: .05 | E117: Supply and Installation of 250x50 laminated beam. Beam to be measured on site. Beam to be manufactured in accordance SANS 10400 and 1460 | F117: m | G117: 8 | I117: =G117*H117 -> 0
C118: BE: FLOORS
A119: BE.01 | B119: 3.2.13 | C119: Floor screeds:
C120: .01 | D120: 30 mm thick screed with smooth finish | F120: m2 | G120: 75 | I120: 0
A121: BE.02 | B121: 3.2.14 | C121: Joinery:
C122: .01 | D122: Items measured by linear meter:
D123: .01 | E123: 19 mm x 76 mm hardwood skirting with quadrant bead | F123: m | G123: 35 | I123: 0
A124: BE.03 | B124: 3.2.15 | C124: Floor tiling and finishes, etc:
C125: .01 | D125: Items measured by area:
D126: .01 | E126: 250 micron damp proofing under solid floors | F126: m2 | G126: 75 | I126: 0
D127: .02 | E127: Vinyl Floor Tiling or similar approved | F127: m2 | G127: 60 | I127: 0
E128: FloorworX Superflex fully flexible vinyl floor sheeting 1,2m wide x 2mm thick in similar colour finish, manufactured in accordance with SANS 786:2000, laid in FloorworX No. 60 Plus acrylic adhesive spread with a notched trowel on suitably prepared subfloor (elsewhere specified) with a hygrometer reading showing a moisture content of less than 70%, with joints welded with a fully flexible coloured 'Marley Welding Rod' to provide a smooth, hygienic sealed finish and rolled with 68kg three section metal roller on completion. Upon completion, floor to be sealed with three coats of FloorX Silk Matt.
B129: 3.2.16 | C129: BH: FITTINGS
D130: .01 | E130: Chalk Board (4,7 m x 1,2 m) with ledge, or similar approved | F130: number | G130: 1 | I130: =G130*H130 -> 0
D131: .02 | E131: Pin Board (4,7 m x 0,9 m) with cork inner, velt cover and timber border, or similar approved | F131: number | G131: 1 | I131: =G131*H131 -> 0
C132: BJ: PAINT WORK
C133: NEW UNPAINTED SURFACES
A134: BJ.02 | B134: 3.2.17 | C134: Paint to various surfaces:
C135: .01 | D135: Plaster surfaces:
D136: .01 | E136: Prepare and apply one coat professional plaster primer and two coats acrylic PVA paint suitable for washing with a mild detergent and with a mat finish. Provide 1 coat alcaline resistant 100% pure acrylic fillercoat. Spread rate 6m square per liter.
E137: .01 Walls | F137: m2 | G137: 60 | I137: =G137*H137 -> 0
C138: .02 | D138: Fibre cement surfaces:
D139: .01 | E139: Exterior quality pure acrylic emulsion paint with Teflon:
E140: .01 Ceilings and cornices | F140: m2 | G140: 85 | I140: =G140*H140 -> 0
C141: .03 | D141: Steel surfaces:
D142: .01 | E142: Prepare surfaces, apply spot primer, one undercoat and two coats non-drip polyurethane, semi gloss, enamel paint:
E143: .02 Window burglar proofing or mentis expanded metal grid to steel frame in burglar proofing | F143: m2 | G143: 20 | I143: =G143*H143 -> 0
E144: .03 Door frames | F144: m2 | G144: 1 | I144: 0
C145: .03 | D145: .01 | E145: .06 Rails, Posts, Pipes, steel structures etc. not exceeding 50 mm diameter | F145: m | G145: 5 | I145: 0
E146: .08 Steel structures (Roof - If required) | F146: m2 | G146: 95 | I146: 0
C147: .06 | D147: Wood surfaces: | I147: 0
D148: .01 | E148: Protective and decorative solvent based polyurethane alkyd semi-gloss non-drip enamel paint: (Inside)
E149: .01 Doors | F149: m2 | G149: 2 | I149: 0
E150: .02 Skirtings and quadrant beads not exceeding 150 mm girth | F150: m | G150: 30 | I150: 0
D151: .02 | E151: Water resistant polyurethane clear matt varnish: (Outside)
E152: .01 Doors | F152: m2 | G152: 2 | I152: 0
E153: .02 Skirtings and quadrant beads not exceeding 150 mm girth | F153: m | G153: 10 | I153: 0
C154: BB: CARPENTRY FOR ROOFS | I154: 0
A155: BB.01 | B155: 3.2.18 | C155: Supply and install new items measured by length:
C156: .01 | D156: 225 x 10 mm Thick pressed fibre cement fascia, including painting, etc. | F156: m | G156: 20
C157: .02 | D157: 225 x 10 mm Thick fibre cemet barge board, including painting, etc. | F157: m | G157: 25 | I157: 0
C158: .03 | D158: 75 x 50 mm SAP purlins | F158: m | G158: 100 | I158: 0
C159: .04 | D159: Design, supply and install Wrought sloping SAP trusses for single classroom complete according to drawing 2426 - G05 | F159: Sum | G159: 1 | I159: 0
A160: BB.08 | B160: 3.2.19 | C160: Painting of existing members in overhangs:
C161: .01 | D161: Members with creosote (2 Coats) | F161: m | G161: 10 | I161: 0
A162: TOTAL STRUCTURAL AND BUILDING | I162: =SUM(I39:I161) -> 0
A163: SCHEDULE NO 3.3 : | C163: CONVENTIONAL FIRE FIGHTING EQUIPMENT
C164: GENERAL
A165: PJC 02 | B165: 3.3.1 | C165: Labeling of all conventional fire fighting equipment with identifying tags and recording of details in accordance with SANS 10400:
A166: PJC 06 | C166: .02 | D166: Fire extinguishers | F166: number | G166: 3 | I166: =G166*H166 -> 0
A167: PJC 10 | B167: 3.3.2 | C167: Signage for fire fighting equipment
C168: .01 | D168: Photo luminescent escape and fire fighting equipment signs installed complete with, aluminium frame, mountings, brackets, etc.
D169: .01 | E169: 190mm x 190mm | F169: number | G169: 2 | I169: =G169*H169 -> 0
D170: .02 | E170: 190mm x 384mm | F170: number | G170: 2 | I170: 0
D171: .03 | E171: 190mm x 578mm | F171: number | G171: 1 | I171: 0
C172: .02 | D172: Silk-screened escape and fire fighting equipment signs installed complete with aluminium frame, mountings, brackets, etc.
D173: .01 | E173: 190mm x 190mm | F173: number | G173: 2 | I173: =G173*H173 -> 0
D174: .02 | E174: 190mm x 384mm | F174: number | G174: 2 | I174: 0
D175: .03 | E175: 190mm x 578mm | F175: number | G175: 1 | I175: 0
C176: .03 | D176: Silk-screened fire fighting equipment signs installed behind backboards
D177: .01 | E177: 400mm x 666mm | F177: number | G177: 2 | I177: =G177*H177 -> 0
C178: DETAIL WORK
A179: PJC.06 | B179: 3.3.3 | C179: Supply and installation of fire extinguisher equipment:
C180: .01 | D180: 9 kg Dry chemical powder (STP) fire extinguisher | F180: number | G180: 1 | I180: =G180*H180 -> 0
C181: .02 | D181: 5kg Carbon dioxide fire extinguisher complete with 520 x 22mm thick timber backboard plugged to wall and varnished (SafeQuip, Chubb or similar approved) | F181: number | G181: 2 | I181: 0
C182: .03 | D182: Lockable, metal cabinet for fire extinguisher | F182: number | G182: 1 | I182: 0
A183: TOTAL PLUMBING, DRAINAGE, SEWER AND WATER | I183: =SUM(I165:I182) -> 0
A184: SCHEDULE NO 3.4 : | C184: AUXILIARY WORKS (moving of existing building)
B186: 3.4.1 | C186: Dismantle, Move and Re-asemble existing 6m x 6m mobile classroom (on site) | F186: Sum | G186: 1 | I186: =G186*H186 -> 0
A187: TOTAL AUXILIARY WORKS | B187: TOTAL PLUMBING AND DRAINAGE | I187: =I186 -> 0
A189: SUMMARY OF SCHEDULE OF QUANTITIES: MHLWAZINI HIGH SCHOOL - STANDARD SINGLE CLASSROOM B | I189: AMOUNT
A190: SCHEDULE NO 3.1 : | C190: PRELIMINARY AND GENERAL | I190: =I33 -> 5,000.00
A191: SCHEDULE NO 3.2 : | C191: STRUCTURAL AND BUILDING | I191: =I162 -> 0
A192: SCHEDULE NO 3.3 : | C192: =C163 -> CONVENTIONAL FIRE FIGHTING EQUIPMENT | I192: =I183 -> 0
A193: SCHEDULE NO 3.4 : | C193: AUXILIARY WORKS | I193: =I187 -> 0
A194: SUB TOTAL B: STANDARD SINGLE CLASSROOM B (carry to summary page) | I194: =SUM(I190:I193) -> 5,000.00

Sheet 4 Ablution block - Boys
A1: PAYMENT REFERS TO | B1: ITEM NO | C1: DESCRIPTION | F1: UNIT | G1: QUANTITY | H1: RATE | I1: AMOUNT
A2: 4: ABLUTION BLOCK BOYS
A3: SCHEDULE 4.1 | C3: PRELIMINARY AND GENERAL
A4: SANS | C4: GENERAL
A5: 1200A | B5: 4.1.1 | C5: Scheduled fixed - charge and value - related items:
C6: .01 | D6: Fixed prelimiary and general chages | F6: sum | G6: 1 | I6: =G6*H6 -> 0
B7: 4.1.2 | C7: Scheduled time-related items: | F7: Month | G7: 3 | I7: =G7*H7 -> 0
C8: TEMPORARY WORKS
B9: 4.1.3 | C9: Location and protection of existing services:
A10: 8.4 c | C10: .01 | D10: Excavate by hand to expose existing services | F10: m3 | G10: 150 | I10: =G10*H10 -> 0
B11: 4.1.4 | C11: Additional tests
C12: .01 | D12: Additional tests required by Engineer | F12: Prov sum | G12: 1 | I12: 20,000.00
C13: .02 | D13: Attendance and profit | F13: % | G13: =I12 -> 20,000.00 | I13: =G13*H13 -> 0
B14: 4.1.5 | C14: Update existing key plants | F14: sum | G14: 1 | I14: =G14*H14 -> 0
B15: 4.1.6 | C15: OCCUPATIONAL HEALTH AND SAFETY
C16: .01 | D16: Compliance with OHS Act and
D17: Construction Regulations 2003 | F17: sum | G17: 1 | I17: =G17*H17 -> 0
A18: SH01 | B18: 4.1.7 | C18: HIV/AIDS AWARENESS
C19: It is required of the Contractor to thoroughly study the Additional Specification SH: HIV / AIDS Requirements (PW 1544) of the Department that must be read together with and is deemed to be incorporated under this Section of the Bills of Quantities.
C20: Provision for pricing of HIV/AIDS awareness is made under the items hereafter and it is explicitly pointed out that all requirements of the aforementioned specification are deemed to be priced hereunder, as the said items represent the only method of measurement and no additional items or extras to the contract in this regard shall be entertained.
C21: The Contractor must take note that compliance with the HIV/AIDS Specification is compulsory. In the event of partial or total non-compliance, the Representative/Agent, notwithstanding the provisions of Clause 52 of the General Conditions of Contract for Works of Civil Engineering Construction or any other clause to the contrary, reserves the right to delay issuing any progress payment certificate until the Contractor provides satisfactory proof of compliance.
C22: The Contractor shall not be entitled to any compensation of whatsoever nature, including interest, due to such delay of payment
A23: SH 07 | C23: .01 | D23: Awareness Campaign | F23: sum | G23: 1 | I23: =G23*H23 -> 0
D24: Selection, appointment, briefing and making available of an Awareness Champion including provision of all relevant services.
A25: SH 04.01 | C25: .02 | D25: Awareness Workshops | F25: sum | G25: 1 | I25: =G25*H25 -> 0
D26: Selection and appointment of a competent Service Provider approved by the Representative/Agent, provision of a Service Provider Workshop Plan and a suitable venue, conducting of awareness workshops by means of traditional and/or modern multi-media techniques, including follow-up courses, making available all tuition material and performing assessment procedures.
A27: SH 04.03 | C27: .03 | D27: Posters, Booklets, Videos, etc. | F27: sum | G27: 1 | I27: =G27*H27 -> 0
D28: Provision, displaying, maintaining and replacing when necessary of four plastic laminated posters, booklets and educational videos, etc. for the duration of the construction period.
A29: SH 05 | C29: .04 | D29: Access to Condoms | F29: sum | G29: 1 | I29: =G29*H29 -> 0
D30: Provision and maintenance of condom dispensers fixed in position, including male and female condoms, replenishing male and female condoms on a daily basis as required for the duration of the construction period.
A31: SH 08 | C31: .05 | D31: Monitoring | F31: sum | G31: 1 | I31: =G31*H31 -> 0
D32: Monitoring HIV/AIDS awareness of workers, providing the Representative/Agent with access to information including making available all reports, thoroughly completed and reflecting the correct information, for the duration of the construction period and close out.
A33: TOTAL PRELIMINARY AND GENERAL | B33: ="TOTAL "&#REF!&" CARRIED TO SUMMARY: GENERAL MAINTENANCE WORK" ->  | I33: =SUM(I5:I32) -> 20,000.00
A34: SCHEDULE NO 4.2 : | C34: STRUCTURAL AND BUILDING
C35: BA : ROOFS
C36: CLADDING AND SHEETING
A37: BA.01 | B37: 4.2.1 | C37: Supply and install cladding and sheeting:
C38: .01 | D38: 0,6 mm Corrugated Chromakek Roof Sheeting (Colour to match existing buildings) @17'' on insulation on 76x50mm SA Pine purlins (Chromadek or similar approved)
D39: .01 | E39: Roof covering with pitches exceeding 15°, fixed to timber or steel purlins | F39: m2 | G39: 18 | I39: =G39*H39 -> 0
C40: 2 | D40: Roof insulation
A41: BA.07 | D41: .01 | E41: Roof insulation with Class 1 fire rating. Eviro-foil 201FR, Sisolation HF2 or similar approved | F41: m2 | G41: =G39 -> 18 | I41: =G41*H41 -> 0
A42: BA.06 | B42: 4.2.2 | C42: Supply and install sundry items, etc.:
C43: .01 | D43: 0,6 mm Chromadek metal ridge cap or with ridge closer to manufacturer spec.
D44: .01 | E44: Ridge flashing | F44: m | G44: 6 | I44: =G44*H44 -> 0
D45: .03 | E45: Gable flashing | F45: m | G45: 15 | I45: =G45*H45 -> 0
A46: BA.08 | B46: 4.2.3 | C46: Supply and install rainwater goods:
C47: .01 | D47: 0,6 mm Thick seamless aluminium gutter and downpipe(complete):
D48: .01 | E48: 100 x 150 mm (6") self-supporting box gutter | F48: m | G48: 11 | I48: =G48*H48 -> 0
D49: .02 | E49: 100 mm Down pipe | F49: m | G49: 6 | I49: =G49*H49 -> 0
D50: .03 | E50: 5000 litre Water Tank | F50: number | G50: 1 | I50: =G50*H50 -> 0
A52: SANS | C52: EARTHWORKS (SMALL WORKS)
A53: 1200 DA
A54: 8.3 | B54: 4.2.4 | C54: SCHEDULED ITEMS
A55: 8.3.1 | C55: .01 | D55: Remove topsoil to nominal depth of 150mm , stockpile and maintain | F55: m2 | G55: 45 | H55: 65.25 | I55: =G55*H55 -> 2,936.25
A56: 8.3.2 | C56: .02 | D56: Excavate for restricted foundation, footings and trenches in all materials and use for backfill or embankment or dispose. | F56: m3 | G56: 30 | H56: 43.50 | I56: =G56*H56 -> 1,305.00
A57: 8.3.4 | C57: .03 | D57: Importing, placing and compacting approved G4 material in layers of 150mm from commercial sources or from borrow pits to 95% MOD AASTHO. | F57: m3 | G57: 25 | H57: 36.25 | I57: =G57*H57 -> 906.25
C58: .04 | D58: Excavate for restricted trenches in compacted G4 material for raft foundation rib beams. Use for backfill or embankment or dispose. | F58: m3 | G58: 5 | H58: 7.25 | I58: =G58*H58 -> 36.25
C59: .05 | D59: Extra over item 8.3.2 above for:
D60: .01 | E60: Intermediate excavation | F60: m³ | G60: 5 | H60: 7.25 | I60: =G60*H60 -> 36.25
C61: .06 | D61: Soil and Termite poisoning underneath building work as per SANS 10400 (Include certificates) | F61: m2 | G61: =G55 -> 45 | H61: 65.25 | I61: =G61*H61 -> 2,936.25
A63: SANS | C63: CONCRETE (STRUCTURAL)
A64: 1200 G
A65: 8.4 | C65: SCHEDULED CONCRETE ITEMS
A66: 8.4.3 | B66: 4.2.6 | C66: Strength concrete:
C67: .01 | D67: Class 20Mpa/19mm concrete in aprons / Stormwater Channel D55mm including rough formwork as in 8.2.1 | F67: m3 | G67: 5 | I67: =G67*H67 -> 0
C68: .02 | D68: Class 25Mpa/19mm concrete in floors and rib beams | F68: m3 | G68: 10 | I68: =G68*H68 -> 0
C69: .03 | D69: Class 25Mpa/19mm concrete in strip footings, including minor rough formwork for beam sides. | F69: m3 | G69: 2 | I69: =G69*H69 -> 0
C70: .04 | D70: Supply and install 250 mm ø, 3m high, 25 Mpa concrete column in fibre cement casing, as supplied by Nutec or similar approved. | F70: No | G70: 0 | I70: =G70*H70 -> 0
A71: SANS | C71: SCHEDULED REINFORCEMENT ITEMS
A72: 1201 H | B72: 4.2.7 | C72: High-tensile steel welded mesh and steel bars:
C73: .01 | D73: Ref No 617 mesh in concrete floor | F73: m2 | G73: 30 | I73: =G73*H73 -> 0
C74: .02 | D74: Ref No 311 mesh in concrete floor | F74: m3 | G74: 30 | I74: =G74*H74 -> 0
C75: .03 | D75: Ref No 200 mesh in concrete floor | F75: m4 | G75: 10 | I75: 0
C76: .04 | D76: Y12 high tensile steel bars | F76: kg | G76: 250 | I76: =G76*H76 -> 0
C77: .05 | D77: R8 high tensile steel bars | F77: kg | G77: 100 | I77: =G77*H77 -> 0
A78: SANS
A79: 1200 G | B79: 4.2.8 | C79: SCHEDULED FORMWORK ITEMS
A80: 8,2,1 | C80: .01 | D80: Rough vertical formwork to side of concrete foundations | F80: m2 | G80: 10 | I80: =G80*H80 -> 0
C81: .02 | D81: Smooth formwork to side of concrete channels | F81: m2 | G81: 5 | I81: =G81*H81 -> 0
C82: .03 | D82: Wooden Floating finishing | F82: m2 | G82: 40 | I82: =G82*H82 -> 0
C83: BUILDING WORK
C84: Supply and install listed items in accordance with relevant standard. Rates include full installation and sundry items.
C85: BD: WALLS
A86: BD.01 | B86: 4.2.9 | C86: Doors and windows :
C87: .01 | D87: Steel door frames:
D88: .01 | E88: 1,2 mm thick pressed steel door frame for door size 813 mm x 2 032 mm high suitable for 230 mm thick wall | F88: number | G88: 1 | I88: =G88*H88 -> 0
C89: .02 | D89: Security Screen and Gates:
D90: .01 | E90: Galvanised Security Screen; inclusive of 2 x lockable standard size single gates (813 mm wide x 2032mm) to open 180 deg | F90: number | G90: 1 | I90: =G90*H90 -> 0
C91: .03 | D91: Steel window frames
D92: .01 | E92: Steel small payne window, opening outwards,Type NE 2,window size 1022mm wide x 654mm, Galvanised, Including standard brass fittings and 4mm clear float glassobscured glass | F92: number | G92: 2 | I92: =G92*H92 -> 0
A93: BD.03 | B93: 4.2.10 | C93: Joinery:
C94: .01 | D94: Items measured by number:
A95: BD.03 | D95: .01 | E95: Type E - 2032 x 813 x 44mm Hollow core hardwood panel door with commercial veneer finish | F95: number | G95: 1 | I95: =G95*H95 -> 0
D96: .02 | E96: Type F - 1550 x 610 x 44mm Hollow core hardwood panel toilet door with commercial veneer finish | F96: number | G96: 4 | I96: 0
A97: BD.04 | B97: 4.2.11 | C97: Ironmongery, steelwork, glass, wall finishings, etc:
C98: .01 | D98: Items measured by number:
D99: .01 | E99: Solid Art 390/13 4 Lever Mortice Lockset and satin chrome plated handles (Internal Doors) | F99: number | G99: 5 | I99: 0
D100: .02 | E100: 38mm Diameter Door stop plugged and screwed to floor with 50mm long brass screw | F100: number | G100: 5 | I100: 0
D101: .03 | E101: Stainless steel mirror, 300mm x 400mm Manufactured from 18/10 1 mm flat stainless steel with high polis finish and with 4 drillings for no. 8 mirror screw; Franke item no CRH 401 or similar | F101: number | G101: 4 | I101: 0
D102: .04 | E102: Soap dispenser, surface mounted, manufactured from 18/10 1.2mm stainless steel, satin finish with cylinder lock, Franke item no STRX 618 or similar | F102: number | G102: 4 | I102: 0
D103: .05 | E103: Toilet Roll holder, Surface mounted, manufactured from 18/10 stainless steel, satin finish with cylinder lock, Franke item STRX 671 or similar | F103: number | G103: 4 | I103: 0
D104: .06 | E104: Paper towel dispenser, Surface mounted, manufactured from 18/10 1.2mm Stainless steel, satin finish with cylinder lock; Franke items no STRX 600 or similar | F104: number | G104: 2 | I104: 0
D105: .07 | E105: 150mm Natural Anodized Aluminium male sign type B2313 or similar approved | F105: number | G105: 2 | I105: 0
D106: .08 | E106: 150mm Natural Anodized Aluminium female sign type B2314 or similar approved | F106: number | G106: 2 | I106: 0
D107: .09 | E107: 200x300 Glass Brickor Similar approved | F107: number | G107: 4 | I107: 0
D108: .10 | E108: 200x300 Ventilation / Airbrick or Similar approved | F108: number | G108: 4 | I108: 0
C109: .02 | D109: Items measured by linear meter:
D110: .01 | E110: 2x110mm wide pre cast lintel | F110: m | G110: 20 | I110: 0
D111: .02 | E111: External window cills - Roller course face brick set at an angle of 15 degrees; 375 micron embossed DPC below cill | F111: m | G111: 5 | I111: 0
D112: .03 | E112: Internal window cills - Everite Nutec fibre cement (Product no 031-509) complete with fixing lugs and selg tapping screws | F112: m | G112: 5 | I112: 0
D113: .04 | E113: External cement plaster in beam filling | F113: m | G113: 15 | I113: 0
A114: BD03 | D114: .05 | E114: Brickwork Reinforcement - 75mm (galvanized) | F114: m | G114: 90 | I114: =G114*H114 -> 0
D115: .06 | E115: Brickwork Reinforcement - 150mm (galvanized) | F115: m | G115: 300 | I115: =G115*H115 -> 0
C116: .03 | D116: Items measured by area:
D117: .01 | E117: 6mm thick white glazed wall tiles to existing painted or plastered walls as approved by the Engineer | F117: m2 | G117: 10 | I117: 0
D118: .02 | E118: 230 mm thick Stock brick walls - NFP type brick | F118: m2 | G118: 70 | I118: =G118*H118 -> 0
D119: .03 | E119: 110 mm thick Slock brick walls - NFP type brick | F119: m2 | G119: 20 | I119: 0
D120: .04 | E120: Extra over 230mm thick brick walls for face brick walls; Corobrik FBA walls ("Roan Satin") in stretcher bond with ruled joints and perpends | F120: m2 | G120: 60 | I120: 0
D121: .05 | E121: 230mm thick face brick walls; Corobrik FBA walls ("Roan Satin") in stretcher bond with ruled joints and perpends | F121: m2 | G121: 10 | I121: =G121*H121 -> 0
D122: .06 | E122: Internal cement plaster to walls | F122: m2 | G122: 85 | I122: =G122*H122 -> 0
C123: BE: FLOORS
A124: BE.01 | B124: 4.2.12 | C124: Floor screeds:
C125: .01 | D125: 30 mm thick smooth screed finish | F125: m2 | G125: 45 | I125: =G125*H125 -> 0
A126: BE.02 | B126: 4.2.13 | C126: Joinery:
C127: .01 | D127: Items measured by linear meter:
D128: .01 | E128: 19 mm x 76 mm hardwood skirting with quadrant bead | F128: m | G128: 35 | I128: =G128*H128 -> 0
A129: BE.03 | B129: 4.2.14 | C129: Floor tiling and finishes, etc:
C130: .01 | D130: Items measured by area:
D131: .01 | E131: 250 micron damp proofing under solid floors / surface beds | F131: m2 | G131: =G125 -> 45 | I131: =G131*H131 -> 0
D132: .02 | E132: Vinyl Floor Tiling or similar approved | F132: m2 | G132: 0 | I132: =G132*H132 -> 0
E133: FloorworX Superflex fully flexible vinyl floor sheeting 1,2m wide x 2mm thick in similar colour finish, manufactured in accordance with SANS 786:2000, laid in FloorworX No. 60 Plus acrylic adhesive spread with a notched trowel on suitably prepared subfloor (elsewhere specified) with a hygrometer reading showing a moisture content of less than 70%, with joints welded with a fully flexible coloured 'Marley Welding Rod' to provide a smooth, hygienic sealed finish and rolled with 68kg three section metal roller on completion. Upon completion, floor to be sealed with three coats of FloorX Silk Matt.
C134: BJ: PAINT WORK
C135: NEW UNPAINTED SURFACES
A136: BJ.02 | B136: 4.2.15 | C136: Paint to various surfaces:
C137: .01 | D137: Plaster surfaces:
D138: .01 | E138: Prepare and apply one coat professional plaster primer and two coats acrylic PVA paint suitable for washing with a mild detergent and with a mat finish. Provide 1 coat alcaline resistant 100% pure acrylic fillercoat. Spread rate 6m square per liter.
E139: .01 Walls | F139: m2 | G139: 85 | I139: =G139*H139 -> 0
C140: .02 | D140: Steel surfaces:
D141: .01 | E141: Prepare surfaces, apply spot primer, one undercoat and two coats non-drip polyurethane, semi gloss, enamel paint:
E142: .01 Window burglar proofing or mentis expanded metal grid to steel frame in burglar proofing | F142: m2 | G142: 2 | I142: =G142*H142 -> 0
E143: .02 Door Frames (including Primer) | F143: m3 | G143: 2 | I143: =G143*H143 -> 0
E144: .03 Security gates (Including Primer) | F144: m2 | G144: 4 | I144: =G144*H144 -> 0
A145: BJ.02 | B145: 4.2.16 | C145: .01 | D145: .01 | E145: .01Rails, Posts, Pipes, steel structures etc. exceeding 50 mm dia not exceeding 110 mm diameter | F145: m | G145: 20 | I145: =G145*H145 -> 0
E146: .02 Steel structures (Roof) - If required. | F146: m2 | G146: 25 | I146: 0
C147: .02 | D147: Wood surfaces:
D148: .01 | E148: Protective and decorative solvent based polyurethane alkyd semi-gloss non-drip enamel paint: (Inside)
E149: .01 Doors | F149: m2 | G149: 25 | I149: 0
E150: .02 Skirtings and quadrant beads not exceeding 150 mm girth | F150: m | G150: 40 | I150: 0
C151: BB: CARPENTRY FOR ROOFS
A152: BB.01 | B152: 4.2.17 | C152: Supply and install new items measured by length:
C153: .01 | D153: 225 x 10 mm Thick Nutec pressed fibre cement fascia or similar approved (including painting, etc) | F153: m | G153: 10 | I153: 0
C154: .02 | D154: 275 x 80 mm Thick Nutec fibre cement barge board, or similar approved (including painting, etc). | F154: m | G154: 12 | I154: 0
C155: .03 | D155: 75 x 50 mm SAP purlins | F155: m | G155: 30 | I155: 0
C156: .04 | D156: Design, supply and install Wrought sloping SAP trusses for administration building complete according to drawing 2426 - G07(including painting with creaosote and wall plate) | F156: Sum | G156: 1 | I156: 0
A157: BB.08 | B157: 4.2.18 | C157: Painting of existing members in overhangs:
C158: .01 | D158: Members with creosote (min 2 coats) | F158: m | G158: 20 | I158: 0
A159: TOTAL STRUCTURAL AND BUILDING | I159: =SUM(I39:I158) -> 8,156.25
A160: SCHEDULE NO 4.3 : | C160: PLUMBING, DRAINAGE, SEWER AND BULK WATER
A161: PAA.05 | B161: 4.3.1 | C161: Supply and installation of sanitary ware and brassware:
C162: .01 | D162: Water closets:
D163: .01 | E163: 360mm x 405mm high Vitreous china WC washdown pan with enlarged pedestal. | F163: number | G163: 4 | I163: =G163*H163 -> 0
D164: .02 | E164: Vitreous china WC cistern - white 9 liters complete with lid and fitments | F164: number | G164: 4 | I164: =G164*H164 -> 0
D165: .03 | E165: 100 mm ø PVC pan connector | F165: number | G165: 4 | I165: 0
D166: .04 | E166: 15 mm ø CP ball-o-stop valve with CP flexi tail pipe to WC cistern | F166: number | G166: 4 | I166: 0
D167: .05 | E167: Heavy duty white buckalite type toilet seat and cover with CP hinge and spindle | F167: number | G167: 4 | I167: 0
C168: .02 | D168: Wash hand basins:
D169: .01 | E169: Vitreous china 520 x 415mm rounded wall mounted wash hand basin - white | F169: number | G169: 4 | I169: 0
D170: .02 | E170: Flexi rubber P-trap | F170: number | G170: 8 | I170: 0
D171: .03 | E171: 15 mm ø CP pillar taps SABS 226 Type 1 (BS 5412), JASWIC Listed | F171: number | G171: 8 | I171: 0
D172: .04 | E172: 15 mm ø flexi pipe tailpipe connections to pillar taps including 15mm CP ball-o-stop valve | F172: number | G172: 8 | I172: 0
C173: .03 | D173: Urinal
D174: .01 | E174: Vitreous chine wall hung urinal with top inlet including fittings. | F174: number | G174: 4 | I174: 0
D175: .02 | E175: 3/4" 'Flushmaster Junior' Urinal Flush valve, CP, exposed type with integral ball-o-stop valve and wall plate | F175: number | G175: 4 | I175: 0
D176: .03 | E176: Bottle trap with 75mm deep re-seal and adjustable telescopic pipe. | F176: number | G176: 4 | I176: 0
A177: PAA.06 | B177: 4.3.2 | C177: Installation of above ground sanitary drainage piping system:
C178: .01 | D178: uPVC soil and waste pipes:
D179: .01 | E179: 110 mm ø pipe fixed to walls and soffits | F179: m | G179: 60 | I179: =G179*H179 -> 0
C180: .02 | D180: uPVC soil and waste pipe fittings:
D181: .01 | E181: 110 mm dia plain bend 87.5º | F181: number | G181: 20 | I181: 0
D182: .04 | E182: 110 mm dia access bend 135º | F182: number | G182: 4 | I182: 0
D183: .05 | E183: 110 mm junction plain 87.5º | F183: number | G183: 4 | I183: 0
D184: .06 | E184: 110 mm junction access heel 87.5º | F184: number | G184: 8 | I184: 0
A185: PAA.06 | B185: 4.3.3 | C185: Supply and installation of underground sanitary drainage pipes:
C186: .01 | D186: Pipe trench excavations, bedding and backfilling:
D187: .01 | E187: Excavate in all materials for pipe trenches to depth of 1100 mm x 600 mm wide | F187: m³ | G187: 35 | I187: =G187*H187 -> 0
D188: .02 | E188: Supply and installation of pipe bedding 400mm thick river sand | F188: m³ | G188: 15 | I188: =G188*H188 -> 0
D189: .03 | E189: Backfilling and compacting to 93% modified AASTHO density with selected material | F189: m³ | G189: 15 | I189: =G189*H189 -> 0
C190: .02 | D190: PVC-U Solid wall sewer pipes Class 34 - 300 KPA to SABS 791 specifications
D191: .01 | E191: 160 mm dia | F191: m | G191: 50 | I191: =G191*H191 -> 0
C192: .03 | D192: Cleaning eyes:
D193: .01 | E193: 160 mm ø inline cleaning eye, constructed complete with Square inspection eye cast iron cover and frame Type 14A (SANS 558) daylight opening size 295 x 295mm and 500 x 500 x 75mm thick concrete encasement | F193: number | G193: 3 | I193: 0
A194: PAA.07 | B194: 4.3.4 | C194: Supply and installation of domestic water piping installation:
C195: .01 | D195: Copper piping Class 0 SABS 460 with capillary soldered type joints for cold-water piping installed in voids inclusive of bracketing:
D196: .01 | E196: 22 mm ø including fittings | F196: m | G196: 15 | I196: =G196*H196 -> 0
D197: .02 | E197: 15 mm ø including fittings | F197: m | G197: 15 | I197: 0
C198: .04 | D198: Supply and installation of Class 6 pressure HDPE piping, including fittings, jointing and testing:
D199: .01 | E199: 20 mm ø HDPE pipe, including fittings | F199: m | G199: 50 | I199: 0
C200: .05 | D200: Replace 20 mm ø shut-off ball-o-stop valve | F200: number | G200: 2 | I200: 0
B201: 4.3.5 | C201: Manhole covers and grid inlets:
A202: CF.01.04.02 | C202: .01 | D202: Manholes and inspection chambers
... 28 more rows

Sheet 5 Ablution block - Girls
A1: PAYMENT REFERS TO | B1: ITEM NO | C1: DESCRIPTION | F1: UNIT | G1: QUANTITY | H1: RATE | I1: AMOUNT
A2: 5: ABLUTION BLOCK GIRLS
A3: SCHEDULE 5.1 | C3: PRELIMINARY AND GENERAL
A4: SANS | C4: GENERAL
A5: 1200A | B5: 5.1.1 | C5: Scheduled fixed - charge and value - related items:
C6: .01 | D6: Fixed prelimiary and general chages | F6: sum | G6: 1 | I6: =G6*H6 -> 0
B7: 5.1.2 | C7: Scheduled time-related items: | F7: Month | G7: 3 | I7: =G7*H7 -> 0
C8: TEMPORARY WORKS
B9: 5.1.3 | C9: Location and protection of existing services:
A10: 8.4 c | C10: .01 | D10: Excavate by hand to expose existing services | F10: m3 | G10: 150 | I10: =G10*H10 -> 0
B11: 5.1.4 | C11: Additional tests
C12: .01 | D12: Additional tests required by Engineer | F12: Prov sum | G12: 1 | I12: 20,000.00
C13: .02 | D13: Attendance and profit | F13: % | G13: =I12 -> 20,000.00 | I13: =G13*H13 -> 0
B14: 5.1.5 | C14: Update existing key plants | F14: sum | G14: 1 | I14: =G14*H14 -> 0
B15: 5.1.6 | C15: OCCUPATIONAL HEALTH AND SAFETY
C16: .01 | D16: Compliance with OHS Act and
D17: Construction Regulations 2003 | F17: sum | G17: 1 | I17: =G17*H17 -> 0
A18: SH01 | B18: 5.1.7 | C18: HIV/AIDS AWARENESS
C19: It is required of the Contractor to thoroughly study the Additional Specification SH: HIV / AIDS Requirements (PW 1544) of the Department that must be read together with and is deemed to be incorporated under this Section of the Bills of Quantities.
C20: Provision for pricing of HIV/AIDS awareness is made under the items hereafter and it is explicitly pointed out that all requirements of the aforementioned specification are deemed to be priced hereunder, as the said items represent the only method of measurement and no additional items or extras to the contract in this regard shall be entertained.
C21: The Contractor must take note that compliance with the HIV/AIDS Specification is compulsory. In the event of partial or total non-compliance, the Representative/Agent, notwithstanding the provisions of Clause 52 of the General Conditions of Contract for Works of Civil Engineering Construction or any other clause to the contrary, reserves the right to delay issuing any progress payment certificate until the Contractor provides satisfactory proof of compliance.
C22: The Contractor shall not be entitled to any compensation of whatsoever nature, including interest, due to such delay of payment
A23: SH 07 | C23: .01 | D23: Awareness Campaign | F23: sum | G23: 1 | I23: =G23*H23 -> 0
D24: Selection, appointment, briefing and making available of an Awareness Champion including provision of all relevant services.
A25: SH 04.01 | C25: .02 | D25: Awareness Workshops | F25: sum | G25: 1 | I25: =G25*H25 -> 0
D26: Selection and appointment of a competent Service Provider approved by the Representative/Agent, provision of a Service Provider Workshop Plan and a suitable venue, conducting of awareness workshops by means of traditional and/or modern multi-media techniques, including follow-up courses, making available all tuition material and performing assessment procedures.
A27: SH 04.03 | C27: .03 | D27: Posters, Booklets, Videos, etc. | F27: sum | G27: 1 | I27: =G27*H27 -> 0
D28: Provision, displaying, maintaining and replacing when necessary of four plastic laminated posters, booklets and educational videos, etc. for the duration of the construction period.
A29: SH 05 | C29: .04 | D29: Access to Condoms | F29: sum | G29: 1 | I29: =G29*H29 -> 0
D30: Provision and maintenance of condom dispensers fixed in position, including male and female condoms, replenishing male and female condoms on a daily basis as required for the duration of the construction period.
A31: SH 08 | C31: .05 | D31: Monitoring | F31: sum | G31: 1 | I31: =G31*H31 -> 0
D32: Monitoring HIV/AIDS awareness of workers, providing the Representative/Agent with access to information including making available all reports, thoroughly completed and reflecting the correct information, for the duration of the construction period and close out.
A33: TOTAL PRELIMINARY AND GENERAL | B33: ="TOTAL "&#REF!&" CARRIED TO SUMMARY: GENERAL MAINTENANCE WORK" ->  | I33: =SUM(I5:I32) -> 20,000.00
A34: SCHEDULE NO 5.2 : | C34: STRUCTURAL AND BUILDING
C35: BA : ROOFS
C36: CLADDING AND SHEETING
A37: BA.01 | B37: 5.2.1 | C37: Supply and install cladding and sheeting:
C38: .01 | D38: 0,6 mm Corrugated Chromakek Roof Sheeting (Colour to match existing buildings) @17'' on insulation on 76x50mm SA Pine purlins (Chromadek or similar approved)
D39: .01 | E39: Roof covering with pitches exceeding 15°, fixed to timber or steel purlins | F39: m2 | G39: 40 | I39: =G39*H39 -> 0
C40: 2 | D40: Roof insulation
A41: BA.07 | D41: .01 | E41: Roof insulation with Class 1 fire rating. Eviro-foil 201FR, Sisolation HF2 or similar approved | F41: m2 | G41: =G39 -> 40 | I41: =G41*H41 -> 0
A42: BA.06 | B42: 5.2.2 | C42: Supply and install sundry items, etc.:
C43: .01 | D43: 0,6 mm Chromadek metal ridge cap or with ridge closer to manufacturer spec.
D44: .01 | E44: Ridge flashing | F44: m | G44: 7.5 | I44: =G44*H44 -> 0
D45: .03 | E45: Gable flashing | F45: m | G45: 15 | I45: =G45*H45 -> 0
A46: BA.08 | B46: 5.2.3 | C46: Supply and install rainwater goods:
C47: .01 | D47: 0,6 mm Thick seamless aluminium gutter and downpipe(complete):
D48: .01 | E48: 100 x 150 mm (6") self-supporting box gutter | F48: m | G48: 15 | I48: =G48*H48 -> 0
D49: .02 | E49: 100 mm Down pipe | F49: m | G49: 7 | I49: =G49*H49 -> 0
D50: .03 | E50: 5000 litre Water Tanks | F50: number | G50: 1 | I50: =G50*H50 -> 0
A51: SANS | C51: EARTHWORKS (SMALL WORKS)
A52: 1200 DA
A53: 8.3 | B53: 5.2.4 | C53: SCHEDULED ITEMS
A54: 8.3.1 | C54: .01 | D54: Remove topsoil to nominal depth of 150mm , stockpile and maintain | F54: m2 | G54: 50 | H54: 72.50 | I54: =G54*H54 -> 3,625.00
A55: 8.3.2 | C55: .02 | D55: Excavate for restricted foundation, footings and trenches in all materials and use for backfill or embankment or dispose. | F55: m3 | G55: 35 | H55: 50.75 | I55: =G55*H55 -> 1,776.25
A56: 8.3.4 | C56: .03 | D56: Importing, placing and compacting approved G4 material in layers of 150mm from commercial sources or from borrow pits to 95% MOD AASTHO. | F56: m3 | G56: 25 | H56: 36.25 | I56: =G56*H56 -> 906.25
C57: .04 | D57: Excavate for restricted trenches in compacted G4 material for raft foundation rib beams. Use for backfill or embankment or dispose. | F57: m3 | G57: 7 | H57: 10.15
C58: .05 | D58: Extra over item 8.3.2 above for:
D59: .01 | E59: Intermediate excavation | F59: m³ | G59: 10 | H59: 14.50 | I59: =G59*H59 -> 145.00
C60: .06 | D60: Soil and Termite poisoning underneath building work as per SANS 10400 (Include certificates) | F60: m2 | G60: =G54 -> 50 | H60: 72.50 | I60: =G60*H60 -> 3,625.00
A61: SANS | C61: CONCRETE (STRUCTURAL)
A62: 1200 G
A63: 8.4 | C63: SCHEDULED CONCRETE ITEMS
A64: 8.4.3 | B64: 5.2.5 | C64: Strength concrete:
C65: .01 | D65: Class 15Mpa/19mm concrete in aprons / Stormwater Channel D55mm including rough formwork as in 8.2.1 | F65: m3 | G65: 5 | I65: =G65*H65 -> 0
C66: .02 | D66: Class 25Mpa/19mm concrete in floors and rib beams | F66: m3 | G66: 15 | I66: =G66*H66 -> 0
C67: .03 | D67: Class 15Mpa/19mm concrete in strip footings, including minor rough formwork for beam sides. | F67: m3 | G67: 2 | I67: =G67*H67 -> 0
C68: .04 | D68: Supply and install 250 mm ø, 3m high, 25 Mpa concrete column in fibre cement casing, as supplied by Nutec or similar approved. | F68: No | G68: 0 | I68: =G68*H68 -> 0
A69: SANS | C69: SCHEDULED REINFORCEMENT ITEMS
A70: 1200 H
B71: 5.2.6 | C71: High-tensile steel welded mesh and steel bars:
C72: .01 | D72: Ref No 617 mesh in concrete floor | F72: m2 | G72: 40 | I72: =G72*H72 -> 0
C73: .02 | D73: Ref No 311 mesh in concrete floor | F73: m3 | G73: 40 | I73: =G73*H73 -> 0
C74: .03 | D74: Ref No 200 mesh in concrete floor | F74: m4 | G74: 12 | I74: 0
C75: .04 | D75: Y12 high tensile steel bars | F75: kg | G75: 250 | I75: =G75*H75 -> 0
C76: .05 | D76: R8 high tensile steel bars | F76: kg | G76: 100 | I76: =G76*H76 -> 0
A77: SANS | B77: 5.2.7 | C77: SCHEDULED FORMWORK ITEMS
A78: 1200 G | C78: .01 | D78: Rough vertical formwork to side of concrete foundations | F78: m2 | G78: 15 | I78: =G78*H78 -> 0
A79: 8.2 | C79: .02 | D79: Smooth formwork to side of concrete channels | F79: m2 | G79: 10 | I79: =G79*H79 -> 0
A80: 8,2,1 | C80: .03 | D80: Wooden Floating finishing | F80: m2 | G80: 45 | I80: =G80*H80 -> 0
C81: BUILDING WORK
C82: Supply and install listed items in accordance with relevant standard. Rates include full installation and sundry items.
C83: BD: WALLS
A84: BD.01 | B84: 5.2.8 | C84: Doors and windows :
C85: .01 | D85: Steel door frames:
D86: .01 | E86: 1,2 mm thick pressed steel door frame for door size 813 mm x 2 032 mm high suitable for 230 mm thick wall | F86: number | G86: 1 | I86: =G86*H86 -> 0
C87: .02 | D87: Security Screen and Gates:
D88: .01 | E88: Galvanised Security Screen; inclusive of 2 x lockable standard size single gates (813 mm wide x 2032mm) to open 180 deg | F88: number | G88: 1 | I88: =G88*H88 -> 0
C89: .03 | D89: Steel window frames
D90: .01 | E90: Steel small payne window, opening outwards,Type NE 2,window size 1022mm wide x 654mm, Galvanised, Including standard brass fittings and 4mm clear float glassobscured glass | F90: number | G90: 2 | I90: =G90*H90 -> 0
A91: BD.03 | B91: 5.2.9 | C91: Joinery:
C92: .01 | D92: Items measured by number:
A93: BD.03 | D93: .01 | E93: Type E - 2032 x 813 x 44mm Hollow core hardwood panel door with commercial veneer finish | F93: number | G93: 1 | I93: =G93*H93 -> 0
D94: .02 | E94: Type F - 1550 x 610 x 44mm Hollow core hardwood panel toilet door with commercial veneer finish | F94: number | G94: 8 | I94: 0
A95: BD.04 | B95: 5.2.10 | C95: Ironmongery, steelwork, glass, wall finishings, etc:
C96: .01 | D96: Items measured by number:
D97: .01 | E97: Solid Art 390/13 4 Lever Mortice Lockset and satin chrome plated handles (Internal Doors) | F97: number | G97: 9 | I97: 0
D98: .02 | E98: 38mm Diameter Door stop plugged and screwed to floor with 50mm long brass screw | F98: number | G98: 9 | I98: 0
D99: .03 | E99: Stainless steel mirror, 300mm x 400mm Manufactured from 18/10 1 mm flat stainless steel with high polis finish and with 4 drillings for no. 8 mirror screw; Franke item no CRH 401 or similar | F99: number | G99: 6 | I99: 0
D100: .04 | E100: Soap dispenser, surface mounted, manufactured from 18/10 1.2mm stainless steel, satin finish with cylinder lock, Franke item no STRX 618 or similar | F100: number | G100: 6 | I100: 0
D101: .05 | E101: Toilet Roll holder, Surface mounted, manufactured from 18/10 stainless steel, satin finish with cylinder lock, Franke item STRX 671 or similar | F101: number | G101: 6 | I101: 0
D102: .06 | E102: Paper towel dispenser, Surface mounted, manufactured from 18/10 1.2mm Stainless steel, satin finish with cylinder lock; Franke items no STRX 600 or similar | F102: number | G102: 4 | I102: 0
D103: .07 | E103: 150mm Natural Anodized Aluminium female sign type B2313 or similar approved | F103: number | G103: 2 | I103: 0
D104: .08 | E104: 150mm Natural Anodized Aluminium female sign type B2314 or similar approved | F104: number | G104: 2 | I104: 0
D105: .09 | E105: 200x300 Glass Brick or Similar approved | F105: number | G105: 8 | I105: 0
D106: .10 | E106: 200x300 Ventilation / Airbrick or Similar approved | F106: number | G106: 8 | I106: 0
C107: .02 | D107: Items measured by linear meter:
D108: .01 | E108: 2x110mm wide pre cast lintel | F108: m | G108: 20 | I108: 0
D109: .02 | E109: External window cills - Roller course face brick set at an angle of 15 degrees; 375 micron embossed DPC below cill | F109: m | G109: 3 | I109: 0
D110: .03 | E110: Internal window cills - Everite Nutec fibre cement (Product no 031-509) complete with fixing lugs and selg tapping screws | F110: m | G110: 3 | I110: 0
D111: .04 | E111: External cement plaster in beam filling | F111: m | G111: 15 | I111: 0
A112: BD03 | D112: .05 | E112: Brickwork Reinforcement - 75mm (galvanized) | F112: m | G112: 250 | I112: =G112*H112 -> 0
D113: .06 | E113: Brickwork Reinforcement - 150mm (galvanized) | F113: m | G113: 500 | I113: =G113*H113 -> 0
C114: .03 | D114: Items measured by area:
D115: .01 | E115: 6mm thick white glazed wall tiles to existing painted or plastered walls as approved by the Engineer | F115: m2 | G115: 15 | I115: 0
D116: .02 | E116: 230 mm thick Stock brick walls - NFP type brick | F116: m2 | G116: 75 | I116: =G116*H116 -> 0
D117: .03 | E117: 110 mm thick Slock brick walls - NFP type brick | F117: m2 | G117: 25 | I117: 0
D118: .04 | E118: Extra over 230mm thick brick walls for face brick walls; Corobrik FBA walls ("Roan Satin") in stretcher bond with ruled joints and perpends | F118: m2 | G118: 65 | I118: 0
D119: .05 | E119: 230mm thick face brick walls; Corobrik FBA walls ("Roan Satin") in stretcher bond with ruled joints and perpends | F119: m2 | G119: 10 | I119: =G119*H119 -> 0
D120: .06 | E120: Internal cement plaster to walls | F120: m2 | G120: 85 | I120: =G120*H120 -> 0
C121: BE: FLOORS
A122: BE.01 | B122: 5.2.11 | C122: Floor screeds:
C123: .01 | D123: 30 mm thick smooth screed finish | F123: m2 | G123: 70 | I123: =G123*H123 -> 0
A124: BE.02 | B124: 5.2.12 | C124: Joinery:
C125: .01 | D125: Items measured by linear meter:
D126: .01 | E126: 19 mm x 76 mm hardwood skirting with quadrant bead | F126: m | G126: 50 | I126: =G126*H126 -> 0
A127: BE.03 | B127: 5.2.13 | C127: Floor tiling and finishes, etc:
C128: .01 | D128: Items measured by area:
D129: .01 | E129: 250 micron damp proofing under solid floors / surface beds | F129: m2 | G129: =G123 -> 70 | I129: =G129*H129 -> 0
D130: .02 | E130: Vinyl Floor Tiling or similar approved | F130: m2 | G130: 0 | I130: =G130*H130 -> 0
E131: FloorworX Superflex fully flexible vinyl floor sheeting 1,2m wide x 2mm thick in similar colour finish, manufactured in accordance with SANS 786:2000, laid in FloorworX No. 60 Plus acrylic adhesive spread with a notched trowel on suitably prepared subfloor (elsewhere specified) with a hygrometer reading showing a moisture content of less than 70%, with joints welded with a fully flexible coloured 'Marley Welding Rod' to provide a smooth, hygienic sealed finish and rolled with 68kg three section metal roller on completion. Upon completion, floor to be sealed with three coats of FloorX Silk Matt.
C132: BJ: PAINT WORK
C133: NEW UNPAINTED SURFACES
A134: BJ.02 | B134: 5.2.14 | C134: Paint to various surfaces:
C135: .01 | D135: Plaster surfaces:
D136: .01 | E136: Prepare and apply one coat professional plaster primer and two coats acrylic PVA paint suitable for washing with a mild detergent and with a mat finish. Provide 1 coat alcaline resistant 100% pure acrylic fillercoat. Spread rate 6m square per liter.
E137: .01 Walls | F137: m2 | G137: 130 | I137: =G137*H137 -> 0
C138: .02 | D138: Steel surfaces:
D139: .01 | E139: Prepare surfaces, apply spot primer, one undercoat and two coats non-drip polyurethane, semi gloss, enamel paint:
E140: .01 Window burglar proofing or mentis expanded metal grid to steel frame in burglar proofing | F140: m2 | G140: 2 | I140: =G140*H140 -> 0
E141: .02 Door Frames (including Primer) | F141: m3 | G141: 2 | I141: =G141*H141 -> 0
E142: .03 Security gates (Including Primer) | F142: m2 | G142: 4 | I142: =G142*H142 -> 0
A143: BJ.02 | B143: 5.2.15 | C143: .01 | D143: .01 | E143: .01Rails, Posts, Pipes, steel structures etc. exceeding 50 mm dia not exceeding 110 mm diameter | F143: m | G143: 20 | I143: =G143*H143 -> 0
E144: .02 Steel structures (Roof) - If required. | F144: m2 | G144: 40 | I144: 0
C145: .02 | D145: Wood surfaces:
D146: .01 | E146: Protective and decorative solvent based polyurethane alkyd semi-gloss non-drip enamel paint: (Inside)
E147: .01 Doors | F147: m2 | G147: 45 | I147: 0
E148: .02 Skirtings and quadrant beads not exceeding 150 mm girth | F148: m | G148: 40 | I148: 0
C149: BB: CARPENTRY FOR ROOFS
A150: BB.01 | B150: 5.2.16 | C150: Supply and install new items measured by length:
C151: .01 | D151: 225 x 10 mm Thick Nutec pressed fibre cement fascia or similar approved (including painting, etc) | F151: m | G151: 15 | I151: 0
C152: .02 | D152: 275 x 80 mm Thick Nutec fibre cement barge board, or similar approved (including painting, etc). | F152: m | G152: 12 | I152: 0
C153: .03 | D153: 75 x 50 mm SAP purlins | F153: m | G153: 40 | I153: 0
C154: .04 | D154: Design, supply and install Wrought sloping SAP trusses for administration building complete according to drawing 2424 - G015(including painting with creaosote and wall plate) | F154: Sum | G154: 1 | I154: 0
A155: BB.08 | B155: 5.2.17 | C155: Painting of existing members in overhangs:
C156: .01 | D156: Members with creosote (min 2 coats) | F156: m | G156: 30 | I156: 0
A157: TOTAL STRUCTURAL AND BUILDING | I157: =SUM(I39:I156) -> 10,077.50
A158: SCHEDULE NO 5.3 : | C158: PLUMBING, DRAINAGE, SEWER AND BULK WATER
A159: PAA.05 | B159: 5.3.1 | C159: Supply and installation of sanitary ware and brassware:
C160: .01 | D160: Water closets:
D161: .01 | E161: 360mm x 405mm high Vitreous china WC washdown pan with enlarged pedestal. | F161: number | G161: 8 | I161: =G161*H161 -> 0
D162: .02 | E162: Vitreous china WC cistern - white 9 liters complete with lid and fitments | F162: number | G162: 8 | I162: =G162*H162 -> 0
D163: .03 | E163: 100 mm ø PVC pan connector | F163: number | G163: 8 | I163: 0
D164: .04 | E164: 15 mm ø CP ball-o-stop valve with CP flexi tail pipe to WC cistern | F164: number | G164: 8 | I164: 0
D165: .05 | E165: Heavy duty white buckalite type toilet seat and cover with CP hinge and spindle | F165: number | G165: 8 | I165: 0
C166: .02 | D166: Wash hand basins:
D167: .01 | E167: Vitreous china 520 x 415mm rounded wall mounted wash hand basin - white | F167: number | G167: 6 | I167: =G167*H167 -> 0
D168: .02 | E168: Flexi rubber P-trap | F168: number | G168: 12 | I168: 0
D169: .03 | E169: 15 mm ø CP pillar taps SABS 226 Type 1 (BS 5412), JASWIC Listed | F169: number | G169: 12 | I169: 0
D170: .04 | E170: 15 mm ø flexi pipe tailpipe connections to pillar taps including 15mm CP ball-o-stop valve | F170: number | G170: 12 | I170: 0
C171: .03 | D171: Urinal
D172: .01 | E172: Vitreous chine wall hung urinal with top inlet including fittings. | F172: number | G172: 0 | I172: 0 | K172: kan ook plastic
D173: .02 | E173: 3/4" 'Flushmaster Junior' Urinal Flush valve, CP, exposed type with integral ball-o-stop valve and wall plate | F173: number | G173: 0 | I173: 0
D174: .03 | E174: Bottle trap with 75mm deep re-seal and adjustable telescopic pipe. | F174: number | G174: 0 | I174: 0
A175: PAA.06 | B175: 5.3.2 | C175: Installation of above ground sanitary drainage piping system:
C176: .01 | D176: uPVC soil and waste pipes:
D177: .01 | E177: 110 mm ø pipe fixed to walls and soffits | F177: m | G177: 60 | I177: =G177*H177 -> 0
C178: .02 | D178: uPVC soil and waste pipe fittings:
D179: .01 | E179: 110 mm dia plain bend 87.5º | F179: number | G179: 40 | I179: 0
D180: .04 | E180: 110 mm dia access bend 135º | F180: number | G180: 8 | I180: 0
D181: .05 | E181: 110 mm junction plain 87.5º | F181: number | G181: 8 | I181: 0
D182: .06 | E182: 110 mm junction access heel 87.5º | F182: number | G182: 16 | I182: 0
A183: PAA.06 | B183: 5.3.3 | C183: Supply and installation of underground sanitary drainage pipes:
C184: .01 | D184: Pipe trench excavations, bedding and backfilling:
D185: .01 | E185: Excavate in all materials for pipe trenches to depth of 1100 mm x 600 mm wide | F185: m³ | G185: 35 | I185: =G185*H185 -> 0
D186: .02 | E186: Supply and installation of pipe bedding 400mm thick river sand | F186: m³ | G186: 15 | I186: =G186*H186 -> 0
D187: .03 | E187: Backfilling and compacting to 93% modified AASTHO density with selected material | F187: m³ | G187: 15 | I187: =G187*H187 -> 0
C188: .02 | D188: PVC-U Solid wall sewer pipes Class 34 - 300 KPA to SABS 791 specifications
D189: .01 | E189: 160 mm dia | F189: m | G189: 50 | I189: =G189*H189 -> 0
C190: .03 | D190: Cleaning eyes:
D191: .01 | E191: 160 mm ø inline cleaning eye, constructed complete with Square inspection eye cast iron cover and frame Type 14A (SANS 558) daylight opening size 295 x 295mm and 500 x 500 x 75mm thick concrete encasement | F191: number | G191: 3 | I191: 0
A192: PAA.07 | B192: 5.3.4 | C192: Supply and installation of domestic water piping installation:
C193: .01 | D193: Copper piping Class 0 SABS 460 with capillary soldered type joints for cold-water piping installed in voids inclusive of bracketing:
D194: .01 | E194: 22 mm ø including fittings | F194: m | G194: 15 | I194: =G194*H194 -> 0
D195: .02 | E195: 15 mm ø including fittings | F195: m | G195: 15 | I195: 0
C196: .04 | D196: Supply and installation of Class 6 pressure HDPE piping, including fittings, jointing and testing:
D197: .01 | E197: 20 mm ø HDPE pipe, including fittings | F197: m | G197: 50 | I197: 0
C198: .05 | D198: Replace 20 mm ø shut-off ball-o-stop valve | F198: number | G198: 2 | I198: 0
B199: 5.3.5 | C199: Manhole covers and grid inlets:
A200: CF.01.04.02 | C200: .01 | D200: Manholes and inspection chambers
... 28 more rows

Sheet SCH3 (hidden)
A1: =#REF! ->  | C1: =#REF! -> 
A2: PAYMENT REFERS TO | B2: ITEM NO | C2: DESCRIPTION | F2: UNIT | G2: QUANTITY | H2: RATE | I2: AMOUNT
B3: 3.00 | C3: PLUMBING AND DRAINAGE
A4: PAA.05 | B4: =MAX($B$3:B3)+0.01 -> 3.01 | C4: Supply and installation of sanitary ware and brassware:
C5: .01 | D5: Water closets:
D6: .01 | E6: 360mm x 405mm high Vitreous china WC washdown pan with enlarged pedestal. | F6: number | G6: 5
D7: .02 | E7: Vitreous china WC cistern - white 9 liters complete with lid and fitments | F7: number | G7: 5
D8: .03 | E8: 100 mm ø PVC pan connector | F8: number | G8: 5
D9: .04 | E9: 15 mm ø CP ball-o-stop valve with CP flexi tail pipe to WC cistern | F9: number | G9: 5
D10: .05 | E10: Heavy duty white buckalite type toilet seat and cover with CP hinge and spindle | F10: number | G10: 5
C11: .02 | D11: Wash hand basins:
D12: .01 | E12: Vitreous china 520 x 415mm rounded wall mounted wash hand basin - white | F12: number | G12: 7
D13: .02 | E13: Flexi rubber P-trap | F13: number | G13: 7
D14: .03 | E14: 15 mm ø CP pillar taps SABS 226 Type 1 (BS 5412), JASWIC Listed | F14: number | G14: 7
D15: .04 | E15: 15 mm ø flexi pipe tailpipe connections to pillar taps including 15mm CP ball-o-stop valve | F15: number | G15: 7
C16: .06 | D16: Urinal
D17: .01 | E17: Vitreous chine wall hung urinal with top inlet including fittings. | F17: number | G17: 2
D18: .02 | E18: 3/4" 'Flushmaster Junior' Urinal Flush valve, CP, exposed type with integral ball-o-stop valve and wall plate | F18: number | G18: 2
D19: .03 | E19: Bottle trap with 75mm deep re-seal and adjustable telescopic pipe. | F19: number | G19: 2
A20: PAA.06 | B20: =MAX($B$4:B19)+0.01 -> 3.02 | C20: Installation of above ground sanitary drainage piping system:
C21: .01 | D21: uPVC soil and waste pipes:
D22: .01 | E22: 50 mm ø pipe fixed to walls and soffits | F22: m | G22: 20
D23: .02 | E23: 110mm ø soil pipe fixed to walls and soffits | F23: m | G23: 25
C24: .02 | D24: uPVC soil and waste pipe fittings:
D25: .01 | E25: 50 mm dia plain bend 87.5º | F25: number | G25: 10
D26: .02 | E26: 50 mm dia access bend 87.5º | F26: number | G26: 10
D27: .03 | E27: 50mm dia plain bend 135º | F27: number | G27: 2
D28: .04 | E28: 50mm dia access bend 135º | F28: number | G28: 2
D29: .05 | E29: 50mm junction plain 87.5º | F29: number | G29: 0
D30: .06 | E30: 50mm junction access heel 87.5º | F30: number | G30: 0
D31: .07 | E31: 110mm dia plain bend 135º | F31: number | G31: 0
D32: .08 | E32: 110mm dia access bend 135º | F32: number | G32: 0
D33: .09 | E33: 110mm dia access bend 95º | F33: number | G33: 5
D34: .10 | E34: 110mm dia plain bend 95º | F34: number | G34: 0
D35: .11 | E35: 110mm vent horn bend access heel 95º | F35: number | G35: 3
D36: .12 | E36: 110mm junction single access heel 95º | F36: number | G36: 3
A37: PAA.06 | B37: =MAX($B$4:B35)+0.01 -> 3.03 | C37: Supply and installation of underground sanitary drainage pipes:
C38: .01 | D38: Pipe trench excavations, bedding and backfilling: | F38: m³ | G38: 35
D39: .01 | E39: Excavate in all materials for pipe trenches to depth of 1100 mm x 600 mm wide
D40: .02 | E40: Supply and installation of pipe bedding 400mm thick river sand | F40: m³ | G40: 15
D41: .03 | E41: Backfilling and compacting to 93% modified AASTHO density with selected material | F41: m³ | G41: 20
C42: .02 | E42: PVC-U Solid wall sewer pipes Class 34 - 300 KPA to SABS 791 specifications
D43: .01 | E43: 110 mm dia | F43: m | G43: 25
A44: BALANCE CARRIED FORWARD
A45: BALANCE BROUGHT FORWARD
C46: .03 | D46: uPVC soil and waste pipe fittings
D47: .01 | E47: 110 mm ø plain bend 87,5° | F47: number | G47: 0
D48: .02 | E48: 110 mm ø plain bend 135° | F48: number | G48: 4
D49: .03 | E49: 110 mm ø square double junction | F49: number | G49: 2
D50: .04 | E50: 110 mm ø 135° junction | F50: number | G50: 3
D51: .05 | E51: 110 mm ø 90° junction | F51: number | G51: 0
C52: .04 | D52: Cleaning eyes:
D53: .01 | E53: 100 mm ø inline cleaning eye, constructed complete with Square inspection eye cast iron cover and frame Type 14A (SANS 558) daylight opening size 295 x 295mm and 500 x 500 x 75mm thick concrete encasement | F53: number | G53: 5
A54: PAA.07 | B54: =MAX($B$4:B53)+0.01 -> 3.04 | C54: Supply and installation of domestic water piping installation:
C55: .01 | D55: Copper piping Class 0 SABS 460 with capillary soldered type joints for cold-water piping installed in voids inclusive of bracketing:
D56: .01 | E56: 22 mm ø including fittings | F56: m | G56: 35
D57: .02 | E57: 15 mm ø including fittings | F57: m | G57: 14
C58: .02 | D58: Copper piping Class 0 SABS 460 with capillary soldered type joints for hot-water piping installed in voids including bracketing, lagging and cladding:
D59: .01 | E59: 22 mm ø including fittings | F59: m | G59: 20
D60: .02 | E60: 15 mm ø including fittings | F60: m | G60: 15
C61: .03 | D61: Copper piping Class 0 SABS 460 with capillary soldered type joints for hot and cold-water piping chased in walls including wrapping of pipes with builders paper, chasing and reinstatement of chased surfaces:
D62: .01 | E62: 22 mm ø including fittings | F62: m | G62: 0
D63: .02 | E63: 15 mm ø including fittings | F63: m | G63: 25
C64: .04 | D64: Supply and installation of Class 6 pressure HDPE piping, including fittings, jointing and testing:
D65: .01 | E65: 20 mm ø HDPE pipe, including fittings | F65: m | G65: 20
C66: .05 | D66: Replace 20 mm ø shut-off ball-o-stop valve | F66: number | G66: 1
A67: PAA.13 | B67: =MAX($B$4:B66)+0.01 -> 3.05 | C67: Supply and Installation of geyser inclusive of element, thermostat, safety valve, vacuum breakers and all required pipe work and fittings for external vertical installation:
C68: .01 | D68: 150 liter electric geyser | F68: number | G68: 1
B69: =MAX($B$4:B68)+0.01 -> 3.06 | C69: Manhole covers and grid inlets:
A70: CF.01.04.02 | C70: .01 | D70: Manholes and inspection chambers
D71: .01 | E71: New pre-cast concrete manhole up to 1.2m deep, including pre-cast cover and frame | F71: number | G71: 1
D72: .02 | E72: New pre-cast concrete manhole from 1.2m up to 2.4m deep, including pre-cast cover and frame | F72: number | G72: 1
B73: =MAX($B$4:B72)+0.01 -> 3.07 | C73: Supply and install a prefabricated septic tank approved according to SANS 0400 - PP10 & 52566 , including excavation and backfilling with selected material and all necessary soil pipe connections
C74: .01 | D74: 3600 liters septic tank system | F74: number | G74: 0
C75: .02 | D75: 5400 liters septic tank system | F75: number | G75: 1
C76: French drains constructed according to SANS 10400 - PP10 and DPW drawing 048182/006B
A77: 1200 DA
A78: 8.3 | B78: =MAX($B$3:B77)+0.01 -> 3.08 | C78: SCHEDULED ITEMS (French Drain)
A79: 8.3.2 | C79: .01 | D79: Excavate trenches in all materials and use for backfill or embankment or dispose. | F79: m3 | G79: 30
C80: .02 | D80: Extra over item 01 above for:
D81: .01 | E81: Intermediate excavation | F81: m³ | G81: 5
D82: .01 | E82: Hard rock excavation | F82: m³ | G82: 2
A83: BALANCE CARRIED FORWARD
A84: BALANCE BROUGHT FORWARD
A85: 8.3.4 | C85: .03 | D85: Importing and placing of approved 65-125mm rock fill from commercial sources. | F85: m3 | G85: 30
A86: PAA.06 | C86: .04 | D86: PVC-U Slotted subsoil drainage pipes complete with integral sockets
D87: .01 | E87: 110 mm dia | F87: m | G87: 30
B88: =302 -> 302.00 | C88: BULK WATER AND EXTERNAL WATER RETICULATION
A89: SANS 1200DB | C89: EXCAVATIONS
A90: 8.3.2(a) | B90: =MAX($B$4:B89)+0.01 -> 302.01 | C90: Excavate in all materials for trenches, backfill, compact, and dispose of surplus/ unsuitable material, for the following pipe diameters for total trench depths:
C91: .01 | D91: Not exceeding 1m deep x 600mm wide | F91: m | G91: 60
A92: 8.3.2(b) | C92: .02 | D92: Extra-over item .01 above for:
D93: .01 | E93: Intermediate Excavation | F93: m3 | G93: 5
D94: .02 | E94: Hard rock excavation | F94: m3 | G94: 2
A95: 8.3.3 | C95: .03 | D95: Excavation ancillaries
A96: 8.3.3.3 | D96: .01 | E96: Compaction in road reserves | F96: m3
A97: SANS 1200LB | B97: =MAX($B$4:B90)+0.01 -> 302.02 | C97: Provision of bedding from trench excavations
A98: 8.2.1
C99: .01 | D99: 300mm x 600mm bedding | F99: m3 | G99: 3
C100: PIPES AND FITTINGS
A101: SANS 1200L | B101: =MAX($B$4:B100)+0.01 -> 302.03 | C101: Connection to existing water network
A102: 2.6.1 | D102: Supply all labour and material to connect to main supply pipeline including excavation backfill, disposal of surplus material, cutting of pipes and moving of fittings and making good | F102: Sum
A103: SANS 1200 L 8.2.1 | B103: =MAX($B$4:B102)+0.01 -> 302.04 | C103: Supply, lay and bed pipes complete with couplings, including testing
C104: .01 | D104: .01 | E104: 32mm dia.. HDPE pipe Class 10, jointed with Plasson high compression fittings | F104: m | G104: 40
A105: SANS 1200 L 8.2.1 | B105: =MAX($B$4:B104)+0 -> 302.04 | D105: .02 | E105: 63mm dia.. HDPE pipe Class 10, jointed with Plasson high compression fittings | F105: m
A106: TOTAL BUILDING AND DRAINAGE | B106: TOTAL PLUMBING AND DRAINAGE

Sheet SCH2.3 (hidden)
A2: =#REF! ->  | C2: =#REF! -> 
A4: PAYMENT REFERS TO | B4: ITEM NO | C4: DESCRIPTION | F4: UNIT | G4: QUANTITY | H4: RATE | I4: AMOUNT
C6: BUILDING ELECTRICAL REPAIR WORK | K6: =IF($G6="","",$G6*J6) -> 
B8: 3.00 | C8: DISTRIBUTION BOARDS
A10: AB.01.01 | B10: =MAX($B$5:B9)+0.01 -> 3.01 | C10: Service distribution board
C12: .01 | D12: Floorstanding DB Gen Room | F12: number | K12: =IF($G12="","",$G12*J12) -> 
C14: .02 | D14: Surface Mounted DB Police Building | F14: number
C16: .03 | D16: Surface Mounted DB Customs Building | F16: number
C18: .04 | D18: Surface Mounted DB OPS building Derdepoort | F18: number
C20: .05 | D20: Surface Mounted DB OPS Building Swartkopfontein | F20: number
C22: .06 | D22: Flush mounted DB (+/- 400 x 200mm) | F22: number
C24: .07 | D24: Flush mounted DB (+/- 200 x 200mm) | F24: number
C26: .08 | D26: Domestic single phase(+/- 500 x 400mm) | F26: number
C28: .09 | D28: Domestic single phase(+/- 250 x 400mm) | F28: number
A30: AB.01.13 | B30: =MAX($B$5:B28)+0.01 -> 3.02 | C30: Supply and installation of circuit breakers (SABS approved)
C32: .01 | D32: 10-40A, 6kA single pole | F32: number
C34: .02 | D34: 40-60A, 6kA single pole | F34: number
C36: .03 | D36: 10-40A, 6kA double pole | F36: number
C38: .04 | D38: 10-40A, 6kA tripple pole | F38: number
C40: .05 | D40: 40-80A, 6kA tripple pole | F40: number
C42: .06 | D42: 80-100A 15kA triple pole | F42: number
C44: .07 | D44: 100-160A 15kA triple pole | F44: number
A46: AB.01.14 | B46: =MAX($B$5:B44)+0.01 -> 3.03 | C46: Supply and installation of isolators (SABS approved)
C48: .01 | D48: 20-40A, 6kA double pole | F48: number
C50: .02 | D50: 60A, 6kA double pole | F50: number
C52: .03 | D52: 60A, 6kA tripple pole | F52: number
B55: Carried forward | K55: =SUM(K5:K54) -> 0.00
B58: Brought forward | K58: =K55 -> 0.00
K60: =IF($G60="","",$G60*J60) -> 
A61: AB.01.15 | B61: =MAX($B$5:B60)+0.01 -> 3.04 | C61: Supply and install contactors
C63: .01 | D63: 30A, 3 pole | F63: number
A65: AB.01.16 | B65: =MAX($B$5:B64)+0.01 -> 3.05 | C65: Supply and install switching timers
C67: .01 | D67: Electronic timer with 24hr time reserve | F67: number
A69: AB.01.17 | B69: =MAX($B$5:B68)+0.01 -> 3.06 | C69: Supply and install earth leakage units (SABS approved)
C71: .01 | D71: 60A, 5kA double pole | F71: number
A73: AB.01.19 | B73: =MAX($B$5:B69)+0.01 -> 3.07 | C73: Supply and install surge arrestors | K73: =IF($G73="","",$G73*J73) -> 
C75: .01 | D75: 1 Pole and Neutral 275V 5kA with Indication
D76: with indication | F76: number
C78: .02 | D78: 3 Pole and Neutral 275V 5kA with Indication
D79: with indication | F79: number
A81: AB.01.11 | B81: =MAX($B$5:B77)+0.01 -> 3.08 | C81: Supply and install earth continuity
C82: conductor:
C84: .01 | D84: 70 mm² BCEW | F84: m
C86: .02 | D86: 16 mm² BCEW | F86: m
C88: .03 | D88: 10 mm² BCEW | F88: m
C90: .04 | D90: 50 mm² aluminium | F90: m | K90: =IF($G90="","",$G90*J90) -> 
A92: AB.01.12 | B92: =MAX($B$5:B88)+0.01 -> 3.09 | C92: Terminate earth continuity conductor: | K92: =IF($G92="","",$G92*J92) -> 
C94: .01 | D94: 70 mm² BCEW | F94: number
C96: .02 | D96: 16 mm² BCEW | F96: number
C98: .03 | D98: 10 mm² BCEW | F98: number
C100: .04 | D100: 50 mm² aluminium | F100: number
B112: Carried forward | K112: =SUM(K58:K111) -> 0.00
B115: Brought forward | K115: =K112 -> 0.00
K118: =IF($G118="","",$G118*J118) -> 
B119: =B8+2 -> 5.00 | C119: WIRING
A121: AB01.04 | B121: =MAX($B$5:B120)+0.01 -> 5.01 | C121: Replace wiring :
C123: .01 | D123: 2,5 mm² PVC insulated | F123: meter
C125: .02 | D125: 4 mm² PVC insulated | F125: meter
C127: .03 | D127: 6 mm² PVC insulated | F127: meter
C129: .04 | D129: 10 mm² PVC insulated | F129: meter
C131: .05 | D131: 2,5 mm² BCEW | F131: meter
C133: .06 | D133: 4 mm² BCEW | F133: meter | K133: =IF($G133="","",$G133*J133) -> 
C135: .07 | D135: 6mm² BCEW | F135: meter
B137: 403.00 | C137: LIGHTING INSTALLATION
A139: AB.02.01 | B139: =MAX($B$5:B138)+0.01 -> 403.01 | C139: Re-lamp luminaire
C141: .01 | D141: 58W Fluorescent | F141: number
C143: .02 | D143: 36W Fluorescent | F143: number
C145: .03 | D145: 18W Fluorescent | F145: number
C147: .04 | D147: 80W MV Lamp | F147: number
C149: .05 | D149: 150W HPS Lamp | F149: number
C151: .06 | D151: 70W HPS Lamp | F151: number | K151: =IF($G151="","",$G151*J151) -> 
C153: .07 | D153: PL9 W | F153: number
C155: .08 | D155: 16W/E27 | F155: number
C157: .09 | D157: 400W MV Lamp | F157: number
C159: .10 | D159: 100W GLS Lamp | F159: number
A161: AB.02.02 | B161: =MAX($B$5:B160)+0.01 -> 403.02 | C161: Service luminaire
C163: .01 | D163: Type A | F163: number
C165: .02 | D165: Type B | F165: number
B168: Carried forward | K168: =SUM(K115:K167) -> 0.00
B171: Brought forward | K171: =K168 -> 0.00
A174: AB.02.02 | B174: =MAX($B$5:B173)+0 -> 403.02 | C174: .03 | D174: Type D | F174: number | K174: =IF($G174="","",$G174*J174) -> 
C176: .04 | D176: Type H | F176: number
C178: .05 | D178: Type I | F178: number
C180: .06 | D180: Type K | F180: number
C182: .07 | D182: Type R | F182: number
C184: .08 | D184: Type T | F184: number
C186: .09 | D186: Type U | F186: number
C188: .10 | D188: Type W | F188: number
C190: .11 | D190: Type X | F190: number
C192: .12 | D192: Type Y | F192: number
C194: .13 | D194: Type AA | F194: number
A196: AB.02.03 | B196: =MAX($B$5:B175)+0.01 -> 403.03 | C196: Replace luminaire
C198: .01 | D198: Type A | F198: number
C200: .02 | D200: Type B | F200: number
C202: .03 | D202: Type C | F202: number | K202: =IF($G202="","",$G202*J202) -> 
C204: .04 | D204: Type D | F204: number
C206: .05 | D206: Type E | F206: number
C208: .06 | D208: Type F | F208: number
C210: .07 | D210: Type G | F210: number | K210: =IF($G210="","",$G210*J210) -> 
C212: .08 | D212: Type H | F212: number | K212: =IF($G212="","",$G212*J212) -> 
C214: .09 | D214: Type J | F214: number | K214: =IF($G214="","",$G214*J214) -> 
C216: .10 | D216: Type K | F216: number | K216: =IF($G216="","",$G216*J216) -> 
C218: .11 | D218: Type S | F218: number | K218: =IF($G218="","",$G218*J218) -> 
K219: =IF($G219="","",$G219*J219) -> 
C220: .12 | D220: Type T | F220: number | K220: =IF($G220="","",$G220*J220) -> 
K222: =IF($G222="","",$G222*J222) -> 
B224: Carried forward | K224: =SUM(K171:K223) -> 0.00
B227: Brought forward | K227: =K224 -> 0.00
A230: AB.02.03 | B230: =MAX($B$5:B204)+0 -> 403.03 | C230: .13 | D230: Type U | F230: number | K230: =IF($G230="","",$G230*J230) -> 
C232: .14 | D232: Type V | F232: number
C234: .15 | D234: Type W | F234: number
C236: .16 | D236: Type X | F236: number
C238: .17 | D238: Type Z | F238: number
C240: .18 | D240: Type AA | F240: number
A242: AB.02.06 | B242: =MAX($B$5:B241)+0.01 -> 403.04 | C242: Replace luminaire diffuser or lens
C244: .01 | D244: Type H | F244: number
C246: .02 | D246: Type K | F246: number
C248: .03 | D248: Type T | F248: number | K248: =IF($G248="","",$G248*J248) -> 
C250: .04 | D250: Type U | F250: number
C252: .05 | D252: Type V | F252: number
A254: AB.02.10 | B254: =MAX($B$5:B249)+0.01 -> 403.05 | C254: Supply and installation of internal luminaire components :
K255: =IF($G255="","",$G255*J255) -> 
C256: .01 | D256: Choke for 36W Fluorescent | F256: number
C258: .02 | D258: Choke for 58W Fluorescent | F258: number
C260: .03 | D260: Fluorescent starter | F260: number
A262: AB.02.08 | B262: =MAX($B$5:B259)+0.01 -> 403.06 | C262: Ceiling replacement:
C264: .01 | D264: Luminaire removal and reinstallation | F264: number
A266: AB.02.07 | B266: =MAX($B$5:B263)+0.01 -> 403.07 | C266: Service light switch | F266: number
A268: AB.02.04 | B268: =MAX($B$5:B267)+0.01 -> 403.08 | C268: Replace light switch
C270: .01 | D270: 16A, one lever, one way | F270: number
C272: .02 | D272: 16A, two lever, one way | F272: number
C274: .03 | D274: 16A, three lever, one way | F274: number
C276: .04 | D276: 16A, one lever, two way | F276: number
C278: .05 | D278: 16A water tight, robust | F278: number
B280: Carried forward | K280: =SUM(K227:K279) -> 0.00
B283: Brought forward | K283: =K280 -> 0.00
A286: AB.02.05 | B286: =MAX($B$5:B285)+0.01 -> 403.09 | C286: Replace Photo-electric switch | K286: =IF($G286="","",$G286*J286) -> 
C288: .01 | D288: 16A unit with bracket and mounted in dummy bulkhead fitting | F288: number
A290: AB.02.09 | B290: =MAX($B$5:B289)+0.01 -> 403.10 | C290: Replace lampholder (Ceramic) | F290: number
B292: =B8+4 -> 7.00 | C292: POWER OUTLETS
A294: AB.03.07 | B294: =MAX($B$5:B293)+0.01 -> 403.11 | C294: Service socket outlet
C296: .01 | D296: 16A, single SSO | F296: number
C298: .02 | D298: 16A, double SSO | F298: number
C300: .03 | D300: 16A, dedicated SSO | F300: number
A302: AB.03.01 | B302: =MAX($B$5:B301)+0.01 -> 403.12 | C302: Replace socket outlet
C304: .01 | D304: 16A, single SSO | F304: number | K304: =IF($G304="","",$G304*J304) -> 
C306: .02 | D306: 16A, double SSO | F306: number
C308: .03 | D308: 16A, single SSO powerskirting mounted | F308: number
C310: .04 | D310: 16A, dedicated SSO powerskirting mounted | F310: number
A312: AB.03.08 | B312: =MAX($B$5:B311)+0.01 -> 403.13 | C312: Service isolator
C314: .01 | D314: 60 A, 2 pole | F314: number
C316: .02 | D316: 30A, 2 pole | F316: number
A318: AB.03.02 | B318: =MAX($B$5:B317)+0.01 -> 403.14 | C318: Replace isolators
C320: .01 | D320: 30A, 2 pole | F320: number
C322: .02 | D322: 30A 2 pole with cord grip | F322: number
C324: .03 | D324: 30A 2 pole in York box S15 | F324: number
C326: .04 | D326: 60A 2pole | F326: number
B334: Carried forward | K334: =SUM(K283:K333) -> 0.00
B337: Brought forward | K337: =K334 -> 0.00
A340: AB.03.03 | B340: =MAX($B$5:B332)+0.01 -> 403.15 | C340: Replace plug tops: | K340: =IF($G340="","",$G340*J340) -> 
C342: .01 | D342: 3-pin 16A | F342: number
C344: .02 | D344: 3-pin square 13A | F344: number
B346: =B8+5 -> 8.00 | C346: FIXED APPLIANCE AND COMPONENTS
A348: AB.03.19 | B348: =MAX($B$6:B347)+0.01 -> 403.16 | C348: Replace geyser components
C350: .01 | D350: Replace domestic geyser element | F350: number
C352: .02 | D352: Replace geyser thermostat | F352: number
A354: AB.03.18 | B354: =MAX($B$6:B353)+0.01 -> 403.17 | C354: Replace domestic stove components :
C356: .01 | D356: 150 - 160 dia solid plate | F356: number
C358: .02 | D358: 170 - 190 dia solid plate | F358: number
C360: .03 | D360: 200 - 220 dia solid plate | F360: number
C362: .04 | D362: Five / six heat switch | F362: number
C364: .05 | D364: Oven bottom element | F364: number
C366: .06 | D366: Oven top element | F366: number
A368: AB.03.06 | B368: =MAX($B$6:B367)+0.01 -> 403.18 | C368: Replace connection from isolator to fixed appliance, with flexible copex (spraque) conduit and conductors, e.g. stove or geyser :
C370: .01 | D370: Stove : 2 x 6 mm² PVC and 2,5 mm² BCEW conductors. | F370: number
C372: .02 | D372: Geyser : 2 x 4 mm² PVC and 2,5 mm² BCEW conductors. | F372: number
B386: Carried forward | K386: =SUM(K337:K385) -> 0.00
B389: Brought forward | K389: =K386 -> 0.00
B392: =B8+6 -> 9.00 | C392: WIRE WAYS CONDUITS AND ACCESSORIES
A394: AB.03.04 | B394: =MAX($B$5:B393)+0.01 -> 403.19 | C394: Replace conduit :
K395: =IF($G395="","",$G395*J395) -> 
C396: .01 | D396: 20 mm dia Galv. Steel | F396: meter
C398: .02 | D398: 25 mmdia Galv. Steel | F398: meter
C400: .03 | D400: 32 mmdia Galv. Steel | F400: meter
A402: AB.03.11 | B402: =MAX($B$6:B401)+0.01 -> 403.20 | C402: Supply and install outlet (draw) boxes :
C404: .01 | D404: 100 x 50 Galv. Steel | F404: number
C406: .02 | D406: 100 x 100 Galv.Steel | F406: number
C408: .03 | D408: 50 x 100 mm white enamel extension box | F408: number
C410: .04 | D410: 100 x 100 mm white enamel extension box | F410: number
C412: .05 | D412: Circular 20mm | F412: number
A414: AB.03.12 | B414: =MAX($B$6:B413)+0.01 -> 403.21 | C414: Supply and install draw box cover
C415: plates(white enamel) to fit:
C417: .01 | D417: To fit 100 x 50 box | F417: number | K417: =IF($G417="","",$G417*J417) -> 
C419: .02 | D419: To fit 100 x 100 box | F419: number
C421: .03 | D421: Circular galvanised box | F421: number
A423: AB.03.09 | B423: =MAX($B$6:B422)+0.01 -> 403.22 | C423: Replace power skirting :
C425: .01 | D425: 2-tier powder-coated galvanised steel | F425: m
A427: AB.03.05 | B427: =MAX($B$6:B426)+0.01 -> 403.23 | C427: Replace wiring channel:
C429: .01 | D429: OL 2000, 41.3 x 41.3 mm | F429: m
C431: .02 | D431: OL 9000, 127 x 76 mm | F431: m
... 128 more rows

Sheet SCH2.4 (hidden)
A2: =#REF! ->  | C2: =#REF! -> 
A4: PAYMENT REFERS TO | B4: ITEM NO | C4: DESCRIPTION | F4: UNIT | G4: QUANTITY | H4: RATE | I4: AMOUNT
C6: REFER TO DRAWING 048182/004B & 005B FOR FENCING DETAILS
B8: 4.00 | C8: SOLID WASTE MANAGEMENT | K8: =IF($G8="","",$G8*J8) -> 
A10: CG.05 | B10: =MAX($B$8:B9)+0.01 -> 4.01 | C10: SUPPLY OF WASTE BINS
C12: .01 | D12: Square black 240 liter waste bins including wheels | F12: number
A14: SANS 1200C | B14: =B8+1 -> 5.00 | C14: SITE MAINTENANCE
A15: 8.2.2 | B15: =MAX($B$8:B14)+0.01 -> 5.01 | C15: .01 | D15: Removal and grubbing of large trees and tree stumps:
D17: .01 | E17: Girth exceeding 1 m up to and including 2 m | F17: number
D19: .02 | E19: Girth exceeding 2 m up to and including 3 m | F19: number
A21: CJ.05 | B21: =B14+1 -> 6.00 | C21: SUPPLY OF EQUIPMENT FOR ABLUTIONS AS DESCRIBED IN ITEM CJ.09 OF THE PROJECT SPECIFICATIONS | K21: =IF($G21="","",$G21*J21) -> 
A23: CJ.05.01 | C23: .01 | D23: Stainless Steel Hand dryer unit with blower output of 450 watt @ 20' 000 rpm similar or equal to Excelarator | F23: number | K23: =IF($G23="","",$G23*J23) -> 
K24: =IF($G24="","",$G24*J24) -> 
A25: CJ.05.02 | C25: .02 | D25: Auto digital aerosol dispenser with stainless steel cover | F25: number | K25: =IF($G25="","",$G25*J25) -> 
K26: =IF($G26="","",$G26*J26) -> 
A27: CJ.05.03 | C27: .03 | D27: Stainless steel toilet paper dispensing units, capable of holding two toilet paper rolls per unit | F27: number | K27: =IF($G27="","",$G27*J27) -> 
A29: CJ.05.04 | C29: .04 | D29: Stainless steel she bins | F29: number | K29: =IF($G29="","",$G29*J29) -> 
K30: =IF($G30="","",$G30*J30) -> 
A31: CJ.05.05 | C31: .05 | D31: Stainless steel soap dispenser | F31: number | K31: =IF($G31="","",$G31*J31) -> 
K32: =IF($G32="","",$G32*J32) -> 
A33: CJ.05.06 | C33: .06 | D33: Stainless steel urinal sanitizer | F33: number | K33: =IF($G33="","",$G33*J33) -> 
B44: Carried forward | K44: =SUM(K5:K42) -> 0.00
B47: Brought forward | K47: =K44 -> 0.00
A50: CC.03 | B50: =B8+4 -> 8.00 | C50: REPAIR WORK TO FENCES | I50: =IF($G50="","",$G50*H50) ->  | K50: =IF($G50="","",$G50*J50) -> 
I51: =IF($G51="","",$G51*H51) -> 
C52: .01 | D52: Repair of wire and mesh fences less than 1,3m high | F52: m
C54: .02 | D54: Repair of wire and mesh fences between 1,3m and 2,0m high | F54: m
B56: =B8+5 -> 9.00 | C56: RESIDENTIAL FENCE - 1,2 m DIAMOND MESH, TUBULAR STEEL POSTS AND STANDARDS
A58: CC.02 | B58: =MAX($B$11:B57)+0.01 -> 9.01 | C58: Supply and erection of new fencing | K58: =IF($G58="","",$G58*J58) -> 
C59: material to replace old material:
C61: .01 | D61: Diamond mesh:
D63: .01 | E63: 1,2 m diamond mesh fence | F63: m
C65: .02 | D65: 110mm tubular post with concrete footing for 1.2m high fence | F65: number
C67: .03 | D67: 65mm dia Stay for 1,2 m post | F67: number
C69: .04 | D69: Y-standards for 1,2 m high fence | F69: number
C71: .05 | D71: Straining wire | F71: m
C73: .06 | D73: Gates | K73: =IF($G73="","",$G73*J73) -> 
D75: .01 | E75: In 1,2 m high fences
E77: .01 single and double gates less than 1,5 m wide | F77: number
E79: .02 single and double gates between 1,5 m and 5,0 m wide | F79: number
B91: Carried forward | K91: =SUM(K46:K89) -> 0.00
B94: Brought forward | K94: =K91 -> 0.00
B97: =+B8+6 -> 10.00 | C97: 1.8m PERIMETER FENCE - DIAMOND MESH, TUBULAR STEEL POSTS
A99: CC.02 | B99: =MAX($B$10:B98)+0.01 -> 10.01 | C99: Supply and erection of new fencing | K99: =IF($G99="","",$G99*J99) -> 
C100: material to replace old material:
C102: .01 | D102: Diamond mesh:
D104: .01 | E104: 1.8 m diamond mesh | F104: m
C106: .02 | D106: Tubular posts:
D108: .01 | E108: 75 mm tubular posts with additional 600 mm overhang at 45° and with concrete footing for 1.8m high fence | F108: number
D110: 02 | E110: 110 mm tubular posts with additional 600 mm overhang at 45° and with concrete footing for 1.8m high fence | F110: number | K110: =IF($G110="","",$G110*J110) -> 
K111: =IF($G111="","",$G111*J111) -> 
C112: .03 | D112: 65mm dia Stay for 1.8 m post | F112: number | K112: =IF($G112="","",$G112*J112) -> 
C114: .04 | D114: Straining wire | F114: m | K114: =IF($G114="","",$G114*J114) -> 
K115: =IF($G115="","",$G115*J115) -> 
C116: .05 | D116: Barbed wire | F116: m | K116: =IF($G116="","",$G116*J116) -> 
C118: .07 | D118: Gates in 1.8 m high fences | K118: =IF($G118="","",$G118*J118) -> 
D120: .01 | E120: Double gate between 5.0 m and 10.0m wide | F120: number | K120: =IF($G120="","",$G120*J120) -> 
B139: Carried forward | K139: =SUM(K93:K137) -> 0.00
B142: Brought forward | K142: =K139 -> 0.00
B145: =B97+1 -> 11.00 | C145: 3.0m PERIMETER FENCE - DIAMOND MESH, TUBULAR STEEL POSTS
A147: CC.02 | B147: =MAX($B$10:B146)+0.01 -> 11.01 | C147: Supply and erection of new fencing | K147: =IF($G147="","",$G147*J147) -> 
C148: material to replace old material:
C150: .01 | D150: Diamond mesh:
D152: .01 | E152: 3.0 m diamond mesh | F152: m
C154: .02 | D154: Tubular posts:
D156: .01 | E156: 75 mm tubular posts with additional 600 mm overhang at 45° and with concrete footing for 3.0m high fence | F156: number
D158: 02 | E158: 110 mm tubular posts with additional 600 mm overhang at 45° and with concrete footing for 3.0m high fence | F158: number | K158: =IF($G158="","",$G158*J158) -> 
K159: =IF($G159="","",$G159*J159) -> 
C160: .03 | D160: 65mm dia Stay for 3.0 m post | F160: number | K160: =IF($G160="","",$G160*J160) -> 
C162: .04 | D162: Straining wire | F162: m | K162: =IF($G162="","",$G162*J162) -> 
K163: =IF($G163="","",$G163*J163) -> 
C164: .05 | D164: Barbed wire | F164: m | K164: =IF($G164="","",$G164*J164) -> 
C166: .06 | D166: Gates in 3.0 m high fences | K166: =IF($G166="","",$G166*J166) -> 
D168: .01 | E168: Double gate between 5.0 m and 10.0m wide | F168: number | K168: =IF($G168="","",$G168*J168) -> 
A169: SABS
A170: 1200 G | B170: =MAX($B$6:B169)+0.01 -> 11.02 | C170: SCHEDULED ITEMS | K170: =IF($G170="","",$G170*J170) -> 
A171: 8.3 | K171: =IF($G171="","",$G171*J171) -> 
A172: 8.3.2 | C172: .01 | D172: Excavate for restricted foundation, footings and trenches in all materials and use for backfill or embankment or dispose. | F172: m3 | K172: =IF($G172="","",$G172*J172) -> 
K173: =IF($G173="","",$G173*J173) -> 
C174: .02 | D174: Break up, hack of and remove existing concrete | F174: m3 | K174: =IF($G174="","",$G174*J174) -> 
A176: 8.3.4 | C176: .03 | D176: Importing, placing and compacting approved G6 material in layers of 150mm from commercial sources or from borrow pits to 95% MOD AASTHO. | F176: m3 | K176: =IF($G176="","",$G176*J176) -> 
K179: =IF($G179="","",$G179*J179) -> 
B181: Carried forward | K181: =SUM(K141:K179) -> 0.00
B184: Brought forward | K184: =K181 -> 0.00
A188: SABS | C188: CONCRETE (STRUCTURAL) | K188: =IF($G188="","",$G188*J188) -> 
A189: 1200 G
A190: 8.4 | C190: SCHEDULED CONCRETE ITEMS
A192: 8.4.3 | B192: =MAX($B$6:B191)+0.01 -> 11.03 | C192: Strength concrete:
C194: .01 | D194: Class 25 Mpa concrete in strip footings | F194: m3
C196: .02 | D196: Class 25 Mpa concrete in walls | F196: m3
A198: SABS | C198: STRUCTURAL STEELWORK - | K198: =IF($G198="","",$G198*J198) -> 
A199: 1200 H | C199: REPAIR TO EXISTING SLIDING GATES
A201: 8.3.1 | B201: =MAX($B$13:B199)+0.01 -> 11.04 | C201: Supply and fabrication of steelwork:
C203: .01 | D203: Jointing by with 6mm fillet welds:
D205: .01 | E205: Square-section column guides with
E206: 500 x 500 x 8mm flat section base
E207: plates and end cap plates | F207: t
D209: .02 | E209: Square-section frame work in existing | K209: =IF($G209="","",$G209*J209) -> 
E210: sliding gates | F210: t
B212: =MAX($B$13:B208)+0.01 -> 11.05 | C212: Delivery to Site:
A214: 8.3.2.1 | C214: .01 | D214: Normal delivery:
D216: .01 | E216: Columns, rafters, purlins and braces
E217: for carport structures complete as
E218: scheduled under item 8.3.1 above | F218: t
A220: 8.3.3 | B220: =MAX($B$13:B219)+0.01 -> 11.06 | C220: Erection on Site:
C222: .01 | D222: Steel framework and guides for
D223: existing steel sliding gates | F223: t
B235: Carried forward | K235: =SUM(K183:K233) -> 0.00
B238: Brought forward | K238: =K235 -> 0.00
A241: 8.3.12 | B241: =MAX($B$13:B224)+0.01 -> 11.07 | C241: Additional Items: | K241: =IF($G241="","",$G241*J241) -> 
K242: =IF($G242="","",$G242*J242) -> 
A243: (e) | C243: .01 | D243: Dismantling and removal of existing steel sliding gates. | F243: no | K243: =IF($G243="","",$G243*J243) -> 
A245: (e) | C245: .02 | D245: Dismantling and removal of existing steel sliding gate guides. | F245: no | K245: =IF($G245="","",$G245*J245) -> 
A247: (e) | C247: .03 | D247: Dismantling and removal of existing steel panels. | F247: no | K247: =IF($G247="","",$G247*J247) -> 
A249: (f) | C249: .04 | D249: Re-erection of existing steel sliding gates. | F249: no | K249: =IF($G249="","",$G249*J249) -> 
A251: (f) | C251: .05 | D251: Re-erection of existing steel sliding gate guides. | F251: no | K251: =IF($G251="","",$G251*J251) -> 
A253: (f) | C253: .06 | D253: Re-erection of existing steel panels. | F253: no | K253: =IF($G253="","",$G253*J253) -> 
A255: (g) | C255: .07 | D255: Tying in to existing steel sliding gates. | F255: no | K255: =IF($G255="","",$G255*J255) -> 
A257: (g) | C257: .08 | D257: Tying in to existing steel sliding gate guides. | F257: no | K257: =IF($G257="","",$G257*J257) -> 
A259: (g) | C259: .09 | D259: Tying in to existing steel panels. | F259: no | K259: =IF($G259="","",$G259*J259) -> 
C261: .10 | D261: Replace 150mm sliding gate wheels | F261: no | K261: =IF($G261="","",$G261*J261) -> 
C263: .11 | D263: Replace sliding gate guide wheels | F263: no | K263: =IF($G263="","",$G263*J263) -> 
B283: ="TOTAL "&#REF!&" CARRIED TO SUMMARY: CORRECTIVE MAINTENANCE WORK" ->  | K283: =SUM(K237:K281) -> 0.00

Sheet SCH2.5 (hidden)
A2: =#REF! ->  | C2: =#REF! -> 
J3: ESTIMATE
A4: PAYMENT REFERS TO | B4: ITEM NO | C4: DESCRIPTION | F4: UNIT | G4: QUANTITY | H4: RATE | I4: AMOUNT
B6: 5.00 | C6: ROADS
A8: CA.01 | B8: =MAX($B$6:B7)+0.01 -> 5.01 | C8: Repair of gravel wearing course and gravel shoulders
C10: .01 | D10: .01 | E10: Ripping, redistributing and compacting to a density of 93% of Modified AASHTO | F10: m² | K10: =IF($G10="","",$G10*J10) -> 
D12: .02 | E12: Importing, placing and compacting material from commercial sources to a density of 93% of Modified AASHTO | F12: m³
C14: .02 | D14: Backfilling and reinstatement of pavement layers
D16: .01 | E16: Selected layers compacted to 93 % of modified AASHTO density | F16: m3
D18: .02 | E18: Cement stabilized subbase layers compacted to 95 % of modified AASHTO density | F18: m³
D20: .03 | E20: Cement stabilized base layers compacted to 97 % of modified AASHTO density | F20: m³
C22: .03 | D22: Cast in situ concrete and formwork in edge beams, intermediate beams and kerbing:
D24: .01 | E24: Class 30 concrete | F24: m³
C26: .04 | D26: Steel reinforcement in edge beams, intermediate beams and kerbing:
D28: .01 | E28: Mild steel bars | F28: t
D30: .02 | E30: High-tensile steel bars | F30: t
K40: =IF($G40="","",$G40*J40) -> 
B41: Carried forward | K41: =SUM(K5:K39) -> 0.00
K42: =IF($G42="","",$G42*J42) -> 
K43: =IF($G43="","",$G43*J43) -> 
B44: Brought forward | K44: =K41 -> 0.00
K45: =IF($G45="","",$G45*J45) -> 
A47: CA.05 | B47: =MAX($B$6:B46)+0 -> 5.01 | C47: .05 | D47: Concrete block paving: | K47: =IF($G47="","",$G47*J47) -> 
D49: .01 | E49: SABS approved 80mm, Class 35 Mpa interlocking grey concrete paving blocks for areas carrying mainly vehicular traffic | F49: m²
D51: .02 | E51: SABS approved 80mm, Class 35 Mpa interlocking grey concrete paving blocks for areas carrying pedestrian traffic only | F51: m²
A53: CA.06 | B53: =MAX($B$6:B44)+0.01 -> 5.02 | C53: Repair of existing concrete block paving
C55: .01 | D55: Removal of existing concrete block paving from site | F55: m²
C57: .02 | D57: Reinstalling existing concrete block paving | F57: m
C59: .03 | D59: Break out, hack of and remove existing conrete edge beams and storm water structures | F59: m³
A61: CA.06 | B61: =MAX($B$6:B55)+0.01 -> 5.03 | C61: Repair of kerbing
C63: .01 | D63: Patching of kerbs | F63: m
C65: .02 | D65: Reinstalling pre-cast kerbs | F65: m
C67: .03 | D67: Replacing of kerbs
D69: .01 | E69: Barrier kerbs similar to existing undamaged barrier kerbs | F69: m
B82: ="TOTAL "&#REF!&" CARRIED TO SUMMARY: CORRECTIVE MAINTENANCE WORK" ->  | K82: =SUM(K43:K80) -> 0.00

Sheet SCH2.6 (hidden)
A2: =#REF! ->  | C2: =#REF! -> 
J3: ESTIMATE
A4: PAYMENT REFERS TO | B4: ITEM NO | C4: DESCRIPTION | F4: UNIT | G4: QUANTITY | H4: RATE | I4: AMOUNT
B6: 6.00 | C6: GENERAL
A8: PFD 05.01.01 | B8: =B6+0.01 -> 6.01 | C8: SERVICE AC UNITS
C10: .01 | D10: Clean air intake screen | F10: number | K10: =IF($G10="","",$G10*J10) -> 
C12: .02 | D12: Replace filters | F12: set
C14: .03 | D14: De-rust neutralize and touch up paintwork | F14: number
C16: .04 | D16: Check setting and operation of all pressure switches and reset | F16: number
C18: .05 | D18: Check setting and operation of all safety switches, i.a. LP&HP switches, oil pressure switch | F18: number
C20: .06 | D20: Check setting and operation of thermostat | F20: number
C22: .07 | D22: Check running current of fans and compressor and settings and operation of overloads | F22: number
C24: .08 | D24: Check tightness of all electrical terminals | F24: number
C26: .09 | D26: Ensure operation of local and remote isolators | F26: number
C28: .10 | D28: Reposition and strap cables | F28: number
C30: .11 | D30: Carry out a leak test on all refrigeration piping and components inclusive of evaporator and condenser | F30: number
C32: .12 | D32: Replace compressor vibration mounts | F32: set
C34: .13 | D34: Check refrigerant charge sight glass being clear or flashing | F34: number
C36: .14 | D36: Clean condensate tray and test drainage operation | F36: number
C38: .15 | D38: Clean evaporator and condenser fan blades and check unbalance | F38: number
C40: .16 | D40: Galvanized unistrut brackets | F40: number
B44: Carried forward | K44: =SUM(K5:K42) -> 0.00
B47: Brought forward | K47: =K44 -> 0.00
K49: =IF($G49="","",$G49*J49) -> 
A50: PFD 05.01.04 | B50: =MAX($B$6:B49)+0.01 -> 6.02 | C50: REPLACE AIR CONDITIONING UNIT | K50: =IF($G50="","",$G50*J50) -> 
C52: .01 | D52: 54000 btu cassette unit | F52: number
C54: .02 | D54: 26000 btu high wall split unit | F54: number
C56: .03 | D56: 18000 btu high wall split unit | F56: number
C58: .04 | D58: 12000 btu high wall split unit | F58: number
A60: PFD 05.01.02 | B60: =MAX($B$6:B51)+0.01 -> 6.03 | C60: Replace temperature control unit (Remote) | F60: number | K60: =IF($G60="","",$G60*J60) -> 
A62: PFD 05.01.03 | B62: =MAX($B$6:B61)+0.01 -> 6.04 | C62: REGAS AC UNIT | F62: number
A64: PFD 05.01.05 | B64: =MAX($B$6:B63)+0.01 -> 6.05 | C64: Replace 25mm Thermaflex isolation | F64: m
I65: =IF($G65="","",$G65*H65) -> 
A66: PFD 05.01.09 | B66: =MAX($B$6:B65)+0.01 -> 6.06 | C66: REPLACE CAPACITOR | F66: m
I67: =IF($G67="","",$G67*H67) -> 
C68: .01 | D68: 54000 btu cassette unit | F68: number
C70: .02 | D70: 26000 btu high wall split unit | F70: number
C72: .03 | D72: 18000 btu high wall split unit | F72: number
C74: .04 | D74: 12000 btu high wall split unit | F74: number
A76: PFD 05.01.06 | B76: =MAX($B$6:B69)+0.01 -> 6.07 | C76: Replace Control (PC) Board | I76: =IF($G76="","",$G76*H76) ->  | K76: =IF($G76="","",$G76*J76) -> 
I77: =IF($G77="","",$G77*H77) -> 
C78: .01 | D78: High wall split unit | F78: number
C80: .02 | D80: Cassette unit | F80: number
A82: PFD 05.01.07 | B82: =MAX($B$6:B79)+0.01 -> 6.08 | C82: Replace Compressor
C84: .01 | D84: 54000 btu cassette unit | F84: number
C86: .02 | D86: 26000 btu high wall split unit | F86: number
C88: .03 | D88: 18000 btu high wall split unit | F88: number
I89: =IF($G89="","",$G89*H89) -> 
C90: .04 | D90: 12000 btu high wall split unit | F90: number | K90: =IF($G90="","",$G90*J90) -> 
I91: =IF($G91="","",$G91*H91) -> 
B98: ="TOTAL "&$A$3&" CARRIED TO SUMMARY: CORRECTIVE MAINTENANCE WORK" -> TOTAL CARRIED TO SUMMARY: CORRECTIVE MAINTENANCE WORK | K98: =SUM(K46:K96) -> 0.00

Sheet M1 (hidden)
A2: DEPARTMENT OF PUBLIC WORKS
A4: =#REF! -> 
A6: =#REF! -> 
A10: SCHEDULE OF QUANTITIES
A14: NB | B14: TENDERERS MUST COMPLETE THE SCHEDULE OF QUANTITIES IN BLACK INK
A18: =#REF! ->  | C18: =#REF!&" - MAINTENANCE WORK" -> 
J20: TENDER
A21: PAYMENT
A22: REFERS | B22: ITEM | E22: DESCRIPTION | F22: UNIT | G22: QUAN- | H22: RATE | I22: AMOUNT | J22: RATE | K22: AMOUNT
A23: TO | B23: NO | G23: TITY
B25: =#REF! ->  | C25: GENERAL - MAINTENANCE WORK
B55: ="TOTAL "&$A$18&" CARRIED TO SUMMARY: MAINTENANCE WORK" -> 

Sheet 6 Septic Tank
A1: PAYMENT REFERS TO | B1: ITEM NO | C1: DESCRIPTION | F1: UNIT | G1: QUANTITY | H1: RATE | I1: AMOUNT
A2: 6: 50m3 SEPTIC TANK
A3: SCHEDULE NO 6.1 : | C3: PRELIMINARY AND GENERAL
C4: GENERAL
B5: 6.1.1 | C5: Scheduled fixed - charge and value - related items:
C6: .01 | D6: Fixed prelimiary and general chages | F6: sum | G6: 1 | I6: =G6*H6 -> 0
B7: 6.1.2 | C7: Scheduled time-related items: | F7: Month | G7: 1 | I7: =G7*H7 -> 0
C8: TEMPORARY WORKS
B9: 6.1.3 | C9: Location and protection of existing services:
C10: .01 | D10: Water and sewer pipes | F10: sum | G10: 1 | I10: =G10*H10 -> 0
C11: .02 | D11: Electrical and other cables | F11: sum | G11: 1 | I11: =G11*H11 -> 0
B12: 6.1.4 | C12: Additional tests
C13: .01 | D13: Additional tests required by Engineer | F13: Prov sum | G13: 1 | I13: 2,000.00
C14: .02 | D14: Attendance and profit | F14: % | G14: 2,000.00 | I14: =G14*H14 -> 0
B15: 6.1.5 | C15: Update existing key plants | F15: sum | G15: 1 | I15: =G15*H15 -> 0
B16: 6.1.6 | C16: OCCUPATIONAL HEALTH AND SAFETY
C17: .01 | D17: Compliance with OHS Act and
D18: Construction Regulations 2003 | F18: sum | G18: 1 | I18: =G18*H18 -> 0
B19: 6.1.7 | C19: HIV/AIDS AWARENESS
C20: It is required of the Contractor to thoroughly study the Additional Specification SH: HIV / AIDS Requirements (PW 1544) of the Department that must be read together with and is deemed to be incorporated under this Section of the Bills of Quantities.
C21: Provision for pricing of HIV/AIDS awareness is made under the items hereafter and it is explicitly pointed out that all requirements of the aforementioned specification are deemed to be priced hereunder, as the said items represent the only method of measurement and no additional items or extras to the contract in this regard shall be entertained
C22: The Contractor must take note that compliance with the HIV/AIDS Specification is compulsory. In the event of partial or total non-compliance, the Representative/Agent, notwithstanding the provisions of Clause 52 of the General Conditions of Contract for Works of Civil Engineering Construction or any other clause to the contrary, reserves the right to delay issuing any progress payment certificate until the Contractor provides satisfactory proof of compliance.
C23: The Contractor shall not be entitled to any compensation of whatsoever nature, including interest, due to such delay of payment
A24: SH 07 | C24: .01 | D24: Awareness Campaign | F24: sum | G24: 1 | I24: =G24*H24 -> 0
D25: Selection, appointment, briefing and making available of an Awareness Campaign including provision of all relevant services.
A26: SH 04.01 | C26: .02 | D26: Awareness Workshops | F26: sum | G26: 1 | I26: =G26*H26 -> 0
D27: Selection and appointment of a competent Service Provider approved by the Representative/Agent, provision of a Service Provider Workshop Plan and a suitable venue, conducting of awareness workshops by means of traditional and/or modern multi-media techniques, including follow-up courses, making available all tuition material and performing assessment procedures.
A28: SH 04.03 | C28: .03 | D28: Posters, Booklets, Videos, etc. | F28: sum | G28: 1 | I28: =G28*H28 -> 0
D29: Provision, displaying, maintaining and replacing when necessary of four plastic laminated posters, booklets and educational videos, etc. for the duration of the construction period.
A30: SH 05 | C30: .04 | D30: Access to Condoms | F30: sum | G30: 1 | I30: =G30*H30 -> 0
D31: Provision and maintenance of condom dispensers fixed in position, including male and female condoms, replenishing male and female condoms on a daily basis as required for the duration of the construction period.
A32: SH 08 | C32: .05 | D32: Monitoring | F32: sum | G32: 1 | I32: =G32*H32 -> 0
D33: Monitoring HIV/AIDS awareness of workers, providing the Representative/Agent with access to information including making available all reports, thoroughly completed and reflecting the correct information, for the duration of the construction period and close out.
A34: TOTAL PRELIMINARY AND GENERAL | B34: ="TOTAL "&$A$3&" CARRIED TO SUMMARY: GENERAL MAINTENANCE WORK" -> TOTAL SCHEDULE NO 6.1 : CARRIED TO SUMMARY: GENERAL MAINTENANCE WORK | I34: =SUM(I6:I32) -> 2,000.00
A35: SCHEDULE NO 6.2 : | C35: STRUCTURAL AND BUILDING
C36: BD: WALLS
C37: NEW WORK
A38: SANS | C38: EARTHWORKS (SMALL WORKS)
A39: 1200 DA
A40: 8.3 | B40: 6.2.1 | C40: SCHEDULED ITEMS
A41: 8.3.1 | C41: .01 | D41: Remove topsoil to nominal depth of 150mm , stockpile and maintain | F41: m2 | G41: 36.25 | I41: =G41*H41 -> 0
A42: 8.3.2 | C42: .02 | D42: Excavate for restricted foundation, footings and trenches in all materials and use for backfill or embankment or dispose. | F42: m3 | G42: 130.5 | I42: =G42*H42 -> 0
C43: .03 | D43: Extra over item 8.3.2 above for:
D44: .01 | E44: Intermediate Excavation | F44: m3 | G44: 58 | I44: 0
D45: .02 | E45: Hard Rock Excavation | F45: m4 | G45: 29 | I45: 0
C46: .03 | D46: Backfilling using material obtained from excavation | F46: m³ | G46: 36.25 | I46: 0
A47: SANS | C47: CONCRETE (STRUCTURAL)
A48: 1200 G
A49: 8.4 | C49: SCHEDULED CONCRETE ITEMS
A50: 8.4.3 | B50: 6.2.2 | C50: Strength concrete:
C51: .01 | D51: Class 25Mpa/19mm concrete in floors, walls and slab | F51: m3 | G51: 30 | I51: 0
A52: SANS | C52: SCHEDULED REINFORCEMENT ITEMS
A53: 1200 H & GA
B54: 6.2.3 | C54: High-tensile steel welded mesh and steel bars:
C55: .01 | D55: R 8 Mild Steel bars | F55: kg | G55: 200 | I55: =G55*H55 -> 0
C56: .02 | D56: Y12 High Tensile Steel bars | F56: kg | G56: 2000 | I56: 0
C57: .02 | D57: Y16 | E57: High Tensile Steel bars | F57: kg | G57: 2000 | I57: 0
C58: .03 | D58: Y20 | E58: High Tensile Steel bars | F58: kg | G58: 1500 | I58: 0
B59: 6.2.4 | C59: Benching
C60: Benching formed with dolomitic aggregate | F60: m3 | G60: 4 | I60: 0
A61: SANS | B61: 6.2.5 | C61: SCHEDULED FORMWORK ITEMS
A62: 1200GA | C62: .01 | D62: Strip Formwork | F62: m | G62: 20 | I62: 0
C63: .02 | D63: Horizontal Plane Formwork (Smooth) | F63: m1 | G63: 20 | I63: 0
C64: .03 | D64: Double Sided Vertical Plane Formwork (Smooth) | F64: m2 | G64: 50 | I64: 0
B65: 6.2.6 | C65: Finishing
C66: .01 | D66: Wood float to coverslab | F66: m² | G66: 40 | I66: 0
C67: .02 | D67: Steel float to top of benching | F67: m² | G67: 20 | I67: 0
B68: 6.2.7 | C68: Manhole Cover
C69: 600 diameter concrete manhole cover | F69: number | G69: 1 | I69: 0
B70: 6.2.8 | C70: Overflow
C71: 110 diameter uPVC overflow pipe coumplete as per drawing 2426-G10 | F71: number | G71: 1 | I71: 0
B72: 6.2.9 | C72: Ventilation
C73: 680 x 680 brick column (semi face bricks) with 110 diameter uPVC vent pipe 1 785 high complete as per drawing | F73: number | G73: 1 | I73: 0
B74: 6.2.10 | C74: Overflow Trench
C75: Excavate and form overflow trench 500 mm wide at 1:100 fall to day light. Max length 10 m. Embankment at 1:1 | F75: m | G75: 10 | I75: 0
A76: TOTAL STRUCTURAL AND BUILDING | I76: =SUM(I41:I75) -> 0
A78: SUMMARY OF SCHEDULE OF QUANTITIES: MHLWAZINI HIGH SCHOOL - SEPTIC TANK | I78: AMOUNT
A79: SCHEDULE NO 7.1 : | E79: PRELIMINARY AND GENERAL | I79: =I34 -> R 2,000.00
A80: SCHEDULE NO 7.2 : | E80: STRUCTURAL AND BUILDING | I80: =I76 -> 0
A81: SUB TOTAL G: SEPTIC TANK (carry to summary page) | I81: =SUM(I79:I80) -> R 2,000.00

Sheet 7 Electrical
A1: PAYMENT REFERS TO | B1: ITEM NO | C1: DESCRIPTION | F1: UNIT | G1: QUANTITY | H1: RATE | I1: AMOUNT
A2: 2 : SITE WORK - ELECTRICAL
A3: SCHEDULE NO 2.1 | C3: EXCAVATIONS, BEDDING AND BACKFILLING FOR SLEEVES
C4: Cable trenching as well as bedding below and above sleeves plus backfilling and compaction in layers as specified.
C6: The volume will be calculated as follows : (length x 0.45 x 0.7)
C7: Total measured length : | F7: 60.00
B8: A | C8: Hard rock (10% Allowed for) | F8: m3 | G8: 0.00 | I8: =G8*H8 -> 0
B9: B | C9: Soft rock (15% Allowed for) | F9: m3 | G9: 0.00 | I9: =G9*H9 -> 0
B10: C | C10: Soil (75% Allowed for) | F10: m3 | G10: 0.00 | I10: 0
B11: D | C11: Sifted and/or imported bedding sand. (20%) | F11: m3 | G11: 0.00 | I11: 0
B12: E | C12: Backfilling and compaction in layers. (80%) | F12: m3 | G12: 0.00 | I12: 0
A13: SCHEDULE NO 2.2 | C13: SLEEVES FOR SERVICES
C14: The supply, delivery and installation of the following PVC sleeves for road crossings and/or DB entries.
C16: All Telkom sleeves shall be complete with drawwire
B17: F | C17: PVC 50 mm diametre Supply & delivery : | F17: m | G17: 30.00 | I17: =G17*H17 -> 0
B18: G | C18: PVC 50 mm diametre Installation : | F18: m | G18: 30.00 | I18: =G18*H18 -> 0
B19: H | C19: PVC 50 mm diametre Slow bends Supply & delivery : | F19: each | G19: 2.00 | I19: 0
B20: I | C20: PVC 50 mm diametre Slow bends Installation : | F20: each | G20: 2.00 | I20: 0
A21: TOTAL : SITE WORK | B21: ="TOTAL "&$A$1&" CARRIED TO SUMMARY: GENERAL MAINTENANCE WORK" -> TOTAL PAYMENT REFERS TO CARRIED TO SUMMARY: GENERAL MAINTENANCE WORK | I21: =SUM(I8:I20) -> 0
A22: 3 : DISTRIBUTION BOARDS & CABLES
A23: SCHEDULE NO 3.1 | C23: DISTRIBUTION BOARDS
C24: The supply, delivery and installation of the electrical + Telk / Data Distribution Boards as specified, indicated on the drawings and/or implied, completely wired in the manufacturers factory with all equipment.
C27: The supply and delivery only of the following :-
B28: A | C28: MAIN DB (In Admin Block) | F28: each | G28: 1.00 | I28: =H28*G28 -> 0
B29: B | C29: MAIN CR (Class Room) | F29: each | G29: 1.00 | I29: =H29*G29 -> 0
B30: C | C30: Telk/Data DB in Admin Block (450 x 450 x 150 deep) with Softwood board inside for mounting of equipment | F30: each | G30: 1.00 | I30: =H30*G30 -> 0
C32: The installation only of the following :-
B33: D | C33: MAIN DB (In Admin Block) | F33: each | G33: 1.00 | I33: =G33*H33 -> 0
B34: E | C34: MAIN CR (Class Room) | F34: each | G34: 1.00 | I34: =G34*H34 -> 0
B35: F | C35: Telk/Data DB in Admin Block (450 x 450 x 150 deep) with Softwood board inside for mounting of equipment | F35: each | G35: 1.00 | I35: =H35*G35 -> 0
A37: SCHEDULE NO 3.2 | C37: SUPPLY CABLES AND EARTH WIRES TO DB's
C38: The supply, delivery and installation of the electrical cables through sleeves, in trenches, on cable ladders, against walls, structural steelwork or in conduits as shown on the drawings and/or implied by the specification.
C41: The supply and delivery only of the following cables & BCE:-
B42: G | C42: Cu PVC/SWA Cable, cores x 4 x mm² = 35 | F42: m | G42: 200.00 | I42: =G42*H42 -> 0
B43: H | C43: BCE x mm² = 16 | F43: m | G43: 0.00 | I43: =G43*H43 -> 0
B44: I | C44: Cu PVC/SWA Cable, cores x 3 x mm² = 4 | F44: 1 | G44: 80.00 | I44: 0
C45: The installation only of the following cables & BCE:-
B46: J | C46: Cu PVC/SWA Cable, cores x 4 x mm² = 35 | F46: m | G46: 200.00 | I46: =G46*H46 -> 0
B47: K | C47: BCE x mm² = 16 | F47: m | G47: 0.00 | I47: =G47*H47 -> 0
B48: L | C48: Cu PVC/SWA Cable, cores x 3 x mm² = 4 | F48: m | G48: 80.00 | I48: 0
A49: SCHEDULE NO 3.3 | C49: CABLE TERMINATIONS
C50: The supply, delivery and installation of the following cable terminations, including glands, shrouds, lugs etc to ensure a complete termination as specified or implied.
C52: The supply and delivery only of the following cable termination material.
B53: M | C53: Cu PVC/SWA Cable, cores x 4 x mm² = 35 | F53: each | G53: 2.00 | I53: =H53*G53 -> 0
B54: N | C54: BCE x mm² = 16 | F54: each | G54: 2.00 | I54: =H54*G54 -> 0
B55: O | C55: Cu PVC/SWA Cable, cores x 3 x mm² = 4 | F55: each | G55: 2.00 | I55: 0
C56: The installation only of the following cable terminations
B57: P | C57: Cu PVC/SWA Cable, cores x 4 x mm² = 35 | F57: each | G57: 2.00 | I57: 0
B58: Q | C58: BCE x mm² = 16 | F58: each | G58: 2.00 | I58: 0
B59: R | C59: Cu PVC/SWA Cable, cores x 3 x mm² = 4 | F59: each | G59: 2.00 | I59: 0
A60: TOTAL : DISTRIBUTION BOARDS & CABLES | B60: ="TOTAL "&$A$1&" CARRIED TO SUMMARY: GENERAL MAINTENANCE WORK" -> TOTAL PAYMENT REFERS TO CARRIED TO SUMMARY: GENERAL MAINTENANCE WORK | I60: =SUM(I28:I59) -> 0
A61: 4 : ADMIN BLOCK
A62: SCHEDULE NO 4.1 | C62: ELECTRICAL LIGHTING AND POWER PLUS TELKOM + INTERCOM INSTALLATION
B63: 4.1.1 | C63: CONDUIT
C64: The supply, delivery and installation of the following conduit incl. all couplings, male- & female bushes, threading, reaming, bending, fixing saddles and screws for wiring purposes of circuits.
C67: Supply and delivery on site of the following PVC conduit;
B68: A | C68: 20 mm diametre | F68: m | G68: 210.00 | I68: =H68*G68 -> 0
B69: B | C69: 25 mm diametre | F69: m | G69: 10.00 | I69: =H69*G69 -> 0
B70: C | C70: 32 mm diametre | F70: m | G70: 10.00 | I70: 0
B71: D | C71: 20 mm diametre flexible "Kopex" with 2 end connectors for Geyser or Stove | F71: m | G71: 1.00 | I71: 0
C72: Installation of the following PVC conduit irrespective of surface, in brick or in concrete;
B74: E | C74: 20 mm diametre | F74: m | G74: 210.00 | I74: =H74*G74 -> 0
B75: F | C75: 25 mm diametre | F75: m | G75: 10.00 | I75: 0
B76: G | C76: 32 mm diametre | F76: m | G76: 10.00 | I76: 0
B77: H | C77: 20 mm diametre flexible "Kopex" with 2 end connectors for Geyser or Stove | F77: m | G77: 1.00 | I77: 0
B78: 4.1.2 | C78: Cu PVC INSULATED CONDUCTOR AND BARE COPPER EARTH WIRE
C79: The supply, delivery and installation of the following Cu PVC insulated conductors and bare copper earth wire through conduit, in wiring channel or power skirting etc. as specified and/or implied.
C82: Supply and delivery on site of the following :-
B83: I | C83: Cu PVC insulated conductor - 6 mm² (Stove) | F83: m | G83: 0.00 | I83: =H83*G83 -> 0
B84: J | C84: Cu PVC insulated conductor - 4 mm² (All socket circuits) | F84: m | G84: 400.00 | I84: =H84*G84 -> 0
B85: K | C85: Cu PVC insulated conductor - 2.5 mm² (All lighting circuits) | F85: m | G85: 425.00 | I85: 0
B86: L | C86: Stranded bare copper earth wire - 4 mm² (BCE) | F86: m | G86: 0.00 | I86: 0
B87: M | C87: Stranded bare copper earth wire - 2.5 mm² (BCE) | F87: m | G87: 370.00 | I87: 0
B88: N | C88: Galvanised draw wire - 1,5 mm² | F88: m | G88: 60.00 | I88: 0
C89: Installation only of the following :-
B90: O | C90: Cu PVC insulated conductor - 6 mm² (Stove) | F90: m | G90: 0.00 | I90: =G90*H90 -> 0
B91: P | C91: Cu PVC insulated conductor - 4 mm² (All socket circuits) | F91: m | G91: 400.00 | I91: =G91*H91 -> 0
B92: Q | C92: Cu PVC insulated conductor - 2.5 mm² (All lighting circuits) | F92: m | G92: 425.00 | I92: 0
B93: R | C93: Stranded bare copper earth wire - 4 mm² (BCE) | F93: m | G93: 0.00 | I93: 0
B94: S | C94: Stranded bare copper earth wire - 2.5 mm² (BCE) | F94: m | G94: 370.00 | I94: 0
B95: T | C95: Galvanised draw wire - 1,5 mm² | F95: m | G95: 60.00 | I95: 0
A96: SCHEDULE NO 4.2 | C96: ELECTRICAL LIGHTING AND POWER PLUS TELKOM + INTERCOM INSTALLATION
B97: 4.2.1 | C97: DRAWBOXES FOR LIGHTING AND POWER
C98: The supply, delivery and installation of the following draw boxes for installtion with conduit complete with craddles etc. as specified indicated on the drawings and/or implied.
C101: Supply and delivery on site of the following :-
B102: A | C102: 100 x 50 x 50 mm for light switches | F102: each | G102: 22.00 | I102: =G102*H102 -> 0
B103: B | C103: 100 x 100 x 50 mm without cover plates | F103: each | G103: 47.00 | I103: =G103*H103 -> 0
B104: C | C104: Shallow 60 mm round for 20 mm dia conduit with cover plates | F104: each | G104: 60.00 | I104: 0
C105: Installation of the following PVC draw boxes irrespective of surface, in brick or in concrete;
B107: D | C107: 100 x 50 x 50 mm for light switches | F107: each | G107: 22.00 | I107: =H107*G107 -> 0
B108: E | C108: 100 x 100 x 50 mm without cover plates | F108: each | G108: 47.00 | I108: =H108*G108 -> 0
B109: F | C109: Shallow 60 mm round for 20 mm dia conduit with cover plates | F109: each | G109: 60.00 | I109: 0
B110: 4.2.2 | C110: COVER PLATES FOR TEL/DATA & TV SOCKETS
C111: The supply, delivery and installation of the following cover plates with cutouts for Telkom/Data (RJ11/RJ45) sockets as specified implied. The actual sockets will be supplied & installed by others.
C114: Supply and delivery on site of the following :-
B115: G | C115: 100 x 100 Cover plate for 1 x RJ11 & 1 x RJ45 next to each other. One cutout for both Tel and Data socket only. | F115: each | G115: 10.00 | I115: =G115*H115 -> 0
C117: Installation only of the following :-
B118: H | C118: 100 x 100 Cover plate for 1 x RJ11 & 1 x RJ45 next to each other. One cutout for both Tel and Data socket only. | F118: each | G118: 10.00 | I118: =G118*H118 -> 0
B120: 4.3.1 | C120: LIGHT SWITCHES
C121: The supply, delivery and installation of the following light switches complete with craddles and coverplates as specified and/or implied.
C123: Supply and delivery on site of the following :-
B124: I | C124: 16A Complete with cover plate - 1 Way / 1 Lever | F124: each | G124: 14.00 | I124: =G124*H124 -> 0
B125: J | C125: 16A Complete with cover plate - 1 Way / 2 Lever | F125: each | G125: 0.00 | I125: =G125*H125 -> 0
B126: K | C126: 16A Complete with cover plate - 1 Way / 3 Lever | F126: each | G126: 0.00 | I126: 0
B127: L | C127: 16A Complete with cover plate - 2 Way / 1 Lever | F127: each | G127: 2.00 | I127: 0
B128: M | C128: Photocell. | F128: each | G128: 2.00 | I128: 0
A129: SCHEDULE NO 4.3 | C129: LIGHT SWITCHES - CONTINIOUS
B130: 4.3.1 | C130: Installation and connecting up of light switches as specified
B131: A | C131: 16A Complete with cover plate - 1 Way / 1 Lever | F131: each | G131: 14.00 | I131: =H131*G131 -> 0
B132: B | C132: 16A Complete with cover plate - 1 Way / 2 Lever | F132: each | G132: 0.00 | I132: =H132*G132 -> 0
B133: C | C133: 16A Complete with cover plate - 1 Way / 3 Lever | F133: each | G133: 0.00 | I133: 0
B134: D | C134: 16A Complete with cover plate - 2 Way / 1 Lever | F134: each | G134: 2.00 | I134: 0
B135: E | C135: Photocell. | F135: each | G135: 2.00 | I135: 0
B136: 4.3.2 | C136: SOCKET OUTLETS AND ISOLATORS
C137: The supply, delivery and installation of the following SSO's and Isolators complete as specified and/or implied.
C139: Supply and delivery on site of the following :-
B140: F | C140: Switched socket outlet - Single for 100 x 100 box. | F140: each | G140: 37.00 | I140: =G140*H140 -> 0
B141: G | C141: Switched socket outlet - Double for 100 x 100 box | F141: each | G141: 1.00 | I141: =G141*H141 -> 0
B142: H | C142: 5A Unswitched socket outlet for shallow round box | F142: each | G142: 0.00 | I142: 0
B143: I | C143: 20 Amp 2P isolator complete as specified. (Geyser) | F143: each | G143: 1.00 | I143: 0
B144: J | C144: 30 Amp 2P isolator complete for Stoves | F144: each | G144: 0.00 | I144: 0
B145: K | C145: 30 Amp 2P isolator complete for A/C units | F145: each | G145: 0.00 | I145: 0
C146: Installation and connecting up of the following as specified
B147: L | C147: Switched socket outlet - Single for 100 x 100 box. | F147: each | G147: 37.00 | I147: =G147*H147 -> 0
B148: M | C148: Switched socket outlet - Double for 100 x 100 box | F148: each | G148: 1.00 | I148: =G148*H148 -> 0
B149: N | C149: 5A Unswitched socket outlet for shallow round box | F149: each | G149: 0.00 | I149: 0
B150: O | C150: 20 Amp 2P isolator complete as specified. (Geyser) | F150: each | G150: 1.00 | I150: 0
B151: P | C151: 30 Amp 2P isolator complete for Stoves | F151: each | G151: 0.00 | I151: 0
B152: Q | C152: 30 Amp 2P isolator complete for A/C units | F152: each | G152: 0.00 | I152: 0
A153: SCHEDULE NO 4.4 | C153: ELECTRICAL LIGHTING AND POWER PLUS TELKOM + INTERCOM INSTALLATION
B154: 4.1.4 | C154: LUMINAIRES (LIGHT FITTINGS)
C155: The supply, delivery and installation of the following light fittings complete with all cords, plugtops etc. and lamps as specified an/or implied.
C157: Supply and delivery of the following Light Fittings :-
B158: A | C158: Light fitting complete as specied with lamp/s - Type BH = Same for wall- and ceiling mounting | F158: each | G158: 29.00 | I158: =H158*G158 -> 0
B160: B | C160: Light fitting complete as specied with lamp/s - Type F2 | F160: each | G160: 31.00 | I160: =H160*G160 -> 0
C161: Installation of the following Light Fittings :-
B162: C | C162: Light fitting complete as specied with lamp/s - Type BH = Same for wall- and ceiling mounting | F162: each | G162: 29.00 | I162: =H162*G162 -> 0
B164: D | C164: Light fitting complete as specied with lamp/s - Type F2 | F164: each | G164: 31.00 | I164: =H164*G164 -> 0
A165: TOTAL : ADMIN BLOCK | B165: ="TOTAL "&$A$1&" CARRIED TO SUMMARY: GENERAL MAINTENANCE WORK" -> TOTAL PAYMENT REFERS TO CARRIED TO SUMMARY: GENERAL MAINTENANCE WORK | I165: =SUM(I68:I164) -> 0
A166: 5 : INTERCOM AND PERIOD BELL INSTALLATION
A167: SCHEDULE NO 5.1 | C167: INTERCOM AND PERIOD BELL INSTALLATION
B168: 5.1.1 | C168: CONDUIT
C169: The supply, delivery and installation of the following conduit incl. all couplings, male- & female bushes, threading, reaming, bending, fixing saddles and screws for wiring purposes of circuits.
C172: Supply and delivery on site of the following PVC conduit;
B173: A | C173: 20 mm diametre | F173: m | G173: 40.00 | I173: =G173*H173 -> 0
B174: B | C174: 25 mm diametre | F174: m | G174: 20.00 | I174: =G174*H174 -> 0
B175: C | C175: Galvanized draw wire - 1,5 mm² | F175: m | G175: 60.00 | I175: 0
C176: Installation of the following PVC conduit irrespective of surface, in brick or in concrete;
B178: D | C178: 20 mm diametre | F178: m | G178: 40.00 | I178: =G178*H178 -> 0
B179: E | C179: 25 mm diametre | F179: m | G179: 20.00 | I179: =G179*H179 -> 0
B180: F | C180: Galvanized draw wire - 1,5 mm² | F180: m | G180: 60.00 | I180: 0
B181: 4.1.2 | C181: DRAWBOXES
C182: The supply, delivery and installation of the following draw boxes for installtion with conduit complete with craddles etc. as specified indicated on the drawings and/or implied.
C185: Supply and delivery on site of the following :-
B186: G | C186: 100 x 100 x 50 mm without cover plates | F186: m | G186: 5.00 | I186: =G186*H186 -> 0
B187: H | C187: Shallow 60 mm round for 20 mm dia conduit with cover plates | F187: m | G187: 4.00 | I187: =G187*H187 -> 0
C188: Installation of the following PVC draw boxes irrespective of surface, in brick or in concrete;
B190: I | C190: 100 x 100 x 50 mm without cover plates | F190: m | G190: 5.00 | I190: =G190*H190 -> 0
B191: J | C191: Shallow 60 mm round for 20 mm dia conduit with cover plates | F191: m | G191: 4.00 | I191: =G191*H191 -> 0
C192: The supply, delivery and installation of the following equipment complete; | F192: m
B193: K | C193: Bell Pushbutton for mounting in a 100 x 50 x 50 draw box | F193: m | G193: 1.00 | I193: =H193*G193 -> 0
B194: L | C194: Audible school period clock for surface mounting against wall over a 60mm dia. Round box | F194: m | G194: 1.00 | I194: =H194*G194 -> 0
A196: TOTAL : INTERCOM AND PERIOD BELL INSTALLATION | B196: ="TOTAL "&$A$1&" CARRIED TO SUMMARY: GENERAL MAINTENANCE WORK" -> TOTAL PAYMENT REFERS TO CARRIED TO SUMMARY: GENERAL MAINTENANCE WORK | I196: =SUM(I173:I195) -> 0
A197: 6 : SUNDRIES
A198: SCHEDULE NO 6.1 | C198: GENERAL EARTHING AND BONDING
B199: A | C199: The tenderer shall allow against this item for the general earthing and bonding (not lightning protection) of the complete installation in accordance with SANS 0142 as amended. | F199: sum | G199: 1.00 | I199: =G199*H199 -> 0
A202: SCHEDULE NO 6.2 | C202: LIGHTNING PROTECTION BY SPECIALIST
B203: B | C203: The amount/rate to be entered here need to be obtained from a specialist earthing and lightning protection company which will ensure that the Building is properly protected against lightning strike. This cvompany will also issue a COC in accordance with the latest SANS 03 specifications upon completion of the works undertaken by them. | F203: sum | G203: 1.00 | I203: =G203*H203 -> 0
A208: SCHEDULE NO 6.3 | C208: TESTING AND COMMISIONING
B209: C | C209: The tenderer shall allow against this item for the complete testing, attending of inspections as needed, as well as the commissioning and handing over of the entire installation to the satisfaction of the engineer, his representative and/or the client or his representative | F209: sum | G209: 1.00 | I209: =G209*H209 -> 0
A213: SCHEDULE NO 6.4 | C213: CERTIFICATE OF COMPLIANCE (C.O.C.'s)
B214: D | C214: The amount allowed for under this item shall be for the testing and recording of measurements (electrical) per DB area in order to issue a C.O.C. in accordance with SANS 0142 as amended per DB or Block | F214: sum | G214: 1.00 | I214: =G214*H214 -> 0
A217: SCHEDULE NO 6.5 | C217: OTHER ITEMS
B218: E | C218: If so required, any and all items to ensure a 100% complete installation must be entered here. | F218: sum | G218: 1.00 | I218: =G218*H218 -> 0
B220: i | F220: sum | G220: 1.00 | I220: 0
B221: ii | F221: sum | G221: 1.00 | I221: 0
B222: iii | F222: sum | G222: 1.00 | I222: 0
B223: iv | F223: sum | G223: 1.00 | I223: 0
A224: TOTAL : SUNDRIES | B224: ="TOTAL "&$A$1&" CARRIED TO SUMMARY: GENERAL MAINTENANCE WORK" -> TOTAL PAYMENT REFERS TO CARRIED TO SUMMARY: GENERAL MAINTENANCE WORK | I224: =SUM(I199:I223) -> 0
A225: 7 : LOCAL SUPPLY AUTHORITY ELECTRICAL SUPPLY
A226: SCHEDULE NO 7.1 | C226: ACTUAL AMOUNT FOR UPGRADED / NEW SUPPLY PAYABLE TO LOCAL AUTHORITY
C229: The allowance in this BOQ is for the successful electrical contractor to carry out the following physical work;
B231: A | C231: The Actual connection/ termination of the supply cable to the New Main Admin DB | F231: Prov.sum | G231: 1.00 | H231: 10,000.00 | I231: =H231*G231 -> 10,000.00
D232: Attendance and profit | F232: % | G232: =I231 -> 10,000.00 | I232: =G232*H232 -> 0
A233: TOTAL : LOCAL SUPPLY AUTHORITY ELECTRICAL SUPPLY | B233: ="TOTAL "&$A$1&" CARRIED TO SUMMARY: GENERAL MAINTENANCE WORK" -> TOTAL PAYMENT REFERS TO CARRIED TO SUMMARY: GENERAL MAINTENANCE WORK | I233: =SUM(I231:I232) -> 10,000.00
A235: SUMMARY OF SCHEDULE OF QUANTITIES: MHLWAZINI HIGH SCHOOL - ELECTRICAL | I235: AMOUNT
A236: =A2 -> 2 : SITE WORK - ELECTRICAL | I236: =I21 -> 0
A237: =A22 -> 3 : DISTRIBUTION BOARDS & CABLES | I237: =I60 -> 0
A238: =A61 -> 4 : ADMIN BLOCK | I238: =I165 -> 0
A239: =A166 -> 5 : INTERCOM AND PERIOD BELL INSTALLATION | I239: =I196 -> 0
A240: =A197 -> 6 : SUNDRIES | I240: =I224 -> 0
A241: =A225 -> 7 : LOCAL SUPPLY AUTHORITY ELECTRICAL SUPPLY | I241: =I233 -> 10,000.00
A242: SUB TOTAL : ELECTRICAL WORK (carry to summary page) | I242: =SUM(I236:I241) -> 10,000.00

Sheet Summary
A1: SUMMARY OF SCHEDULE OF QUANTITIES: MHLWAZINI HIGH SCHOOL | C1: AMOUNT
A2: 1 | B2: ADMINISTRATION BLOCK | C2: ='1 Admin block'!I316 -> R 120,000.00
A3: 2 | B3: CLASSROOM A | C3: ='2 Classroom A'!I196 -> R 5,000.00
A4: 3 | B4: CLASSROOM B | C4: ='3 Classroom B'!I194 -> R 5,000.00
A5: 4 | B5: ABLUTION BLOCK - BOYS | C5: ='4 Ablution block - Boys'!I231 -> R 28,156.25
A6: 5 | B6: ABLUTION BLOCK - GIRLS | C6: ='5 Ablution block - Girls'!I229 -> R 30,077.50
A7: 6 | B7: SEPTIC TANK | C7: ='6 Septic Tank'!I81 -> R 2,000.00
A8: 7 | B8: ELECTRICAL | C8: ='7 Electrical'!I242 -> R 10,000.00
A9: SUB-TOTAL | C9: =SUM(C2:C8) -> R 200,233.75
A10: VAT (15%) | C10: =C9*15% -> R 30,035.06
A11: TOTAL | C11: =C9+C10 -> R 230,268.81
